{"text_format":"1","workbook":"xlsx","n_sheets":11,"sheets":["連絡事項","入力例","I　FACE","①","②","③","④","⑤","⑥","⑦","⑧"],"not_rendered":{"charts":0,"images":5,"macros":0,"external_links":0,"defined_names":9,"comments":10,"pivot_tables":0},"unopened":[],"bounds":{"document_bytes":16777216,"sheet_cells":100000,"rows_first":2000,"rows_last":500,"rows_between":2000,"halvings":0,"cell_chars":16384,"cell_head_chars":4096},"cells_cut":0,"cells_raw":0,"read":"whole","date_system":"1900"}

{"sheet":"連絡事項","index":0,"n_rows":179,"n_cols":21,"rows_kept":179,"cut":false,"hidden":false,"merged":[[170,16,173,16],[174,16,177,16],[178,16,181,16],[146,16,149,16],[150,16,153,16],[154,16,157,16],[158,16,161,16],[162,16,165,16],[166,16,169,16],[122,16,125,16],[126,16,129,16],[130,16,133,16],[134,16,137,16],[138,16,141,16],[142,16,145,16],[98,16,101,16],[102,16,105,16],[106,16,109,16],[110,16,113,16],[114,16,117,16],[118,16,121,16],[74,16,77,16],[78,16,81,16],[82,16,85,16],[86,16,89,16],[90,16,93,16],[94,16,97,16],[50,16,53,16],[54,16,57,16],[58,16,61,16],[62,16,65,16],[66,16,69,16],[70,16,73,16],[26,16,29,16],[30,16,33,16],[34,16,37,16],[38,16,41,16],[42,16,45,16],[46,16,49,16],[178,1,181,1],[178,2,181,2],[178,3,181,15],[2,16,5,16],[6,16,9,16],[10,16,13,16],[14,16,17,16],[18,16,21,16],[22,16,25,16],[170,1,173,1],[170,2,173,2],[170,3,173,15],[174,1,177,1],[174,2,177,2],[174,3,177,15],[162,1,165,1],[162,2,165,2],[162,3,165,15],[166,1,169,1],[166,2,169,2],[166,3,169,15],[154,1,157,1],[154,2,157,2],[154,3,157,15],[158,1,161,1],[158,2,161,2],[158,3,161,15],[146,1,149,1],[146,2,149,2],[146,3,149,15],[150,1,153,1],[150,2,153,2],[150,3,153,15],[138,1,141,1],[138,2,141,2],[138,3,141,15],[142,1,145,1],[142,2,145,2],[142,3,145,15],[130,1,133,1],[130,2,133,2],[130,3,133,15],[134,1,137,1],[134,2,137,2],[134,3,137,15],[122,1,125,1],[122,2,125,2],[122,3,125,15],[126,1,129,1],[126,2,129,2],[126,3,129,15],[114,1,117,1],[114,2,117,2],[114,3,117,15],[118,1,121,1],[118,2,121,2],[118,3,121,15],[106,1,109,1],[106,2,109,2],[106,3,109,15],[110,1,113,1],[110,2,113,2],[110,3,113,15],[98,1,101,1],[98,2,101,2],[98,3,101,15],[102,1,105,1],[102,2,105,2],[102,3,105,15],[90,1,93,1],[90,2,93,2],[90,3,93,15],[94,1,97,1],[94,2,97,2],[94,3,97,15],[82,1,85,1],[82,2,85,2],[82,3,85,15],[86,1,89,1],[86,2,89,2],[86,3,89,15],[74,1,77,1],[74,2,77,2],[74,3,77,15],[78,1,81,1],[78,2,81,2],[78,3,81,15],[66,1,69,1],[66,2,69,2],[66,3,69,15],[70,1,73,1],[70,2,73,2],[70,3,73,15],[58,1,61,1],[58,2,61,2],[58,3,61,15],[62,1,65,1],[62,2,65,2],[62,3,65,15],[50,1,53,1],[50,2,53,2],[50,3,53,15],[54,1,57,1],[54,2,57,2],[54,3,57,15],[42,1,45,1],[42,2,45,2],[42,3,45,15],[46,1,49,1],[46,2,49,2],[46,3,49,15],[34,1,37,1],[34,2,37,2],[34,3,37,15],[38,1,41,1],[38,2,41,2],[38,3,41,15],[26,1,29,1],[26,2,29,2],[26,3,29,15],[30,1,33,1],[30,2,33,2],[30,3,33,15],[18,1,21,1],[18,2,21,2],[18,3,21,15],[22,1,25,1],[22,2,25,2],[22,3,25,15],[10,1,13,1],[10,2,13,2],[10,3,13,15],[14,1,17,1],[14,2,17,2],[14,3,17,15],[1,3,1,15],[2,1,5,1],[2,2,5,2],[2,3,5,15],[6,1,9,1],[6,2,9,2],[6,3,9,15]]}
[]
[null,null,"日付","連絡事項",null,null,null,null,null,null,null,null,null,null,null,null,"記入者名"]
[null,"未確認","2020-12-01",null,null,null,null,null,null,null,null,null,null,null,null,null,null,null,null,null,"確認済"]
[null,null,null,null,null,null,null,null,null,null,null,null,null,null,null,null,null,null,null,null,"未確認"]
[]
[]
[null,"未確認"]
[]
[]
[]
[null,"未確認"]
[]
[]
[]
[null,"未確認"]
[]
[]
[]
[null,"未確認"]
[]
[]
[]
[null,"未確認"]
[]
[]
[]
[null,"未確認"]
[]
[]
[]
[null,"未確認"]
[]
[]
[]
[null,"未確認"]
[]
[]
[]
[null,"未確認"]
[]
[]
[]
[null,"未確認"]
[]
[]
[]
[null,"未確認"]
[]
[]
[]
[null,"未確認"]
[]
[]
[]
[null,"未確認"]
[]
[]
[]
[null,"未確認"]
[]
[]
[]
[null,"未確認"]
[]
[]
[]
[null,"未確認"]
[]
[]
[]
[null,"未確認"]
[]
[]
[]
[null,"未確認"]
[]
[]
[]
[null,"未確認"]
[]
[]
[]
[null,"未確認"]
[]
[]
[]
[null,"未確認"]
[]
[]
[]
[null,"未確認"]
[]
[]
[]
[null,"未確認"]
[]
[]
[]
[null,"未確認"]
[]
[]
[]
[null,"未確認"]
[]
[]
[]
[null,"未確認"]
[]
[]
[]
[null,"未確認"]
[]
[]
[]
[null,"未確認"]
[]
[]
[]
[null,"未確認"]
[]
[]
[]
[null,"未確認"]
[]
[]
[]
[null,"未確認"]
[]
[]
[]
[null,"未確認"]
[]
[]
[]
[null,"未確認"]
[]
[]
[]
[null,"未確認"]
[]
[]
[]
[null,"未確認"]
[]
[]
[]
[null,"未確認"]
[]
[]
[]
[null,"未確認"]
[]
[]
[]
[null,"未確認"]
[]
[]
[]
[null,"未確認"]
[]
[]
[]
[null,"未確認"]
[]
[]
[]
[null,"未確認"]
[]
[]
[]
[null,"未確認"]
[]
[]
[]
[null,"未確認"]
[]
[]
[]
[null,"未確認"]

{"sheet":"入力例","index":1,"n_rows":0,"n_cols":0,"rows_kept":0,"cut":false,"hidden":false,"merged":[]}

{"sheet":"I　FACE","index":2,"n_rows":73,"n_cols":55,"rows_kept":73,"cut":false,"hidden":false,"merged":[[23,30,23,53],[26,16,28,18],[72,30,72,53],[0,30,0,32],[33,2,33,4],[2,16,4,18],[5,16,7,18],[2,22,4,24],[2,25,4,27],[5,25,7,27],[20,4,22,6],[20,1,22,3],[23,1,25,3],[2,7,4,9],[5,7,7,9],[2,13,4,15],[2,4,4,6],[2,1,4,3],[5,1,7,3],[11,4,13,6],[11,1,13,3],[14,1,16,3],[8,1,10,3],[5,10,7,12],[8,13,10,15],[5,4,7,6],[8,7,10,9],[2,10,4,12],[5,13,7,15],[8,16,10,18],[14,4,16,6],[8,10,10,12],[26,13,28,15],[26,10,28,12],[23,10,25,12],[20,7,22,9],[23,7,25,9],[20,13,22,15],[20,16,22,18],[23,16,25,18],[8,4,10,6],[11,7,13,9],[14,7,16,9],[11,10,13,12],[11,13,13,15],[11,16,13,18],[17,1,19,3],[17,4,19,6],[17,10,19,12],[17,13,19,15],[17,16,19,18],[14,22,16,24],[23,13,25,15],[20,10,22,12],[26,1,28,3],[26,4,28,6],[23,4,25,6],[26,7,28,9],[26,19,28,21],[26,22,28,24],[17,7,19,9],[14,10,16,12],[14,13,16,15],[14,16,16,18],[14,19,16,21],[17,19,19,21],[17,22,19,24],[2,30,2,53],[3,30,3,53],[4,30,4,53],[5,30,5,53],[6,30,6,53],[7,30,7,53],[8,30,8,53],[9,30,9,53],[23,19,25,21],[2,19,4,21],[17,30,17,53],[18,30,18,53],[20,30,20,53],[21,30,21,53],[11,30,11,53],[12,30,12,53],[13,30,13,53],[14,30,14,53],[15,30,15,53],[16,30,16,53],[22,30,22,53],[11,22,13,24],[11,25,13,27],[23,25,25,27],[26,25,28,27],[20,19,22,21],[23,22,25,24],[17,25,19,27],[14,25,16,27],[5,19,7,21],[8,19,10,21],[8,22,10,24],[8,25,10,27],[5,22,7,24],[20,22,22,24],[20,25,22,27],[11,19,13,21],[29,30,29,53],[30,30,30,53],[31,30,31,53],[32,30,32,53],[33,30,33,53],[34,30,34,53],[35,30,35,53],[36,30,36,53],[24,30,24,53],[25,30,25,53],[26,30,26,53],[27,30,27,53],[45,30,45,53],[47,30,47,53],[48,30,48,53],[49,30,49,53],[50,30,50,53],[71,30,71,53],[61,30,61,53],[62,30,62,53],[65,30,65,53],[66,30,66,53],[67,30,67,53],[56,30,56,53],[57,30,57,53],[58,30,58,53],[59,30,59,53],[60,30,60,53],[38,2,38,25],[35,2,35,25],[36,2,36,25],[37,2,37,25],[34,2,34,25],[39,2,39,25],[30,2,32,26],[69,30,69,53],[70,30,70,53],[63,30,63,53],[38,30,38,53],[39,30,39,53],[40,30,40,53],[41,30,41,53],[42,30,42,53],[43,30,43,53],[40,2,40,25],[41,2,41,25],[51,30,51,53],[52,30,52,53],[53,30,53,53],[68,30,68,53],[54,30,54,53],[44,30,44,53],[2,55,2,78],[3,55,3,78],[4,55,4,78],[5,55,5,78],[6,55,6,78],[7,55,7,78],[8,55,8,78],[9,55,9,78],[11,55,11,78],[12,55,12,78],[13,55,13,78],[14,55,14,78],[15,55,15,78],[16,55,16,78],[17,55,17,78],[18,55,18,78],[20,55,20,78],[21,55,21,78],[22,55,22,78],[23,55,23,78],[24,55,24,78],[25,55,25,78],[26,55,26,78],[27,55,27,78],[29,55,29,78],[30,55,30,78],[31,55,31,78],[32,55,32,78],[33,55,33,78],[34,55,34,78],[35,55,35,78],[36,55,36,78],[38,55,38,78],[39,55,39,78],[40,55,40,78],[41,55,41,78],[59,55,59,78],[60,55,60,78],[61,55,61,78],[42,55,42,78],[43,55,43,78],[44,55,44,78],[45,55,45,78],[47,55,47,78],[48,55,48,78],[49,55,49,78],[50,55,50,78],[51,55,51,78],[43,2,43,25],[44,2,44,25],[45,2,45,25],[46,2,46,25],[47,2,47,25],[48,2,48,25],[49,2,49,25],[50,2,50,25],[72,55,72,78],[62,55,62,78],[63,55,63,78],[65,55,65,78],[66,55,66,78],[67,55,67,78],[68,55,68,78],[69,55,69,78],[70,55,70,78],[71,55,71,78],[52,55,52,78],[53,55,53,78],[54,55,54,78],[56,55,56,78],[57,55,57,78],[58,55,58,78]]}
[null,null,null,null,null,null,null,null,null,null,null,null,null,null,null,null,null,null,null,null,null,null,null,null,null,null,null,null,null,null,"実践思考"]
["⑧",null,null,null,null,null,null,null,null,null,"①",null,null,null,null,null,null,null,null,"②",null,null,null,null,null,null,null,null,null,null,"①",{"$f":"C35","v":0}]
[null,{"$f":"AE73","v":0},null,null,{"$f":"AE66","v":0},null,null,{"$f":"AE67","v":0},null,null,{"$f":"AE10","v":0},null,null,{"$f":"AE3","v":0},null,null,{"$f":"AE4","v":0},null,null,{"$f":"AE19","v":0},null,null,{"$f":"AE12","v":0},null,null,{"$f":"AE13","v":0},null,null,null,1,null,null,null,null,null,null,null,null,null,null,null,null,null,null,null,null,null,null,null,null,null,null,null,null,9]
[null,null,null,null,null,null,null,null,null,null,null,null,null,null,null,null,null,null,null,null,null,null,null,null,null,null,null,null,null,2,null,null,null,null,null,null,null,null,null,null,null,null,null,null,null,null,null,null,null,null,null,null,null,null,10]
[null,null,null,null,null,null,null,null,null,null,null,null,null,null,null,null,null,null,null,null,null,null,null,null,null,null,null,null,null,3,null,null,null,null,null,null,null,null,null,null,null,null,null,null,null,null,null,null,null,null,null,null,null,null,11]
[null,{"$f":"AE72","v":0},null,null,{"$f":"C42","v":0},null,null,{"$f":"AE68","v":0},null,null,{"$f":"AE9","v":0},null,null,{"$f":"C35","v":0},null,null,{"$f":"AE5","v":0},null,null,{"$f":"AE18","v":0},null,null,{"$f":"C36","v":0},null,null,{"$f":"AE14","v":0},null,null,null,4,null,null,null,null,null,null,null,null,null,null,null,null,null,null,null,null,null,null,null,null,null,null,null,null,12]
[null,null,null,null,null,null,null,null,null,null,null,null,null,null,null,null,null,null,null,null,null,null,null,null,null,null,null,null,null,5,null,null,null,null,null,null,null,null,null,null,null,null,null,null,null,null,null,null,null,null,null,null,null,null,13]
[null,null,null,null,null,null,null,null,null,null,null,null,null,null,null,null,null,null,null,null,null,null,null,null,null,null,null,null,null,6,null,null,null,null,null,null,null,null,null,null,null,null,null,null,null,null,null,null,null,null,null,null,null,null,14]
[null,{"$f":"AE71","v":0},null,null,{"$f":"AE70","v":0},null,null,{"$f":"AE69","v":0},null,null,{"$f":"AE8","v":0},null,null,{"$f":"AE7","v":0},null,null,{"$f":"AE6","v":0},null,null,{"$f":"AE17","v":0},null,null,{"$f":"AE16","v":0},null,null,{"$f":"AE15","v":0},null,null,null,7,null,null,null,null,null,null,null,null,null,null,null,null,null,null,null,null,null,null,null,null,null,null,null,null,15]
[null,null,null,null,null,null,null,null,null,null,null,null,null,null,null,null,null,null,null,null,null,null,null,null,null,null,null,null,null,8,null,null,null,null,null,null,null,null,null,null,null,null,null,null,null,null,null,null,null,null,null,null,null,null,16]
[null,null,null,null,null,null,null,null,null,null,null,null,null,null,null,null,null,null,null,null,null,null,null,null,null,null,null,null,null,null,"②",{"$f":"C36","v":0}]
["⑦",{"$f":"AE73","v":0},null,null,{"$f":"AE57","v":0},null,null,{"$f":"AE58","v":0},null,null,{"$f":"E6","v":0},null,null,{"$f":"N6","v":0},null,null,{"$f":"W6","v":0},null,null,{"$f":"AE28","v":0},null,null,{"$f":"AE21","v":0},null,null,{"$f":"AE22","v":0},null,null,"③",1,null,null,null,null,null,null,null,null,null,null,null,null,null,null,null,null,null,null,null,null,null,null,null,null,9]
[null,null,null,null,null,null,null,null,null,null,null,null,null,null,null,null,null,null,null,null,null,null,null,null,null,null,null,null,null,2,null,null,null,null,null,null,null,null,null,null,null,null,null,null,null,null,null,null,null,null,null,null,null,null,10]
[null,null,null,null,null,null,null,null,null,null,null,null,null,null,null,null,null,null,null,null,null,null,null,null,null,null,null,null,null,3,null,null,null,null,null,null,null,null,null,null,null,null,null,null,null,null,null,null,null,null,null,null,null,null,11]
[null,{"$f":"AE63","v":0},null,null,{"$f":"C41","v":0},null,null,{"$f":"AE59","v":0},null,null,{"$f":"E15","v":0},null,null,{"$f":"C31","v":0},null,null,{"$f":"W15","v":0},null,null,{"$f":"AE27","v":0},null,null,{"$f":"C37","v":0},null,null,{"$f":"AE23","v":0},null,null,null,4,null,null,null,null,null,null,null,null,null,null,null,null,null,null,null,null,null,null,null,null,null,null,null,null,12]
[null,null,null,null,null,null,null,null,null,null,null,null,null,null,null,null,null,null,null,null,null,null,null,null,null,null,null,null,null,5,null,null,null,null,null,null,null,null,null,null,null,null,null,null,null,null,null,null,null,null,null,null,null,null,13]
[null,null,null,null,null,null,null,null,null,null,null,null,null,null,null,null,null,null,null,null,null,null,null,null,null,null,null,null,null,6,null,null,null,null,null,null,null,null,null,null,null,null,null,null,null,null,null,null,null,null,null,null,null,null,14]
[null,{"$f":"AE62","v":0},null,null,{"$f":"AE61","v":0},null,null,{"$f":"AE60","v":0},null,null,{"$f":"E24","v":0},null,null,{"$f":"N24","v":0},null,null,{"$f":"W24","v":0},null,null,{"$f":"AE26","v":0},null,null,{"$f":"AE25","v":0},null,null,{"$f":"AE24","v":0},null,null,null,7,null,null,null,null,null,null,null,null,null,null,null,null,null,null,null,null,null,null,null,null,null,null,null,null,15]
[null,null,null,null,null,null,null,null,null,null,null,null,null,null,null,null,null,null,null,null,null,null,null,null,null,null,null,null,null,8,null,null,null,null,null,null,null,null,null,null,null,null,null,null,null,null,null,null,null,null,null,null,null,null,16]
[null,null,null,null,null,null,null,null,null,null,null,null,null,null,null,null,null,null,null,null,null,null,null,null,null,null,null,null,null,null,"③",{"$f":"C37","v":0}]
["⑥",{"$f":"AE55","v":0},null,null,{"$f":"AE48","v":0},null,null,{"$f":"AE49","v":0},null,null,{"$f":"AE46","v":0},null,null,{"$f":"AE39","v":0},null,null,{"$f":"AE40","v":0},null,null,{"$f":"AE37","v":0},null,null,{"$f":"AE30","v":0},null,null,{"$f":"AE31","v":0},null,null,"④",1,null,null,null,null,null,null,null,null,null,null,null,null,null,null,null,null,null,null,null,null,null,null,null,null,9]
[null,null,null,null,null,null,null,null,null,null,null,null,null,null,null,null,null,null,null,null,null,null,null,null,null,null,null,null,null,2,null,null,null,null,null,null,null,null,null,null,null,null,null,null,null,null,null,null,null,null,null,null,null,null,10]
[null,null,null,null,null,null,null,null,null,null,null,null,null,null,null,null,null,null,null,null,null,null,null,null,null,null,null,null,null,3,null,null,null,null,null,null,null,null,null,null,null,null,null,null,null,null,null,null,null,null,null,null,null,null,11]
[null,{"$f":"AE54","v":0},null,null,{"$f":"C40","v":0},null,null,{"$f":"AE50","v":0},null,null,{"$f":"AE45","v":0},null,null,{"$f":"C39","v":0},null,null,{"$f":"AE41","v":0},null,null,{"$f":"AE36","v":0},null,null,{"$f":"C38","v":0},null,null,{"$f":"AE32","v":0},null,null,null,4,null,null,null,null,null,null,null,null,null,null,null,null,null,null,null,null,null,null,null,null,null,null,null,null,12]
[null,null,null,null,null,null,null,null,null,null,null,null,null,null,null,null,null,null,null,null,null,null,null,null,null,null,null,null,null,5,null,null,null,null,null,null,null,null,null,null,null,null,null,null,null,null,null,null,null,null,null,null,null,null,13]
[null,null,null,null,null,null,null,null,null,null,null,null,null,null,null,null,null,null,null,null,null,null,null,null,null,null,null,null,null,6,null,null,null,null,null,null,null,null,null,null,null,null,null,null,null,null,null,null,null,null,null,null,null,null,14]
[null,{"$f":"AE53","v":0},null,null,{"$f":"AE52","v":0},null,null,{"$f":"AE51","v":0},null,null,{"$f":"AE44","v":0},null,null,{"$f":"AE43","v":0},null,null,{"$f":"AE42","v":0},null,null,{"$f":"AE35","v":0},null,null,{"$f":"AE34","v":0},null,null,{"$f":"AE33","v":0},null,null,null,7,null,null,null,null,null,null,null,null,null,null,null,null,null,null,null,null,null,null,null,null,null,null,null,null,15]
[null,null,null,null,null,null,null,null,null,null,null,null,null,null,null,null,null,null,null,null,null,null,null,null,null,null,null,null,null,8,null,null,null,null,null,null,null,null,null,null,null,null,null,null,null,null,null,null,null,null,null,null,null,null,16]
[null,null,null,null,null,null,null,null,null,null,null,null,null,null,null,null,null,null,null,null,null,null,null,null,null,null,null,null,null,null,"④",{"$f":"C38","v":0}]
[null,null,null,null,null,null,null,null,null,null,"⑤",null,null,null,null,null,null,null,null,null,null,null,null,null,null,null,null,null,null,1,null,null,null,null,null,null,null,null,null,null,null,null,null,null,null,null,null,null,null,null,null,null,null,null,9]
[null,null,null,null,null,null,null,null,null,null,null,null,null,null,null,null,null,null,null,null,null,null,null,null,null,null,null,null,null,2,null,null,null,null,null,null,null,null,null,null,null,null,null,null,null,null,null,null,null,null,null,null,null,null,10]
[null,null,null,null,null,null,null,null,null,null,null,null,null,null,null,null,null,null,null,null,null,null,null,null,null,null,null,null,null,3,null,null,null,null,null,null,null,null,null,null,null,null,null,null,null,null,null,null,null,null,null,null,null,null,11]
[null,null,null,null,null,null,null,null,null,null,null,null,null,null,null,null,null,null,null,null,null,null,null,null,null,null,null,null,null,4,null,null,null,null,null,null,null,null,null,null,null,null,null,null,null,null,null,null,null,null,null,null,null,null,12]
[null,null,"基礎思考",null,null,null,null,null,null,null,null,null,null,null,null,null,null,null,null,null,null,null,null,null,null,null,null,null,null,5,null,null,null,null,null,null,null,null,null,null,null,null,null,null,null,null,null,null,null,null,null,null,null,null,13]
[null,"①",null,null,null,null,null,null,null,null,null,null,null,null,null,null,null,null,null,null,null,null,null,null,null,null,null,null,null,6,null,null,null,null,null,null,null,null,null,null,null,null,null,null,null,null,null,null,null,null,null,null,null,null,14]
[null,"②",null,null,null,null,null,null,null,null,null,null,null,null,null,null,null,null,null,null,null,null,null,null,null,null,null,null,null,7,null,null,null,null,null,null,null,null,null,null,null,null,null,null,null,null,null,null,null,null,null,null,null,null,15]
[null,"③.",null,null,null,null,null,null,null,null,null,null,null,null,null,null,null,null,null,null,null,null,null,null,null,null,null,null,null,8,null,null,null,null,null,null,null,null,null,null,null,null,null,null,null,null,null,null,null,null,null,null,null,null,16]
[null,"④",null,null,null,null,null,null,null,null,null,null,null,null,null,null,null,null,null,null,null,null,null,null,null,null,null,null,null,null,"⑤",{"$f":"C39","v":0}]
[null,"⑤",null,null,null,null,null,null,null,null,null,null,null,null,null,null,null,null,null,null,null,null,null,null,null,null,null,null,null,1,null,null,null,null,null,null,null,null,null,null,null,null,null,null,null,null,null,null,null,null,null,null,null,null,9]
[null,"⑥",null,null,null,null,null,null,null,null,null,null,null,null,null,null,null,null,null,null,null,null,null,null,null,null,null,null,null,2,null,null,null,null,null,null,null,null,null,null,null,null,null,null,null,null,null,null,null,null,null,null,null,null,10]
[null,"⑦",null,null,null,null,null,null,null,null,null,null,null,null,null,null,null,null,null,null,null,null,null,null,null,null,null,null,null,3,null,null,null,null,null,null,null,null,null,null,null,null,null,null,null,null,null,null,null,null,null,null,null,null,11]
[null,"⑧",null,null,null,null,null,null,null,null,null,null,null,null,null,null,null,null,null,null,null,null,null,null,null,null,null,null,null,4,null,null,null,null,null,null,null,null,null,null,null,null,null,null,null,null,null,null,null,null,null,null,null,null,12]
[null,null,null,null,null,null,null,null,null,null,null,null,null,null,null,null,null,null,null,null,null,null,null,null,null,null,null,null,null,5,null,null,null,null,null,null,null,null,null,null,null,null,null,null,null,null,null,null,null,null,null,null,null,null,13]
[null,"⑨",null,null,null,null,null,null,null,null,null,null,null,null,null,null,null,null,null,null,null,null,null,null,null,null,null,null,null,6,null,null,null,null,null,null,null,null,null,null,null,null,null,null,null,null,null,null,null,null,null,null,null,null,14]
[null,"⑩",null,null,null,null,null,null,null,null,null,null,null,null,null,null,null,null,null,null,null,null,null,null,null,null,null,null,null,7,null,null,null,null,null,null,null,null,null,null,null,null,null,null,null,null,null,null,null,null,null,null,null,null,15]
[null,"⑪",null,null,null,null,null,null,null,null,null,null,null,null,null,null,null,null,null,null,null,null,null,null,null,null,null,null,null,8,null,null,null,null,null,null,null,null,null,null,null,null,null,null,null,null,null,null,null,null,null,null,null,null,16]
[null,"⑫",null,null,null,null,null,null,null,null,null,null,null,null,null,null,null,null,null,null,null,null,null,null,null,null,null,null,null,null,"⑥",{"$f":"C40","v":0}]
[null,"⑬",null,null,null,null,null,null,null,null,null,null,null,null,null,null,null,null,null,null,null,null,null,null,null,null,null,null,null,1,null,null,null,null,null,null,null,null,null,null,null,null,null,null,null,null,null,null,null,null,null,null,null,null,9]
[null,"⑭",null,null,null,null,null,null,null,null,null,null,null,null,null,null,null,null,null,null,null,null,null,null,null,null,null,null,null,2,null,null,null,null,null,null,null,null,null,null,null,null,null,null,null,null,null,null,null,null,null,null,null,null,10]
[null,"⑮　　　",null,null,null,null,null,null,null,null,null,null,null,null,null,null,null,null,null,null,null,null,null,null,null,null,null,null,null,3,null,null,null,null,null,null,null,null,null,null,null,null,null,null,null,null,null,null,null,null,null,null,null,null,11]
[null,"⑯",null,null,null,null,null,null,null,null,null,null,null,null,null,null,null,null,null,null,null,null,null,null,null,null,null,null,null,4,null,null,null,null,null,null,null,null,null,null,null,null,null,null,null,null,null,null,null,null,null,null,null,null,12]
[null,null,null,null,null,null,null,null,null,null,null,null,null,null,null,null,null,null,null,null,null,null,null,null,null,null,null,null,null,5,null,null,null,null,null,null,null,null,null,null,null,null,null,null,null,null,null,null,null,null,null,null,null,null,13]
[null,null,null,null,null,null,null,null,null,null,null,null,null,null,null,null,null,null,null,null,null,null,null,null,null,null,null,null,null,6,null,null,null,null,null,null,null,null,null,null,null,null,null,null,null,null,null,null,null,null,null,null,null,null,14]
[null,null,null,null,null,null,null,null,null,null,null,null,null,null,null,null,null,null,null,null,null,null,null,null,null,null,null,null,null,7,null,null,null,null,null,null,null,null,null,null,null,null,null,null,null,null,null,null,null,null,null,null,null,null,15]
[null,null,null,null,null,null,null,null,null,null,null,null,null,null,null,null,null,null,null,null,null,null,null,null,null,null,null,null,null,8,null,null,null,null,null,null,null,null,null,null,null,null,null,null,null,null,null,null,null,null,null,null,null,null,16]
[null,null,null,null,null,null,null,null,null,null,null,null,null,null,null,null,null,null,null,null,null,null,null,null,null,null,null,null,null,null,"⑦",{"$f":"C41","v":0}]
[null,null,null,null,null,null,null,null,null,null,null,null,null,null,null,null,null,null,null,null,null,null,null,null,null,null,null,null,null,1,null,null,null,null,null,null,null,null,null,null,null,null,null,null,null,null,null,null,null,null,null,null,null,null,9]
[null,null,null,null,null,null,null,null,null,null,null,null,null,null,null,null,null,null,null,null,null,null,null,null,null,null,null,null,null,2,null,null,null,null,null,null,null,null,null,null,null,null,null,null,null,null,null,null,null,null,null,null,null,null,10]
[null,null,null,null,null,null,null,null,null,null,null,null,null,null,null,null,null,null,null,null,null,null,null,null,null,null,null,null,null,3,null,null,null,null,null,null,null,null,null,null,null,null,null,null,null,null,null,null,null,null,null,null,null,null,11]
[null,null,null,null,null,null,null,null,null,null,null,null,null,null,null,null,null,null,null,null,null,null,null,null,null,null,null,null,null,4,null,null,null,null,null,null,null,null,null,null,null,null,null,null,null,null,null,null,null,null,null,null,null,null,12]
[null,null,null,null,null,null,null,null,null,null,null,null,null,null,null,null,null,null,null,null,null,null,null,null,null,null,null,null,null,5,null,null,null,null,null,null,null,null,null,null,null,null,null,null,null,null,null,null,null,null,null,null,null,null,13]
[null,null,null,null,null,null,null,null,null,null,null,null,null,null,null,null,null,null,null,null,null,null,null,null,null,null,null,null,null,6,null,null,null,null,null,null,null,null,null,null,null,null,null,null,null,null,null,null,null,null,null,null,null,null,14]
[null,null,null,null,null,null,null,null,null,null,null,null,null,null,null,null,null,null,null,null,null,null,null,null,null,null,null,null,null,7,null,null,null,null,null,null,null,null,null,null,null,null,null,null,null,null,null,null,null,null,null,null,null,null,15]
[null,null,null,null,null,null,null,null,null,null,null,null,null,null,null,null,null,null,null,null,null,null,null,null,null,null,null,null,null,8,null,null,null,null,null,null,null,null,null,null,null,null,null,null,null,null,null,null,null,null,null,null,null,null,16]
[null,null,null,null,null,null,null,null,null,null,null,null,null,null,null,null,null,null,null,null,null,null,null,null,null,null,null,null,null,null,"⑧",{"$f":"C42","v":0}]
[null,null,null,null,null,null,null,null,null,null,null,null,null,null,null,null,null,null,null,null,null,null,null,null,null,null,null,null,null,1,null,null,null,null,null,null,null,null,null,null,null,null,null,null,null,null,null,null,null,null,null,null,null,null,9]
[null,null,null,null,null,null,null,null,null,null,null,null,null,null,null,null,null,null,null,null,null,null,null,null,null,null,null,null,null,2,null,null,null,null,null,null,null,null,null,null,null,null,null,null,null,null,null,null,null,null,null,null,null,null,10]
[null,null,null,null,null,null,null,null,null,null,null,null,null,null,null,null,null,null,null,null,null,null,null,null,null,null,null,null,null,3,null,null,null,null,null,null,null,null,null,null,null,null,null,null,null,null,null,null,null,null,null,null,null,null,11]
[null,null,null,null,null,null,null,null,null,null,null,null,null,null,null,null,null,null,null,null,null,null,null,null,null,null,null,null,null,4,null,null,null,null,null,null,null,null,null,null,null,null,null,null,null,null,null,null,null,null,null,null,null,null,12]
[null,null,null,null,null,null,null,null,null,null,null,null,null,null,null,null,null,null,null,null,null,null,null,null,null,null,null,null,null,5,null,null,null,null,null,null,null,null,null,null,null,null,null,null,null,null,null,null,null,null,null,null,null,null,13]
[null,null,null,null,null,null,null,null,null,null,null,null,null,null,null,null,null,null,null,null,null,null,null,null,null,null,null,null,null,6,null,null,null,null,null,null,null,null,null,null,null,null,null,null,null,null,null,null,null,null,null,null,null,null,14]
[null,null,null,null,null,null,null,null,null,null,null,null,null,null,null,null,null,null,null,null,null,null,null,null,null,null,null,null,null,7,null,null,null,null,null,null,null,null,null,null,null,null,null,null,null,null,null,null,null,null,null,null,null,null,15]
[null,null,null,null,null,null,null,null,null,null,null,null,null,null,null,null,null,null,null,null,null,null,null,null,null,null,null,null,null,8,null,null,null,null,null,null,null,null,null,null,null,null,null,null,null,null,null,null,null,null,null,null,null,null,16]

{"sheet":"①","index":3,"n_rows":73,"n_cols":55,"rows_kept":73,"cut":false,"hidden":false,"merged":[[68,30,68,53],[69,30,69,53],[70,30,70,53],[71,30,71,53],[72,30,72,53],[52,30,52,53],[65,30,65,53],[53,30,53,53],[66,30,66,53],[54,30,54,53],[67,30,67,53],[61,30,61,53],[62,30,62,53],[63,30,63,53],[51,30,51,53],[57,30,57,53],[45,30,45,53],[58,30,58,53],[59,30,59,53],[47,30,47,53],[60,30,60,53],[48,30,48,53],[41,2,41,25],[41,30,41,53],[42,30,42,53],[43,30,43,53],[56,30,56,53],[44,30,44,53],[37,2,37,25],[38,2,38,25],[38,30,38,53],[39,2,39,25],[39,30,39,53],[40,2,40,25],[40,30,40,53],[49,30,49,53],[50,30,50,53],[35,2,35,25],[35,30,35,53],[36,2,36,25],[36,30,36,53],[30,2,32,26],[30,30,30,53],[31,30,31,53],[32,30,32,53],[33,2,33,4],[33,30,33,53],[29,30,29,53],[23,1,25,3],[26,1,28,3],[26,4,28,6],[23,10,25,12],[26,10,28,12],[26,13,28,15],[34,2,34,25],[34,30,34,53],[23,30,23,53],[24,30,24,53],[25,30,25,53],[20,1,22,3],[23,4,25,6],[26,7,28,9],[20,10,22,12],[23,13,25,15],[26,16,28,18],[23,16,25,18],[20,22,22,24],[20,25,22,27],[23,25,25,27],[20,4,22,6],[20,7,22,9],[23,7,25,9],[20,13,22,15],[20,30,20,53],[21,30,21,53],[22,30,22,53],[23,19,25,21],[26,19,28,21],[26,22,28,24],[26,30,26,53],[27,30,27,53],[17,16,19,18],[20,16,22,18],[20,19,22,21],[23,22,25,24],[26,25,28,27],[9,30,9,53],[8,25,10,27],[14,1,16,3],[17,1,19,3],[17,4,19,6],[17,10,19,12],[17,13,19,15],[11,19,13,21],[14,22,16,24],[17,25,19,27],[14,30,14,53],[15,30,15,53],[16,30,16,53],[11,1,13,3],[14,4,16,6],[17,7,19,9],[14,10,16,12],[14,13,16,15],[14,16,16,18],[14,19,16,21],[17,19,19,21],[17,22,19,24],[17,30,17,53],[18,30,18,53],[11,22,13,24],[11,25,13,27],[14,25,16,27],[11,30,11,53],[12,30,12,53],[13,30,13,53],[11,4,13,6],[11,7,13,9],[14,7,16,9],[11,10,13,12],[11,13,13,15],[11,16,13,18],[0,30,0,32],[2,4,4,6],[2,7,4,9],[5,7,7,9],[2,13,4,15],[2,16,4,18],[5,16,7,18],[2,22,4,24],[2,25,4,27],[5,25,7,27],[2,30,2,53],[3,30,3,53],[4,30,4,53],[5,10,7,12],[5,19,7,21],[5,22,7,24],[6,30,6,53],[7,30,7,53],[2,1,4,3],[5,4,7,6],[8,7,10,9],[2,10,4,12],[5,13,7,15],[8,16,10,18],[2,19,4,21],[2,55,2,78],[3,55,3,78],[4,55,4,78],[5,55,5,78],[6,55,6,78],[7,55,7,78],[8,55,8,78],[9,55,9,78],[5,30,5,53],[5,1,7,3],[8,1,10,3],[8,4,10,6],[8,10,10,12],[8,13,10,15],[8,19,10,21],[8,22,10,24],[8,30,8,53],[11,55,11,78],[12,55,12,78],[13,55,13,78],[14,55,14,78],[15,55,15,78],[16,55,16,78],[17,55,17,78],[18,55,18,78],[20,55,20,78],[21,55,21,78],[22,55,22,78],[23,55,23,78],[24,55,24,78],[25,55,25,78],[26,55,26,78],[27,55,27,78],[29,55,29,78],[30,55,30,78],[31,55,31,78],[32,55,32,78],[33,55,33,78],[34,55,34,78],[35,55,35,78],[36,55,36,78],[38,55,38,78],[39,55,39,78],[40,55,40,78],[41,55,41,78],[42,55,42,78],[43,55,43,78],[44,55,44,78],[45,55,45,78],[47,55,47,78],[48,55,48,78],[49,55,49,78],[50,55,50,78],[51,55,51,78],[52,55,52,78],[53,55,53,78],[54,55,54,78],[56,55,56,78],[57,55,57,78],[58,55,58,78],[59,55,59,78],[60,55,60,78],[61,55,61,78],[72,55,72,78],[62,55,62,78],[63,55,63,78],[65,55,65,78],[66,55,66,78],[67,55,67,78],[68,55,68,78],[69,55,69,78],[70,55,70,78],[71,55,71,78]]}
[null,null,null,null,null,null,null,null,null,null,null,null,null,null,null,null,null,null,null,null,null,null,null,null,null,null,null,null,null,null,"実践思考"]
["⑧",null,null,null,null,null,null,null,null,null,"①",null,null,null,null,null,null,null,null,"②",null,null,null,null,null,null,null,null,null,null,"①",{"$f":"C35","v":0}]
[null,{"$f":"AE73","v":0},null,null,{"$f":"AE66","v":0},null,null,{"$f":"AE67","v":0},null,null,{"$f":"AE10","v":0},null,null,{"$f":"AE3","v":0},null,null,{"$f":"AE4","v":0},null,null,{"$f":"AE19","v":0},null,null,{"$f":"AE12","v":0},null,null,{"$f":"AE13","v":0},null,null,null,1,null,null,null,null,null,null,null,null,null,null,null,null,null,null,null,null,null,null,null,null,null,null,null,null,9]
[null,null,null,null,null,null,null,null,null,null,null,null,null,null,null,null,null,null,null,null,null,null,null,null,null,null,null,null,null,2,null,null,null,null,null,null,null,null,null,null,null,null,null,null,null,null,null,null,null,null,null,null,null,null,10]
[null,null,null,null,null,null,null,null,null,null,null,null,null,null,null,null,null,null,null,null,null,null,null,null,null,null,null,null,null,3,null,null,null,null,null,null,null,null,null,null,null,null,null,null,null,null,null,null,null,null,null,null,null,null,11]
[null,{"$f":"AE72","v":0},null,null,{"$f":"C42","v":0},null,null,{"$f":"AE68","v":0},null,null,{"$f":"AE9","v":0},null,null,{"$f":"C35","v":0},null,null,{"$f":"AE5","v":0},null,null,{"$f":"AE18","v":0},null,null,{"$f":"C36","v":0},null,null,{"$f":"AE14","v":0},null,null,null,4,null,null,null,null,null,null,null,null,null,null,null,null,null,null,null,null,null,null,null,null,null,null,null,null,12]
[null,null,null,null,null,null,null,null,null,null,null,null,null,null,null,null,null,null,null,null,null,null,null,null,null,null,null,null,null,5,null,null,null,null,null,null,null,null,null,null,null,null,null,null,null,null,null,null,null,null,null,null,null,null,13]
[null,null,null,null,null,null,null,null,null,null,null,null,null,null,null,null,null,null,null,null,null,null,null,null,null,null,null,null,null,6,null,null,null,null,null,null,null,null,null,null,null,null,null,null,null,null,null,null,null,null,null,null,null,null,14]
[null,{"$f":"AE71","v":0},null,null,{"$f":"AE70","v":0},null,null,{"$f":"AE69","v":0},null,null,{"$f":"AE8","v":0},null,null,{"$f":"AE7","v":0},null,null,{"$f":"AE6","v":0},null,null,{"$f":"AE17","v":0},null,null,{"$f":"AE16","v":0},null,null,{"$f":"AE15","v":0},null,null,null,7,null,null,null,null,null,null,null,null,null,null,null,null,null,null,null,null,null,null,null,null,null,null,null,null,15]
[null,null,null,null,null,null,null,null,null,null,null,null,null,null,null,null,null,null,null,null,null,null,null,null,null,null,null,null,null,8,null,null,null,null,null,null,null,null,null,null,null,null,null,null,null,null,null,null,null,null,null,null,null,null,16]
[null,null,null,null,null,null,null,null,null,null,null,null,null,null,null,null,null,null,null,null,null,null,null,null,null,null,null,null,null,null,"②",{"$f":"C36","v":0}]
["⑦",{"$f":"AE73","v":0},null,null,{"$f":"AE57","v":0},null,null,{"$f":"AE58","v":0},null,null,{"$f":"E6","v":0},null,null,{"$f":"N6","v":0},null,null,{"$f":"W6","v":0},null,null,{"$f":"AE28","v":0},null,null,{"$f":"AE21","v":0},null,null,{"$f":"AE22","v":0},null,null,"③",1,null,null,null,null,null,null,null,null,null,null,null,null,null,null,null,null,null,null,null,null,null,null,null,null,9]
[null,null,null,null,null,null,null,null,null,null,null,null,null,null,null,null,null,null,null,null,null,null,null,null,null,null,null,null,null,2,null,null,null,null,null,null,null,null,null,null,null,null,null,null,null,null,null,null,null,null,null,null,null,null,10]
[null,null,null,null,null,null,null,null,null,null,null,null,null,null,null,null,null,null,null,null,null,null,null,null,null,null,null,null,null,3,null,null,null,null,null,null,null,null,null,null,null,null,null,null,null,null,null,null,null,null,null,null,null,null,11]
[null,{"$f":"AE63","v":0},null,null,{"$f":"C41","v":0},null,null,{"$f":"AE59","v":0},null,null,{"$f":"E15","v":0},null,null,{"$f":"'I　FACE'!C35","v":0},null,null,{"$f":"W15","v":0},null,null,{"$f":"AE27","v":0},null,null,{"$f":"C37","v":0},null,null,{"$f":"AE23","v":0},null,null,null,4,null,null,null,null,null,null,null,null,null,null,null,null,null,null,null,null,null,null,null,null,null,null,null,null,12]
[null,null,null,null,null,null,null,null,null,null,null,null,null,null,null,null,null,null,null,null,null,null,null,null,null,null,null,null,null,5,null,null,null,null,null,null,null,null,null,null,null,null,null,null,null,null,null,null,null,null,null,null,null,null,13]
[null,null,null,null,null,null,null,null,null,null,null,null,null,null,null,null,null,null,null,null,null,null,null,null,null,null,null,null,null,6,null,null,null,null,null,null,null,null,null,null,null,null,null,null,null,null,null,null,null,null,null,null,null,null,14]
[null,{"$f":"AE62","v":0},null,null,{"$f":"AE61","v":0},null,null,{"$f":"AE60","v":0},null,null,{"$f":"E24","v":0},null,null,{"$f":"N24","v":0},null,null,{"$f":"W24","v":0},null,null,{"$f":"AE26","v":0},null,null,{"$f":"AE25","v":0},null,null,{"$f":"AE24","v":0},null,null,null,7,null,null,null,null,null,null,null,null,null,null,null,null,null,null,null,null,null,null,null,null,null,null,null,null,15]
[null,null,null,null,null,null,null,null,null,null,null,null,null,null,null,null,null,null,null,null,null,null,null,null,null,null,null,null,null,8,null,null,null,null,null,null,null,null,null,null,null,null,null,null,null,null,null,null,null,null,null,null,null,null,16]
[null,null,null,null,null,null,null,null,null,null,null,null,null,null,null,null,null,null,null,null,null,null,null,null,null,null,null,null,null,null,"③",{"$f":"C37","v":0}]
["⑥",{"$f":"AE55","v":0},null,null,{"$f":"AE48","v":0},null,null,{"$f":"AE49","v":0},null,null,{"$f":"AE46","v":0},null,null,{"$f":"AE39","v":0},null,null,{"$f":"AE40","v":0},null,null,{"$f":"AE37","v":0},null,null,{"$f":"AE30","v":0},null,null,{"$f":"AE31","v":0},null,null,"④",1,null,null,null,null,null,null,null,null,null,null,null,null,null,null,null,null,null,null,null,null,null,null,null,null,9]
[null,null,null,null,null,null,null,null,null,null,null,null,null,null,null,null,null,null,null,null,null,null,null,null,null,null,null,null,null,2,null,null,null,null,null,null,null,null,null,null,null,null,null,null,null,null,null,null,null,null,null,null,null,null,10]
[null,null,null,null,null,null,null,null,null,null,null,null,null,null,null,null,null,null,null,null,null,null,null,null,null,null,null,null,null,3,null,null,null,null,null,null,null,null,null,null,null,null,null,null,null,null,null,null,null,null,null,null,null,null,11]
[null,{"$f":"AE54","v":0},null,null,{"$f":"C40","v":0},null,null,{"$f":"AE50","v":0},null,null,{"$f":"AE45","v":0},null,null,{"$f":"C39","v":0},null,null,{"$f":"AE41","v":0},null,null,{"$f":"AE36","v":0},null,null,{"$f":"C38","v":0},null,null,{"$f":"AE32","v":0},null,null,null,4,null,null,null,null,null,null,null,null,null,null,null,null,null,null,null,null,null,null,null,null,null,null,null,null,12]
[null,null,null,null,null,null,null,null,null,null,null,null,null,null,null,null,null,null,null,null,null,null,null,null,null,null,null,null,null,5,null,null,null,null,null,null,null,null,null,null,null,null,null,null,null,null,null,null,null,null,null,null,null,null,13]
[null,null,null,null,null,null,null,null,null,null,null,null,null,null,null,null,null,null,null,null,null,null,null,null,null,null,null,null,null,6,null,null,null,null,null,null,null,null,null,null,null,null,null,null,null,null,null,null,null,null,null,null,null,null,14]
[null,{"$f":"AE53","v":0},null,null,{"$f":"AE52","v":0},null,null,{"$f":"AE51","v":0},null,null,{"$f":"AE44","v":0},null,null,{"$f":"AE43","v":0},null,null,{"$f":"AE42","v":0},null,null,{"$f":"AE35","v":0},null,null,{"$f":"AE34","v":0},null,null,{"$f":"AE33","v":0},null,null,null,7,null,null,null,null,null,null,null,null,null,null,null,null,null,null,null,null,null,null,null,null,null,null,null,null,15]
[null,null,null,null,null,null,null,null,null,null,null,null,null,null,null,null,null,null,null,null,null,null,null,null,null,null,null,null,null,8,null,null,null,null,null,null,null,null,null,null,null,null,null,null,null,null,null,null,null,null,null,null,null,null,16]
[null,null,null,null,null,null,null,null,null,null,null,null,null,null,null,null,null,null,null,null,null,null,null,null,null,null,null,null,null,null,"④",{"$f":"C38","v":0}]
[null,null,null,null,null,null,null,null,null,null,"⑤",null,null,null,null,null,null,null,null,null,null,null,null,null,null,null,null,null,null,1,null,null,null,null,null,null,null,null,null,null,null,null,null,null,null,null,null,null,null,null,null,null,null,null,9]
[null,null,{"$f":"'I　FACE'!C31","v":0},null,null,null,null,null,null,null,null,null,null,null,null,null,null,null,null,null,null,null,null,null,null,null,null,null,null,2,null,null,null,null,null,null,null,null,null,null,null,null,null,null,null,null,null,null,null,null,null,null,null,null,10]
[null,null,null,null,null,null,null,null,null,null,null,null,null,null,null,null,null,null,null,null,null,null,null,null,null,null,null,null,null,3,null,null,null,null,null,null,null,null,null,null,null,null,null,null,null,null,null,null,null,null,null,null,null,null,11]
[null,null,null,null,null,null,null,null,null,null,null,null,null,null,null,null,null,null,null,null,null,null,null,null,null,null,null,null,null,4,null,null,null,null,null,null,null,null,null,null,null,null,null,null,null,null,null,null,null,null,null,null,null,null,12]
[null,null,"基礎思考",null,null,null,null,null,null,null,null,null,null,null,null,null,null,null,null,null,null,null,null,null,null,null,null,null,null,5,null,null,null,null,null,null,null,null,null,null,null,null,null,null,null,null,null,null,null,null,null,null,null,null,13]
[null,"①",{"$f":"'I　FACE'!AE3","v":0},null,null,null,null,null,null,null,null,null,null,null,null,null,null,null,null,null,null,null,null,null,null,null,null,null,null,6,null,null,null,null,null,null,null,null,null,null,null,null,null,null,null,null,null,null,null,null,null,null,null,null,14]
[null,"②",{"$f":"'I　FACE'!AE4","v":0},null,null,null,null,null,null,null,null,null,null,null,null,null,null,null,null,null,null,null,null,null,null,null,null,null,null,7,null,null,null,null,null,null,null,null,null,null,null,null,null,null,null,null,null,null,null,null,null,null,null,null,15]
[null,"③.",{"$f":"'I　FACE'!AE5","v":0},null,null,null,null,null,null,null,null,null,null,null,null,null,null,null,null,null,null,null,null,null,null,null,null,null,null,8,null,null,null,null,null,null,null,null,null,null,null,null,null,null,null,null,null,null,null,null,null,null,null,null,16]
[null,"④",{"$f":"'I　FACE'!AE6","v":0},null,null,null,null,null,null,null,null,null,null,null,null,null,null,null,null,null,null,null,null,null,null,null,null,null,null,null,"⑤",{"$f":"C39","v":0}]
[null,"⑤",{"$f":"'I　FACE'!AE7","v":0},null,null,null,null,null,null,null,null,null,null,null,null,null,null,null,null,null,null,null,null,null,null,null,null,null,null,1,null,null,null,null,null,null,null,null,null,null,null,null,null,null,null,null,null,null,null,null,null,null,null,null,9]
[null,"⑥",{"$f":"'I　FACE'!AE8","v":0},null,null,null,null,null,null,null,null,null,null,null,null,null,null,null,null,null,null,null,null,null,null,null,null,null,null,2,null,null,null,null,null,null,null,null,null,null,null,null,null,null,null,null,null,null,null,null,null,null,null,null,10]
[null,"⑦",{"$f":"'I　FACE'!AE9","v":0},null,null,null,null,null,null,null,null,null,null,null,null,null,null,null,null,null,null,null,null,null,null,null,null,null,null,3,null,null,null,null,null,null,null,null,null,null,null,null,null,null,null,null,null,null,null,null,null,null,null,null,11]
[null,"⑧",{"$f":"'I　FACE'!AE10","v":0},null,null,null,null,null,null,null,null,null,null,null,null,null,null,null,null,null,null,null,null,null,null,null,null,null,null,4,null,null,null,null,null,null,null,null,null,null,null,null,null,null,null,null,null,null,null,null,null,null,null,null,12]
[null,null,null,null,null,null,null,null,null,null,null,null,null,null,null,null,null,null,null,null,null,null,null,null,null,null,null,null,null,5,null,null,null,null,null,null,null,null,null,null,null,null,null,null,null,null,null,null,null,null,null,null,null,null,13]
[null,null,null,null,null,null,null,null,null,null,null,null,null,null,null,null,null,null,null,null,null,null,null,null,null,null,null,null,null,6,null,null,null,null,null,null,null,null,null,null,null,null,null,null,null,null,null,null,null,null,null,null,null,null,14]
[null,null,null,null,null,null,null,null,null,null,null,null,null,null,null,null,null,null,null,null,null,null,null,null,null,null,null,null,null,7,null,null,null,null,null,null,null,null,null,null,null,null,null,null,null,null,null,null,null,null,null,null,null,null,15]
[null,null,null,null,null,null,null,null,null,null,null,null,null,null,null,null,null,null,null,null,null,null,null,null,null,null,null,null,null,8,null,null,null,null,null,null,null,null,null,null,null,null,null,null,null,null,null,null,null,null,null,null,null,null,16]
[null,null,null,null,null,null,null,null,null,null,null,null,null,null,null,null,null,null,null,null,null,null,null,null,null,null,null,null,null,null,"⑥",{"$f":"C40","v":0}]
[null,null,null,null,null,null,null,null,null,null,null,null,null,null,null,null,null,null,null,null,null,null,null,null,null,null,null,null,null,1,null,null,null,null,null,null,null,null,null,null,null,null,null,null,null,null,null,null,null,null,null,null,null,null,9]
[null,null,null,null,null,null,null,null,null,null,null,null,null,null,null,null,null,null,null,null,null,null,null,null,null,null,null,null,null,2,null,null,null,null,null,null,null,null,null,null,null,null,null,null,null,null,null,null,null,null,null,null,null,null,10]
[null,null,null,null,null,null,null,null,null,null,null,null,null,null,null,null,null,null,null,null,null,null,null,null,null,null,null,null,null,3,null,null,null,null,null,null,null,null,null,null,null,null,null,null,null,null,null,null,null,null,null,null,null,null,11]
[null,null,null,null,null,null,null,null,null,null,null,null,null,null,null,null,null,null,null,null,null,null,null,null,null,null,null,null,null,4,null,null,null,null,null,null,null,null,null,null,null,null,null,null,null,null,null,null,null,null,null,null,null,null,12]
[null,null,null,null,null,null,null,null,null,null,null,null,null,null,null,null,null,null,null,null,null,null,null,null,null,null,null,null,null,5,null,null,null,null,null,null,null,null,null,null,null,null,null,null,null,null,null,null,null,null,null,null,null,null,13]
[null,null,null,null,null,null,null,null,null,null,null,null,null,null,null,null,null,null,null,null,null,null,null,null,null,null,null,null,null,6,null,null,null,null,null,null,null,null,null,null,null,null,null,null,null,null,null,null,null,null,null,null,null,null,14]
[null,null,null,null,null,null,null,null,null,null,null,null,null,null,null,null,null,null,null,null,null,null,null,null,null,null,null,null,null,7,null,null,null,null,null,null,null,null,null,null,null,null,null,null,null,null,null,null,null,null,null,null,null,null,15]
[null,null,null,null,null,null,null,null,null,null,null,null,null,null,null,null,null,null,null,null,null,null,null,null,null,null,null,null,null,8,null,null,null,null,null,null,null,null,null,null,null,null,null,null,null,null,null,null,null,null,null,null,null,null,16]
[null,null,null,null,null,null,null,null,null,null,null,null,null,null,null,null,null,null,null,null,null,null,null,null,null,null,null,null,null,null,"⑦",{"$f":"C41","v":0}]
[null,null,null,null,null,null,null,null,null,null,null,null,null,null,null,null,null,null,null,null,null,null,null,null,null,null,null,null,null,1,null,null,null,null,null,null,null,null,null,null,null,null,null,null,null,null,null,null,null,null,null,null,null,null,9]
[null,null,null,null,null,null,null,null,null,null,null,null,null,null,null,null,null,null,null,null,null,null,null,null,null,null,null,null,null,2,null,null,null,null,null,null,null,null,null,null,null,null,null,null,null,null,null,null,null,null,null,null,null,null,10]
[null,null,null,null,null,null,null,null,null,null,null,null,null,null,null,null,null,null,null,null,null,null,null,null,null,null,null,null,null,3,null,null,null,null,null,null,null,null,null,null,null,null,null,null,null,null,null,null,null,null,null,null,null,null,11]
[null,null,null,null,null,null,null,null,null,null,null,null,null,null,null,null,null,null,null,null,null,null,null,null,null,null,null,null,null,4,null,null,null,null,null,null,null,null,null,null,null,null,null,null,null,null,null,null,null,null,null,null,null,null,12]
[null,null,null,null,null,null,null,null,null,null,null,null,null,null,null,null,null,null,null,null,null,null,null,null,null,null,null,null,null,5,null,null,null,null,null,null,null,null,null,null,null,null,null,null,null,null,null,null,null,null,null,null,null,null,13]
[null,null,null,null,null,null,null,null,null,null,null,null,null,null,null,null,null,null,null,null,null,null,null,null,null,null,null,null,null,6,null,null,null,null,null,null,null,null,null,null,null,null,null,null,null,null,null,null,null,null,null,null,null,null,14]
[null,null,null,null,null,null,null,null,null,null,null,null,null,null,null,null,null,null,null,null,null,null,null,null,null,null,null,null,null,7,null,null,null,null,null,null,null,null,null,null,null,null,null,null,null,null,null,null,null,null,null,null,null,null,15]
[null,null,null,null,null,null,null,null,null,null,null,null,null,null,null,null,null,null,null,null,null,null,null,null,null,null,null,null,null,8,null,null,null,null,null,null,null,null,null,null,null,null,null,null,null,null,null,null,null,null,null,null,null,null,16]
[null,null,null,null,null,null,null,null,null,null,null,null,null,null,null,null,null,null,null,null,null,null,null,null,null,null,null,null,null,null,"⑧",{"$f":"C42","v":0}]
[null,null,null,null,null,null,null,null,null,null,null,null,null,null,null,null,null,null,null,null,null,null,null,null,null,null,null,null,null,1,null,null,null,null,null,null,null,null,null,null,null,null,null,null,null,null,null,null,null,null,null,null,null,null,9]
[null,null,null,null,null,null,null,null,null,null,null,null,null,null,null,null,null,null,null,null,null,null,null,null,null,null,null,null,null,2,null,null,null,null,null,null,null,null,null,null,null,null,null,null,null,null,null,null,null,null,null,null,null,null,10]
[null,null,null,null,null,null,null,null,null,null,null,null,null,null,null,null,null,null,null,null,null,null,null,null,null,null,null,null,null,3,null,null,null,null,null,null,null,null,null,null,null,null,null,null,null,null,null,null,null,null,null,null,null,null,11]
[null,null,null,null,null,null,null,null,null,null,null,null,null,null,null,null,null,null,null,null,null,null,null,null,null,null,null,null,null,4,null,null,null,null,null,null,null,null,null,null,null,null,null,null,null,null,null,null,null,null,null,null,null,null,12]
[null,null,null,null,null,null,null,null,null,null,null,null,null,null,null,null,null,null,null,null,null,null,null,null,null,null,null,null,null,5,null,null,null,null,null,null,null,null,null,null,null,null,null,null,null,null,null,null,null,null,null,null,null,null,13]
[null,null,null,null,null,null,null,null,null,null,null,null,null,null,null,null,null,null,null,null,null,null,null,null,null,null,null,null,null,6,null,null,null,null,null,null,null,null,null,null,null,null,null,null,null,null,null,null,null,null,null,null,null,null,14]
[null,null,null,null,null,null,null,null,null,null,null,null,null,null,null,null,null,null,null,null,null,null,null,null,null,null,null,null,null,7,null,null,null,null,null,null,null,null,null,null,null,null,null,null,null,null,null,null,null,null,null,null,null,null,15]
[null,null,null,null,null,null,null,null,null,null,null,null,null,null,null,null,null,null,null,null,null,null,null,null,null,null,null,null,null,8,null,null,null,null,null,null,null,null,null,null,null,null,null,null,null,null,null,null,null,null,null,null,null,null,16]

{"sheet":"②","index":4,"n_rows":73,"n_cols":55,"rows_kept":73,"cut":false,"hidden":false,"merged":[[72,30,72,53],[72,55,72,78],[69,30,69,53],[69,55,69,78],[70,30,70,53],[70,55,70,78],[71,30,71,53],[71,55,71,78],[66,30,66,53],[66,55,66,78],[67,30,67,53],[67,55,67,78],[68,30,68,53],[68,55,68,78],[62,30,62,53],[62,55,62,78],[63,30,63,53],[63,55,63,78],[65,30,65,53],[65,55,65,78],[59,30,59,53],[59,55,59,78],[60,30,60,53],[60,55,60,78],[61,30,61,53],[61,55,61,78],[56,30,56,53],[56,55,56,78],[57,30,57,53],[57,55,57,78],[58,30,58,53],[58,55,58,78],[52,30,52,53],[52,55,52,78],[53,30,53,53],[53,55,53,78],[54,30,54,53],[54,55,54,78],[49,30,49,53],[49,55,49,78],[50,30,50,53],[50,55,50,78],[51,30,51,53],[51,55,51,78],[45,30,45,53],[45,55,45,78],[47,30,47,53],[47,55,47,78],[48,30,48,53],[48,55,48,78],[42,30,42,53],[42,55,42,78],[43,30,43,53],[43,55,43,78],[44,30,44,53],[44,55,44,78],[40,2,40,25],[40,30,40,53],[40,55,40,78],[41,2,41,25],[41,30,41,53],[41,55,41,78],[37,2,37,25],[38,2,38,25],[38,30,38,53],[38,55,38,78],[39,2,39,25],[39,30,39,53],[39,55,39,78],[35,2,35,25],[35,30,35,53],[35,55,35,78],[36,2,36,25],[36,30,36,53],[36,55,36,78],[34,2,34,25],[34,30,34,53],[34,55,34,78],[29,30,29,53],[29,55,29,78],[30,2,32,26],[30,30,30,53],[30,55,30,78],[31,30,31,53],[31,55,31,78],[32,30,32,53],[32,55,32,78],[26,1,28,3],[26,4,28,6],[26,7,28,9],[26,10,28,12],[26,13,28,15],[26,16,28,18],[33,2,33,4],[33,30,33,53],[33,55,33,78],[25,30,25,53],[25,55,25,78],[26,19,28,21],[26,22,28,24],[26,25,28,27],[26,30,26,53],[26,55,26,78],[27,30,27,53],[27,55,27,78],[22,30,22,53],[22,55,22,78],[20,1,22,3],[20,4,22,6],[20,7,22,9],[20,10,22,12],[20,13,22,15],[20,16,22,18],[23,1,25,3],[23,4,25,6],[23,7,25,9],[23,10,25,12],[23,13,25,15],[23,16,25,18],[20,19,22,21],[20,22,22,24],[20,25,22,27],[23,19,25,21],[23,22,25,24],[23,25,25,27],[23,30,23,53],[23,55,23,78],[24,30,24,53],[24,55,24,78],[17,1,19,3],[17,4,19,6],[17,7,19,9],[17,10,19,12],[17,13,19,15],[17,16,19,18],[20,30,20,53],[20,55,20,78],[21,30,21,53],[21,55,21,78],[14,30,14,53],[14,55,14,78],[15,30,15,53],[15,55,15,78],[16,30,16,53],[16,55,16,78],[17,19,19,21],[17,22,19,24],[17,25,19,27],[17,30,17,53],[17,55,17,78],[18,30,18,53],[18,55,18,78],[14,1,16,3],[14,4,16,6],[14,7,16,9],[14,10,16,12],[14,13,16,15],[14,16,16,18],[11,19,13,21],[11,22,13,24],[11,25,13,27],[14,19,16,21],[14,22,16,24],[14,25,16,27],[11,30,11,53],[11,55,11,78],[12,30,12,53],[12,55,12,78],[13,30,13,53],[13,55,13,78],[11,1,13,3],[11,4,13,6],[11,7,13,9],[11,10,13,12],[11,13,13,15],[11,16,13,18],[8,19,10,21],[8,22,10,24],[8,25,10,27],[8,30,8,53],[8,55,8,78],[9,30,9,53],[9,55,9,78],[8,1,10,3],[8,4,10,6],[8,7,10,9],[8,10,10,12],[8,13,10,15],[8,16,10,18],[5,1,7,3],[5,4,7,6],[5,7,7,9],[5,10,7,12],[5,13,7,15],[5,16,7,18],[2,30,2,53],[2,55,2,78],[3,30,3,53],[3,55,3,78],[4,30,4,53],[4,55,4,78],[5,19,7,21],[5,22,7,24],[5,25,7,27],[5,30,5,53],[5,55,5,78],[6,30,6,53],[6,55,6,78],[7,30,7,53],[7,55,7,78],[0,30,0,32],[2,1,4,3],[2,4,4,6],[2,7,4,9],[2,10,4,12],[2,13,4,15],[2,16,4,18],[2,19,4,21],[2,22,4,24],[2,25,4,27]]}
[null,null,null,null,null,null,null,null,null,null,null,null,null,null,null,null,null,null,null,null,null,null,null,null,null,null,null,null,null,null,"実践思考"]
["⑧",null,null,null,null,null,null,null,null,null,"①",null,null,null,null,null,null,null,null,"②",null,null,null,null,null,null,null,null,null,null,"①",{"$f":"C35","v":0}]
[null,{"$f":"AE73","v":0},null,null,{"$f":"AE66","v":0},null,null,{"$f":"AE67","v":0},null,null,{"$f":"AE10","v":0},null,null,{"$f":"AE3","v":0},null,null,{"$f":"AE4","v":0},null,null,{"$f":"AE19","v":0},null,null,{"$f":"AE12","v":0},null,null,{"$f":"AE13","v":0},null,null,null,1,null,null,null,null,null,null,null,null,null,null,null,null,null,null,null,null,null,null,null,null,null,null,null,null,9]
[null,null,null,null,null,null,null,null,null,null,null,null,null,null,null,null,null,null,null,null,null,null,null,null,null,null,null,null,null,2,null,null,null,null,null,null,null,null,null,null,null,null,null,null,null,null,null,null,null,null,null,null,null,null,10]
[null,null,null,null,null,null,null,null,null,null,null,null,null,null,null,null,null,null,null,null,null,null,null,null,null,null,null,null,null,3,null,null,null,null,null,null,null,null,null,null,null,null,null,null,null,null,null,null,null,null,null,null,null,null,11]
[null,{"$f":"AE72","v":0},null,null,{"$f":"C42","v":0},null,null,{"$f":"AE68","v":0},null,null,{"$f":"AE9","v":0},null,null,{"$f":"C35","v":0},null,null,{"$f":"AE5","v":0},null,null,{"$f":"AE18","v":0},null,null,{"$f":"C36","v":0},null,null,{"$f":"AE14","v":0},null,null,null,4,null,null,null,null,null,null,null,null,null,null,null,null,null,null,null,null,null,null,null,null,null,null,null,null,12]
[null,null,null,null,null,null,null,null,null,null,null,null,null,null,null,null,null,null,null,null,null,null,null,null,null,null,null,null,null,5,null,null,null,null,null,null,null,null,null,null,null,null,null,null,null,null,null,null,null,null,null,null,null,null,13]
[null,null,null,null,null,null,null,null,null,null,null,null,null,null,null,null,null,null,null,null,null,null,null,null,null,null,null,null,null,6,null,null,null,null,null,null,null,null,null,null,null,null,null,null,null,null,null,null,null,null,null,null,null,null,14]
[null,{"$f":"AE71","v":0},null,null,{"$f":"AE70","v":0},null,null,{"$f":"AE69","v":0},null,null,{"$f":"AE8","v":0},null,null,{"$f":"AE7","v":0},null,null,{"$f":"AE6","v":0},null,null,{"$f":"AE17","v":0},null,null,{"$f":"AE16","v":0},null,null,{"$f":"AE15","v":0},null,null,null,7,null,null,null,null,null,null,null,null,null,null,null,null,null,null,null,null,null,null,null,null,null,null,null,null,15]
[null,null,null,null,null,null,null,null,null,null,null,null,null,null,null,null,null,null,null,null,null,null,null,null,null,null,null,null,null,8,null,null,null,null,null,null,null,null,null,null,null,null,null,null,null,null,null,null,null,null,null,null,null,null,16]
[null,null,null,null,null,null,null,null,null,null,null,null,null,null,null,null,null,null,null,null,null,null,null,null,null,null,null,null,null,null,"②",{"$f":"C36","v":0}]
["⑦",{"$f":"AE73","v":0},null,null,{"$f":"AE57","v":0},null,null,{"$f":"AE58","v":0},null,null,{"$f":"E6","v":0},null,null,{"$f":"N6","v":0},null,null,{"$f":"W6","v":0},null,null,{"$f":"AE28","v":0},null,null,{"$f":"AE21","v":0},null,null,{"$f":"AE22","v":0},null,null,"③",1,null,null,null,null,null,null,null,null,null,null,null,null,null,null,null,null,null,null,null,null,null,null,null,null,9]
[null,null,null,null,null,null,null,null,null,null,null,null,null,null,null,null,null,null,null,null,null,null,null,null,null,null,null,null,null,2,null,null,null,null,null,null,null,null,null,null,null,null,null,null,null,null,null,null,null,null,null,null,null,null,10]
[null,null,null,null,null,null,null,null,null,null,null,null,null,null,null,null,null,null,null,null,null,null,null,null,null,null,null,null,null,3,null,null,null,null,null,null,null,null,null,null,null,null,null,null,null,null,null,null,null,null,null,null,null,null,11]
[null,{"$f":"AE63","v":0},null,null,{"$f":"C41","v":0},null,null,{"$f":"AE59","v":0},null,null,{"$f":"E15","v":0},null,null,{"$f":"'I　FACE'!C36","v":0},null,null,{"$f":"W15","v":0},null,null,{"$f":"AE27","v":0},null,null,{"$f":"C37","v":0},null,null,{"$f":"AE23","v":0},null,null,null,4,null,null,null,null,null,null,null,null,null,null,null,null,null,null,null,null,null,null,null,null,null,null,null,null,12]
[null,null,null,null,null,null,null,null,null,null,null,null,null,null,null,null,null,null,null,null,null,null,null,null,null,null,null,null,null,5,null,null,null,null,null,null,null,null,null,null,null,null,null,null,null,null,null,null,null,null,null,null,null,null,13]
[null,null,null,null,null,null,null,null,null,null,null,null,null,null,null,null,null,null,null,null,null,null,null,null,null,null,null,null,null,6,null,null,null,null,null,null,null,null,null,null,null,null,null,null,null,null,null,null,null,null,null,null,null,null,14]
[null,{"$f":"AE62","v":0},null,null,{"$f":"AE61","v":0},null,null,{"$f":"AE60","v":0},null,null,{"$f":"E24","v":0},null,null,{"$f":"N24","v":0},null,null,{"$f":"W24","v":0},null,null,{"$f":"AE26","v":0},null,null,{"$f":"AE25","v":0},null,null,{"$f":"AE24","v":0},null,null,null,7,null,null,null,null,null,null,null,null,null,null,null,null,null,null,null,null,null,null,null,null,null,null,null,null,15]
[null,null,null,null,null,null,null,null,null,null,null,null,null,null,null,null,null,null,null,null,null,null,null,null,null,null,null,null,null,8,null,null,null,null,null,null,null,null,null,null,null,null,null,null,null,null,null,null,null,null,null,null,null,null,16]
[null,null,null,null,null,null,null,null,null,null,null,null,null,null,null,null,null,null,null,null,null,null,null,null,null,null,null,null,null,null,"③",{"$f":"C37","v":0}]
["⑥",{"$f":"AE55","v":0},null,null,{"$f":"AE48","v":0},null,null,{"$f":"AE49","v":0},null,null,{"$f":"AE46","v":0},null,null,{"$f":"AE39","v":0},null,null,{"$f":"AE40","v":0},null,null,{"$f":"AE37","v":0},null,null,{"$f":"AE30","v":0},null,null,{"$f":"AE31","v":0},null,null,"④",1,null,null,null,null,null,null,null,null,null,null,null,null,null,null,null,null,null,null,null,null,null,null,null,null,9]
[null,null,null,null,null,null,null,null,null,null,null,null,null,null,null,null,null,null,null,null,null,null,null,null,null,null,null,null,null,2,null,null,null,null,null,null,null,null,null,null,null,null,null,null,null,null,null,null,null,null,null,null,null,null,10]
[null,null,null,null,null,null,null,null,null,null,null,null,null,null,null,null,null,null,null,null,null,null,null,null,null,null,null,null,null,3,null,null,null,null,null,null,null,null,null,null,null,null,null,null,null,null,null,null,null,null,null,null,null,null,11]
[null,{"$f":"AE54","v":0},null,null,{"$f":"C40","v":0},null,null,{"$f":"AE50","v":0},null,null,{"$f":"AE45","v":0},null,null,{"$f":"C39","v":0},null,null,{"$f":"AE41","v":0},null,null,{"$f":"AE36","v":0},null,null,{"$f":"C38","v":0},null,null,{"$f":"AE32","v":0},null,null,null,4,null,null,null,null,null,null,null,null,null,null,null,null,null,null,null,null,null,null,null,null,null,null,null,null,12]
[null,null,null,null,null,null,null,null,null,null,null,null,null,null,null,null,null,null,null,null,null,null,null,null,null,null,null,null,null,5,null,null,null,null,null,null,null,null,null,null,null,null,null,null,null,null,null,null,null,null,null,null,null,null,13]
[null,null,null,null,null,null,null,null,null,null,null,null,null,null,null,null,null,null,null,null,null,null,null,null,null,null,null,null,null,6,null,null,null,null,null,null,null,null,null,null,null,null,null,null,null,null,null,null,null,null,null,null,null,null,14]
[null,{"$f":"AE53","v":0},null,null,{"$f":"AE52","v":0},null,null,{"$f":"AE51","v":0},null,null,{"$f":"AE44","v":0},null,null,{"$f":"AE43","v":0},null,null,{"$f":"AE42","v":0},null,null,{"$f":"AE35","v":0},null,null,{"$f":"AE34","v":0},null,null,{"$f":"AE33","v":0},null,null,null,7,null,null,null,null,null,null,null,null,null,null,null,null,null,null,null,null,null,null,null,null,null,null,null,null,15]
[null,null,null,null,null,null,null,null,null,null,null,null,null,null,null,null,null,null,null,null,null,null,null,null,null,null,null,null,null,8,null,null,null,null,null,null,null,null,null,null,null,null,null,null,null,null,null,null,null,null,null,null,null,null,16]
[null,null,null,null,null,null,null,null,null,null,null,null,null,null,null,null,null,null,null,null,null,null,null,null,null,null,null,null,null,null,"④",{"$f":"C38","v":0}]
[null,null,null,null,null,null,null,null,null,null,"⑤",null,null,null,null,null,null,null,null,null,null,null,null,null,null,null,null,null,null,1,null,null,null,null,null,null,null,null,null,null,null,null,null,null,null,null,null,null,null,null,null,null,null,null,9]
[null,null,{"$f":"'I　FACE'!C31","v":0},null,null,null,null,null,null,null,null,null,null,null,null,null,null,null,null,null,null,null,null,null,null,null,null,null,null,2,null,null,null,null,null,null,null,null,null,null,null,null,null,null,null,null,null,null,null,null,null,null,null,null,10]
[null,null,null,null,null,null,null,null,null,null,null,null,null,null,null,null,null,null,null,null,null,null,null,null,null,null,null,null,null,3,null,null,null,null,null,null,null,null,null,null,null,null,null,null,null,null,null,null,null,null,null,null,null,null,11]
[null,null,null,null,null,null,null,null,null,null,null,null,null,null,null,null,null,null,null,null,null,null,null,null,null,null,null,null,null,4,null,null,null,null,null,null,null,null,null,null,null,null,null,null,null,null,null,null,null,null,null,null,null,null,12]
[null,null,"基礎思考",null,null,null,null,null,null,null,null,null,null,null,null,null,null,null,null,null,null,null,null,null,null,null,null,null,null,5,null,null,null,null,null,null,null,null,null,null,null,null,null,null,null,null,null,null,null,null,null,null,null,null,13]
[null,"①",{"$f":"'I　FACE'!AE12","v":0},null,null,null,null,null,null,null,null,null,null,null,null,null,null,null,null,null,null,null,null,null,null,null,null,null,null,6,null,null,null,null,null,null,null,null,null,null,null,null,null,null,null,null,null,null,null,null,null,null,null,null,14]
[null,"②",{"$f":"'I　FACE'!AE13","v":0},null,null,null,null,null,null,null,null,null,null,null,null,null,null,null,null,null,null,null,null,null,null,null,null,null,null,7,null,null,null,null,null,null,null,null,null,null,null,null,null,null,null,null,null,null,null,null,null,null,null,null,15]
[null,"③.",{"$f":"'I　FACE'!AE14","v":0},null,null,null,null,null,null,null,null,null,null,null,null,null,null,null,null,null,null,null,null,null,null,null,null,null,null,8,null,null,null,null,null,null,null,null,null,null,null,null,null,null,null,null,null,null,null,null,null,null,null,null,16]
[null,"④",{"$f":"'I　FACE'!AE15","v":0},null,null,null,null,null,null,null,null,null,null,null,null,null,null,null,null,null,null,null,null,null,null,null,null,null,null,null,"⑤",{"$f":"C39","v":0}]
[null,"⑤",{"$f":"'I　FACE'!AE16","v":0},null,null,null,null,null,null,null,null,null,null,null,null,null,null,null,null,null,null,null,null,null,null,null,null,null,null,1,null,null,null,null,null,null,null,null,null,null,null,null,null,null,null,null,null,null,null,null,null,null,null,null,9]
[null,"⑥",null,null,null,null,null,null,null,null,null,null,null,null,null,null,null,null,null,null,null,null,null,null,null,null,null,null,null,2,null,null,null,null,null,null,null,null,null,null,null,null,null,null,null,null,null,null,null,null,null,null,null,null,10]
[null,"⑦",{"$f":"'I　FACE'!AE18","v":0},null,null,null,null,null,null,null,null,null,null,null,null,null,null,null,null,null,null,null,null,null,null,null,null,null,null,3,null,null,null,null,null,null,null,null,null,null,null,null,null,null,null,null,null,null,null,null,null,null,null,null,11]
[null,"⑧",{"$f":"'I　FACE'!AE19","v":0},null,null,null,null,null,null,null,null,null,null,null,null,null,null,null,null,null,null,null,null,null,null,null,null,null,null,4,null,null,null,null,null,null,null,null,null,null,null,null,null,null,null,null,null,null,null,null,null,null,null,null,12]
[null,null,null,null,null,null,null,null,null,null,null,null,null,null,null,null,null,null,null,null,null,null,null,null,null,null,null,null,null,5,null,null,null,null,null,null,null,null,null,null,null,null,null,null,null,null,null,null,null,null,null,null,null,null,13]
[null,null,null,null,null,null,null,null,null,null,null,null,null,null,null,null,null,null,null,null,null,null,null,null,null,null,null,null,null,6,null,null,null,null,null,null,null,null,null,null,null,null,null,null,null,null,null,null,null,null,null,null,null,null,14]
[null,null,null,null,null,null,null,null,null,null,null,null,null,null,null,null,null,null,null,null,null,null,null,null,null,null,null,null,null,7,null,null,null,null,null,null,null,null,null,null,null,null,null,null,null,null,null,null,null,null,null,null,null,null,15]
[null,null,null,null,null,null,null,null,null,null,null,null,null,null,null,null,null,null,null,null,null,null,null,null,null,null,null,null,null,8,null,null,null,null,null,null,null,null,null,null,null,null,null,null,null,null,null,null,null,null,null,null,null,null,16]
[null,null,null,null,null,null,null,null,null,null,null,null,null,null,null,null,null,null,null,null,null,null,null,null,null,null,null,null,null,null,"⑥",{"$f":"C40","v":0}]
[null,null,null,null,null,null,null,null,null,null,null,null,null,null,null,null,null,null,null,null,null,null,null,null,null,null,null,null,null,1,null,null,null,null,null,null,null,null,null,null,null,null,null,null,null,null,null,null,null,null,null,null,null,null,9]
[null,null,null,null,null,null,null,null,null,null,null,null,null,null,null,null,null,null,null,null,null,null,null,null,null,null,null,null,null,2,null,null,null,null,null,null,null,null,null,null,null,null,null,null,null,null,null,null,null,null,null,null,null,null,10]
[null,null,null,null,null,null,null,null,null,null,null,null,null,null,null,null,null,null,null,null,null,null,null,null,null,null,null,null,null,3,null,null,null,null,null,null,null,null,null,null,null,null,null,null,null,null,null,null,null,null,null,null,null,null,11]
[null,null,null,null,null,null,null,null,null,null,null,null,null,null,null,null,null,null,null,null,null,null,null,null,null,null,null,null,null,4,null,null,null,null,null,null,null,null,null,null,null,null,null,null,null,null,null,null,null,null,null,null,null,null,12]
[null,null,null,null,null,null,null,null,null,null,null,null,null,null,null,null,null,null,null,null,null,null,null,null,null,null,null,null,null,5,null,null,null,null,null,null,null,null,null,null,null,null,null,null,null,null,null,null,null,null,null,null,null,null,13]
[null,null,null,null,null,null,null,null,null,null,null,null,null,null,null,null,null,null,null,null,null,null,null,null,null,null,null,null,null,6,null,null,null,null,null,null,null,null,null,null,null,null,null,null,null,null,null,null,null,null,null,null,null,null,14]
[null,null,null,null,null,null,null,null,null,null,null,null,null,null,null,null,null,null,null,null,null,null,null,null,null,null,null,null,null,7,null,null,null,null,null,null,null,null,null,null,null,null,null,null,null,null,null,null,null,null,null,null,null,null,15]
[null,null,null,null,null,null,null,null,null,null,null,null,null,null,null,null,null,null,null,null,null,null,null,null,null,null,null,null,null,8,null,null,null,null,null,null,null,null,null,null,null,null,null,null,null,null,null,null,null,null,null,null,null,null,16]
[null,null,null,null,null,null,null,null,null,null,null,null,null,null,null,null,null,null,null,null,null,null,null,null,null,null,null,null,null,null,"⑦",{"$f":"C41","v":0}]
[null,null,null,null,null,null,null,null,null,null,null,null,null,null,null,null,null,null,null,null,null,null,null,null,null,null,null,null,null,1,null,null,null,null,null,null,null,null,null,null,null,null,null,null,null,null,null,null,null,null,null,null,null,null,9]
[null,null,null,null,null,null,null,null,null,null,null,null,null,null,null,null,null,null,null,null,null,null,null,null,null,null,null,null,null,2,null,null,null,null,null,null,null,null,null,null,null,null,null,null,null,null,null,null,null,null,null,null,null,null,10]
[null,null,null,null,null,null,null,null,null,null,null,null,null,null,null,null,null,null,null,null,null,null,null,null,null,null,null,null,null,3,null,null,null,null,null,null,null,null,null,null,null,null,null,null,null,null,null,null,null,null,null,null,null,null,11]
[null,null,null,null,null,null,null,null,null,null,null,null,null,null,null,null,null,null,null,null,null,null,null,null,null,null,null,null,null,4,null,null,null,null,null,null,null,null,null,null,null,null,null,null,null,null,null,null,null,null,null,null,null,null,12]
[null,null,null,null,null,null,null,null,null,null,null,null,null,null,null,null,null,null,null,null,null,null,null,null,null,null,null,null,null,5,null,null,null,null,null,null,null,null,null,null,null,null,null,null,null,null,null,null,null,null,null,null,null,null,13]
[null,null,null,null,null,null,null,null,null,null,null,null,null,null,null,null,null,null,null,null,null,null,null,null,null,null,null,null,null,6,null,null,null,null,null,null,null,null,null,null,null,null,null,null,null,null,null,null,null,null,null,null,null,null,14]
[null,null,null,null,null,null,null,null,null,null,null,null,null,null,null,null,null,null,null,null,null,null,null,null,null,null,null,null,null,7,null,null,null,null,null,null,null,null,null,null,null,null,null,null,null,null,null,null,null,null,null,null,null,null,15]
[null,null,null,null,null,null,null,null,null,null,null,null,null,null,null,null,null,null,null,null,null,null,null,null,null,null,null,null,null,8,null,null,null,null,null,null,null,null,null,null,null,null,null,null,null,null,null,null,null,null,null,null,null,null,16]
[null,null,null,null,null,null,null,null,null,null,null,null,null,null,null,null,null,null,null,null,null,null,null,null,null,null,null,null,null,null,"⑧",{"$f":"C42","v":0}]
[null,null,null,null,null,null,null,null,null,null,null,null,null,null,null,null,null,null,null,null,null,null,null,null,null,null,null,null,null,1,null,null,null,null,null,null,null,null,null,null,null,null,null,null,null,null,null,null,null,null,null,null,null,null,9]
[null,null,null,null,null,null,null,null,null,null,null,null,null,null,null,null,null,null,null,null,null,null,null,null,null,null,null,null,null,2,null,null,null,null,null,null,null,null,null,null,null,null,null,null,null,null,null,null,null,null,null,null,null,null,10]
[null,null,null,null,null,null,null,null,null,null,null,null,null,null,null,null,null,null,null,null,null,null,null,null,null,null,null,null,null,3,null,null,null,null,null,null,null,null,null,null,null,null,null,null,null,null,null,null,null,null,null,null,null,null,11]
[null,null,null,null,null,null,null,null,null,null,null,null,null,null,null,null,null,null,null,null,null,null,null,null,null,null,null,null,null,4,null,null,null,null,null,null,null,null,null,null,null,null,null,null,null,null,null,null,null,null,null,null,null,null,12]
[null,null,null,null,null,null,null,null,null,null,null,null,null,null,null,null,null,null,null,null,null,null,null,null,null,null,null,null,null,5,null,null,null,null,null,null,null,null,null,null,null,null,null,null,null,null,null,null,null,null,null,null,null,null,13]
[null,null,null,null,null,null,null,null,null,null,null,null,null,null,null,null,null,null,null,null,null,null,null,null,null,null,null,null,null,6,null,null,null,null,null,null,null,null,null,null,null,null,null,null,null,null,null,null,null,null,null,null,null,null,14]
[null,null,null,null,null,null,null,null,null,null,null,null,null,null,null,null,null,null,null,null,null,null,null,null,null,null,null,null,null,7,null,null,null,null,null,null,null,null,null,null,null,null,null,null,null,null,null,null,null,null,null,null,null,null,15]
[null,null,null,null,null,null,null,null,null,null,null,null,null,null,null,null,null,null,null,null,null,null,null,null,null,null,null,null,null,8,null,null,null,null,null,null,null,null,null,null,null,null,null,null,null,null,null,null,null,null,null,null,null,null,16]

{"sheet":"③","index":5,"n_rows":73,"n_cols":55,"rows_kept":73,"cut":false,"hidden":false,"merged":[[72,30,72,53],[72,55,72,78],[69,30,69,53],[69,55,69,78],[70,30,70,53],[70,55,70,78],[71,30,71,53],[71,55,71,78],[66,30,66,53],[66,55,66,78],[67,30,67,53],[67,55,67,78],[68,30,68,53],[68,55,68,78],[62,30,62,53],[62,55,62,78],[63,30,63,53],[63,55,63,78],[65,30,65,53],[65,55,65,78],[59,30,59,53],[59,55,59,78],[60,30,60,53],[60,55,60,78],[61,30,61,53],[61,55,61,78],[56,30,56,53],[56,55,56,78],[57,30,57,53],[57,55,57,78],[58,30,58,53],[58,55,58,78],[52,30,52,53],[52,55,52,78],[53,30,53,53],[53,55,53,78],[54,30,54,53],[54,55,54,78],[49,30,49,53],[49,55,49,78],[50,30,50,53],[50,55,50,78],[51,30,51,53],[51,55,51,78],[45,30,45,53],[45,55,45,78],[47,30,47,53],[47,55,47,78],[48,30,48,53],[48,55,48,78],[42,30,42,53],[42,55,42,78],[43,30,43,53],[43,55,43,78],[44,30,44,53],[44,55,44,78],[40,2,40,25],[40,30,40,53],[40,55,40,78],[41,2,41,25],[41,30,41,53],[41,55,41,78],[37,2,37,25],[38,2,38,25],[38,30,38,53],[38,55,38,78],[39,2,39,25],[39,30,39,53],[39,55,39,78],[35,2,35,25],[35,30,35,53],[35,55,35,78],[36,2,36,25],[36,30,36,53],[36,55,36,78],[34,2,34,25],[34,30,34,53],[34,55,34,78],[29,30,29,53],[29,55,29,78],[30,2,32,26],[30,30,30,53],[30,55,30,78],[31,30,31,53],[31,55,31,78],[32,30,32,53],[32,55,32,78],[26,1,28,3],[26,4,28,6],[26,7,28,9],[26,10,28,12],[26,13,28,15],[26,16,28,18],[33,2,33,4],[33,30,33,53],[33,55,33,78],[25,30,25,53],[25,55,25,78],[26,19,28,21],[26,22,28,24],[26,25,28,27],[26,30,26,53],[26,55,26,78],[27,30,27,53],[27,55,27,78],[22,30,22,53],[22,55,22,78],[20,1,22,3],[20,4,22,6],[20,7,22,9],[20,10,22,12],[20,13,22,15],[20,16,22,18],[23,1,25,3],[23,4,25,6],[23,7,25,9],[23,10,25,12],[23,13,25,15],[23,16,25,18],[20,19,22,21],[20,22,22,24],[20,25,22,27],[23,19,25,21],[23,22,25,24],[23,25,25,27],[23,30,23,53],[23,55,23,78],[24,30,24,53],[24,55,24,78],[17,1,19,3],[17,4,19,6],[17,7,19,9],[17,10,19,12],[17,13,19,15],[17,16,19,18],[20,30,20,53],[20,55,20,78],[21,30,21,53],[21,55,21,78],[14,30,14,53],[14,55,14,78],[15,30,15,53],[15,55,15,78],[16,30,16,53],[16,55,16,78],[17,19,19,21],[17,22,19,24],[17,25,19,27],[17,30,17,53],[17,55,17,78],[18,30,18,53],[18,55,18,78],[14,1,16,3],[14,4,16,6],[14,7,16,9],[14,10,16,12],[14,13,16,15],[14,16,16,18],[11,19,13,21],[11,22,13,24],[11,25,13,27],[14,19,16,21],[14,22,16,24],[14,25,16,27],[11,30,11,53],[11,55,11,78],[12,30,12,53],[12,55,12,78],[13,30,13,53],[13,55,13,78],[11,1,13,3],[11,4,13,6],[11,7,13,9],[11,10,13,12],[11,13,13,15],[11,16,13,18],[8,19,10,21],[8,22,10,24],[8,25,10,27],[8,30,8,53],[8,55,8,78],[9,30,9,53],[9,55,9,78],[8,1,10,3],[8,4,10,6],[8,7,10,9],[8,10,10,12],[8,13,10,15],[8,16,10,18],[5,1,7,3],[5,4,7,6],[5,7,7,9],[5,10,7,12],[5,13,7,15],[5,16,7,18],[2,30,2,53],[2,55,2,78],[3,30,3,53],[3,55,3,78],[4,30,4,53],[4,55,4,78],[5,19,7,21],[5,22,7,24],[5,25,7,27],[5,30,5,53],[5,55,5,78],[6,30,6,53],[6,55,6,78],[7,30,7,53],[7,55,7,78],[0,30,0,32],[2,1,4,3],[2,4,4,6],[2,7,4,9],[2,10,4,12],[2,13,4,15],[2,16,4,18],[2,19,4,21],[2,22,4,24],[2,25,4,27]]}
[null,null,null,null,null,null,null,null,null,null,null,null,null,null,null,null,null,null,null,null,null,null,null,null,null,null,null,null,null,null,"実践思考"]
["⑧",null,null,null,null,null,null,null,null,null,"①",null,null,null,null,null,null,null,null,"②",null,null,null,null,null,null,null,null,null,null,"①",{"$f":"C35","v":0}]
[null,{"$f":"AE73","v":0},null,null,{"$f":"AE66","v":0},null,null,{"$f":"AE67","v":0},null,null,{"$f":"AE10","v":0},null,null,{"$f":"AE3","v":0},null,null,{"$f":"AE4","v":0},null,null,{"$f":"AE19","v":0},null,null,{"$f":"AE12","v":0},null,null,{"$f":"AE13","v":0},null,null,null,1,null,null,null,null,null,null,null,null,null,null,null,null,null,null,null,null,null,null,null,null,null,null,null,null,9]
[null,null,null,null,null,null,null,null,null,null,null,null,null,null,null,null,null,null,null,null,null,null,null,null,null,null,null,null,null,2,null,null,null,null,null,null,null,null,null,null,null,null,null,null,null,null,null,null,null,null,null,null,null,null,10]
[null,null,null,null,null,null,null,null,null,null,null,null,null,null,null,null,null,null,null,null,null,null,null,null,null,null,null,null,null,3,null,null,null,null,null,null,null,null,null,null,null,null,null,null,null,null,null,null,null,null,null,null,null,null,11]
[null,{"$f":"AE72","v":0},null,null,{"$f":"C42","v":0},null,null,{"$f":"AE68","v":0},null,null,{"$f":"AE9","v":0},null,null,{"$f":"C35","v":0},null,null,{"$f":"AE5","v":0},null,null,{"$f":"AE18","v":0},null,null,{"$f":"C36","v":0},null,null,{"$f":"AE14","v":0},null,null,null,4,null,null,null,null,null,null,null,null,null,null,null,null,null,null,null,null,null,null,null,null,null,null,null,null,12]
[null,null,null,null,null,null,null,null,null,null,null,null,null,null,null,null,null,null,null,null,null,null,null,null,null,null,null,null,null,5,null,null,null,null,null,null,null,null,null,null,null,null,null,null,null,null,null,null,null,null,null,null,null,null,13]
[null,null,null,null,null,null,null,null,null,null,null,null,null,null,null,null,null,null,null,null,null,null,null,null,null,null,null,null,null,6,null,null,null,null,null,null,null,null,null,null,null,null,null,null,null,null,null,null,null,null,null,null,null,null,14]
[null,{"$f":"AE71","v":0},null,null,{"$f":"AE70","v":0},null,null,{"$f":"AE69","v":0},null,null,{"$f":"AE8","v":0},null,null,{"$f":"AE7","v":0},null,null,{"$f":"AE6","v":0},null,null,{"$f":"AE17","v":0},null,null,{"$f":"AE16","v":0},null,null,{"$f":"AE15","v":0},null,null,null,7,null,null,null,null,null,null,null,null,null,null,null,null,null,null,null,null,null,null,null,null,null,null,null,null,15]
[null,null,null,null,null,null,null,null,null,null,null,null,null,null,null,null,null,null,null,null,null,null,null,null,null,null,null,null,null,8,null,null,null,null,null,null,null,null,null,null,null,null,null,null,null,null,null,null,null,null,null,null,null,null,16]
[null,null,null,null,null,null,null,null,null,null,null,null,null,null,null,null,null,null,null,null,null,null,null,null,null,null,null,null,null,null,"②",{"$f":"C36","v":0}]
["⑦",{"$f":"AE73","v":0},null,null,{"$f":"AE57","v":0},null,null,{"$f":"AE58","v":0},null,null,{"$f":"E6","v":0},null,null,{"$f":"N6","v":0},null,null,{"$f":"W6","v":0},null,null,{"$f":"AE28","v":0},null,null,{"$f":"AE21","v":0},null,null,{"$f":"AE22","v":0},null,null,"③",1,null,null,null,null,null,null,null,null,null,null,null,null,null,null,null,null,null,null,null,null,null,null,null,null,9]
[null,null,null,null,null,null,null,null,null,null,null,null,null,null,null,null,null,null,null,null,null,null,null,null,null,null,null,null,null,2,null,null,null,null,null,null,null,null,null,null,null,null,null,null,null,null,null,null,null,null,null,null,null,null,10]
[null,null,null,null,null,null,null,null,null,null,null,null,null,null,null,null,null,null,null,null,null,null,null,null,null,null,null,null,null,3,null,null,null,null,null,null,null,null,null,null,null,null,null,null,null,null,null,null,null,null,null,null,null,null,11]
[null,{"$f":"AE63","v":0},null,null,{"$f":"C41","v":0},null,null,{"$f":"AE59","v":0},null,null,{"$f":"E15","v":0},null,null,{"$f":"'I　FACE'!C37","v":0},null,null,{"$f":"W15","v":0},null,null,{"$f":"AE27","v":0},null,null,{"$f":"C37","v":0},null,null,{"$f":"AE23","v":0},null,null,null,4,null,null,null,null,null,null,null,null,null,null,null,null,null,null,null,null,null,null,null,null,null,null,null,null,12]
[null,null,null,null,null,null,null,null,null,null,null,null,null,null,null,null,null,null,null,null,null,null,null,null,null,null,null,null,null,5,null,null,null,null,null,null,null,null,null,null,null,null,null,null,null,null,null,null,null,null,null,null,null,null,13]
[null,null,null,null,null,null,null,null,null,null,null,null,null,null,null,null,null,null,null,null,null,null,null,null,null,null,null,null,null,6,null,null,null,null,null,null,null,null,null,null,null,null,null,null,null,null,null,null,null,null,null,null,null,null,14]
[null,{"$f":"AE62","v":0},null,null,{"$f":"AE61","v":0},null,null,{"$f":"AE60","v":0},null,null,{"$f":"E24","v":0},null,null,{"$f":"N24","v":0},null,null,{"$f":"W24","v":0},null,null,{"$f":"AE26","v":0},null,null,{"$f":"AE25","v":0},null,null,{"$f":"AE24","v":0},null,null,null,7,null,null,null,null,null,null,null,null,null,null,null,null,null,null,null,null,null,null,null,null,null,null,null,null,15]
[null,null,null,null,null,null,null,null,null,null,null,null,null,null,null,null,null,null,null,null,null,null,null,null,null,null,null,null,null,8,null,null,null,null,null,null,null,null,null,null,null,null,null,null,null,null,null,null,null,null,null,null,null,null,16]
[null,null,null,null,null,null,null,null,null,null,null,null,null,null,null,null,null,null,null,null,null,null,null,null,null,null,null,null,null,null,"③",{"$f":"C37","v":0}]
["⑥",{"$f":"AE55","v":0},null,null,{"$f":"AE48","v":0},null,null,{"$f":"AE49","v":0},null,null,{"$f":"AE46","v":0},null,null,{"$f":"AE39","v":0},null,null,{"$f":"AE40","v":0},null,null,{"$f":"AE37","v":0},null,null,{"$f":"AE30","v":0},null,null,{"$f":"AE31","v":0},null,null,"④",1,null,null,null,null,null,null,null,null,null,null,null,null,null,null,null,null,null,null,null,null,null,null,null,null,9]
[null,null,null,null,null,null,null,null,null,null,null,null,null,null,null,null,null,null,null,null,null,null,null,null,null,null,null,null,null,2,null,null,null,null,null,null,null,null,null,null,null,null,null,null,null,null,null,null,null,null,null,null,null,null,10]
[null,null,null,null,null,null,null,null,null,null,null,null,null,null,null,null,null,null,null,null,null,null,null,null,null,null,null,null,null,3,null,null,null,null,null,null,null,null,null,null,null,null,null,null,null,null,null,null,null,null,null,null,null,null,11]
[null,{"$f":"AE54","v":0},null,null,{"$f":"C40","v":0},null,null,{"$f":"AE50","v":0},null,null,{"$f":"AE45","v":0},null,null,{"$f":"C39","v":0},null,null,{"$f":"AE41","v":0},null,null,{"$f":"AE36","v":0},null,null,{"$f":"C38","v":0},null,null,{"$f":"AE32","v":0},null,null,null,4,null,null,null,null,null,null,null,null,null,null,null,null,null,null,null,null,null,null,null,null,null,null,null,null,12]
[null,null,null,null,null,null,null,null,null,null,null,null,null,null,null,null,null,null,null,null,null,null,null,null,null,null,null,null,null,5,null,null,null,null,null,null,null,null,null,null,null,null,null,null,null,null,null,null,null,null,null,null,null,null,13]
[null,null,null,null,null,null,null,null,null,null,null,null,null,null,null,null,null,null,null,null,null,null,null,null,null,null,null,null,null,6,null,null,null,null,null,null,null,null,null,null,null,null,null,null,null,null,null,null,null,null,null,null,null,null,14]
[null,{"$f":"AE53","v":0},null,null,{"$f":"AE52","v":0},null,null,{"$f":"AE51","v":0},null,null,{"$f":"AE44","v":0},null,null,{"$f":"AE43","v":0},null,null,{"$f":"AE42","v":0},null,null,{"$f":"AE35","v":0},null,null,{"$f":"AE34","v":0},null,null,{"$f":"AE33","v":0},null,null,null,7,null,null,null,null,null,null,null,null,null,null,null,null,null,null,null,null,null,null,null,null,null,null,null,null,15]
[null,null,null,null,null,null,null,null,null,null,null,null,null,null,null,null,null,null,null,null,null,null,null,null,null,null,null,null,null,8,null,null,null,null,null,null,null,null,null,null,null,null,null,null,null,null,null,null,null,null,null,null,null,null,16]
[null,null,null,null,null,null,null,null,null,null,null,null,null,null,null,null,null,null,null,null,null,null,null,null,null,null,null,null,null,null,"④",{"$f":"C38","v":0}]
[null,null,null,null,null,null,null,null,null,null,"⑤",null,null,null,null,null,null,null,null,null,null,null,null,null,null,null,null,null,null,1,null,null,null,null,null,null,null,null,null,null,null,null,null,null,null,null,null,null,null,null,null,null,null,null,9]
[null,null,{"$f":"'I　FACE'!C31","v":0},null,null,null,null,null,null,null,null,null,null,null,null,null,null,null,null,null,null,null,null,null,null,null,null,null,null,2,null,null,null,null,null,null,null,null,null,null,null,null,null,null,null,null,null,null,null,null,null,null,null,null,10]
[null,null,null,null,null,null,null,null,null,null,null,null,null,null,null,null,null,null,null,null,null,null,null,null,null,null,null,null,null,3,null,null,null,null,null,null,null,null,null,null,null,null,null,null,null,null,null,null,null,null,null,null,null,null,11]
[null,null,null,null,null,null,null,null,null,null,null,null,null,null,null,null,null,null,null,null,null,null,null,null,null,null,null,null,null,4,null,null,null,null,null,null,null,null,null,null,null,null,null,null,null,null,null,null,null,null,null,null,null,null,12]
[null,null,"基礎思考",null,null,null,null,null,null,null,null,null,null,null,null,null,null,null,null,null,null,null,null,null,null,null,null,null,null,5,null,null,null,null,null,null,null,null,null,null,null,null,null,null,null,null,null,null,null,null,null,null,null,null,13]
[null,"①",{"$f":"'I　FACE'!AE21","v":0},null,null,null,null,null,null,null,null,null,null,null,null,null,null,null,null,null,null,null,null,null,null,null,null,null,null,6,null,null,null,null,null,null,null,null,null,null,null,null,null,null,null,null,null,null,null,null,null,null,null,null,14]
[null,"②",{"$f":"'I　FACE'!AE22","v":0},null,null,null,null,null,null,null,null,null,null,null,null,null,null,null,null,null,null,null,null,null,null,null,null,null,null,7,null,null,null,null,null,null,null,null,null,null,null,null,null,null,null,null,null,null,null,null,null,null,null,null,15]
[null,"③.",{"$f":"'I　FACE'!AE23","v":0},null,null,null,null,null,null,null,null,null,null,null,null,null,null,null,null,null,null,null,null,null,null,null,null,null,null,8,null,null,null,null,null,null,null,null,null,null,null,null,null,null,null,null,null,null,null,null,null,null,null,null,16]
[null,"④",{"$f":"'I　FACE'!AE24","v":0},null,null,null,null,null,null,null,null,null,null,null,null,null,null,null,null,null,null,null,null,null,null,null,null,null,null,null,"⑤",{"$f":"C39","v":0}]
[null,"⑤",{"$f":"'I　FACE'!AE25","v":0},null,null,null,null,null,null,null,null,null,null,null,null,null,null,null,null,null,null,null,null,null,null,null,null,null,null,1,null,null,null,null,null,null,null,null,null,null,null,null,null,null,null,null,null,null,null,null,null,null,null,null,9]
[null,"⑥",{"$f":"'I　FACE'!AE26","v":0},null,null,null,null,null,null,null,null,null,null,null,null,null,null,null,null,null,null,null,null,null,null,null,null,null,null,2,null,null,null,null,null,null,null,null,null,null,null,null,null,null,null,null,null,null,null,null,null,null,null,null,10]
[null,"⑦",{"$f":"'I　FACE'!AE27","v":0},null,null,null,null,null,null,null,null,null,null,null,null,null,null,null,null,null,null,null,null,null,null,null,null,null,null,3,null,null,null,null,null,null,null,null,null,null,null,null,null,null,null,null,null,null,null,null,null,null,null,null,11]
[null,"⑧",{"$f":"'I　FACE'!AE28","v":0},null,null,null,null,null,null,null,null,null,null,null,null,null,null,null,null,null,null,null,null,null,null,null,null,null,null,4,null,null,null,null,null,null,null,null,null,null,null,null,null,null,null,null,null,null,null,null,null,null,null,null,12]
[null,null,null,null,null,null,null,null,null,null,null,null,null,null,null,null,null,null,null,null,null,null,null,null,null,null,null,null,null,5,null,null,null,null,null,null,null,null,null,null,null,null,null,null,null,null,null,null,null,null,null,null,null,null,13]
[null,null,null,null,null,null,null,null,null,null,null,null,null,null,null,null,null,null,null,null,null,null,null,null,null,null,null,null,null,6,null,null,null,null,null,null,null,null,null,null,null,null,null,null,null,null,null,null,null,null,null,null,null,null,14]
[null,null,null,null,null,null,null,null,null,null,null,null,null,null,null,null,null,null,null,null,null,null,null,null,null,null,null,null,null,7,null,null,null,null,null,null,null,null,null,null,null,null,null,null,null,null,null,null,null,null,null,null,null,null,15]
[null,null,null,null,null,null,null,null,null,null,null,null,null,null,null,null,null,null,null,null,null,null,null,null,null,null,null,null,null,8,null,null,null,null,null,null,null,null,null,null,null,null,null,null,null,null,null,null,null,null,null,null,null,null,16]
[null,null,null,null,null,null,null,null,null,null,null,null,null,null,null,null,null,null,null,null,null,null,null,null,null,null,null,null,null,null,"⑥",{"$f":"C40","v":0}]
[null,null,null,null,null,null,null,null,null,null,null,null,null,null,null,null,null,null,null,null,null,null,null,null,null,null,null,null,null,1,null,null,null,null,null,null,null,null,null,null,null,null,null,null,null,null,null,null,null,null,null,null,null,null,9]
[null,null,null,null,null,null,null,null,null,null,null,null,null,null,null,null,null,null,null,null,null,null,null,null,null,null,null,null,null,2,null,null,null,null,null,null,null,null,null,null,null,null,null,null,null,null,null,null,null,null,null,null,null,null,10]
[null,null,null,null,null,null,null,null,null,null,null,null,null,null,null,null,null,null,null,null,null,null,null,null,null,null,null,null,null,3,null,null,null,null,null,null,null,null,null,null,null,null,null,null,null,null,null,null,null,null,null,null,null,null,11]
[null,null,null,null,null,null,null,null,null,null,null,null,null,null,null,null,null,null,null,null,null,null,null,null,null,null,null,null,null,4,null,null,null,null,null,null,null,null,null,null,null,null,null,null,null,null,null,null,null,null,null,null,null,null,12]
[null,null,null,null,null,null,null,null,null,null,null,null,null,null,null,null,null,null,null,null,null,null,null,null,null,null,null,null,null,5,null,null,null,null,null,null,null,null,null,null,null,null,null,null,null,null,null,null,null,null,null,null,null,null,13]
[null,null,null,null,null,null,null,null,null,null,null,null,null,null,null,null,null,null,null,null,null,null,null,null,null,null,null,null,null,6,null,null,null,null,null,null,null,null,null,null,null,null,null,null,null,null,null,null,null,null,null,null,null,null,14]
[null,null,null,null,null,null,null,null,null,null,null,null,null,null,null,null,null,null,null,null,null,null,null,null,null,null,null,null,null,7,null,null,null,null,null,null,null,null,null,null,null,null,null,null,null,null,null,null,null,null,null,null,null,null,15]
[null,null,null,null,null,null,null,null,null,null,null,null,null,null,null,null,null,null,null,null,null,null,null,null,null,null,null,null,null,8,null,null,null,null,null,null,null,null,null,null,null,null,null,null,null,null,null,null,null,null,null,null,null,null,16]
[null,null,null,null,null,null,null,null,null,null,null,null,null,null,null,null,null,null,null,null,null,null,null,null,null,null,null,null,null,null,"⑦",{"$f":"C41","v":0}]
[null,null,null,null,null,null,null,null,null,null,null,null,null,null,null,null,null,null,null,null,null,null,null,null,null,null,null,null,null,1,null,null,null,null,null,null,null,null,null,null,null,null,null,null,null,null,null,null,null,null,null,null,null,null,9]
[null,null,null,null,null,null,null,null,null,null,null,null,null,null,null,null,null,null,null,null,null,null,null,null,null,null,null,null,null,2,null,null,null,null,null,null,null,null,null,null,null,null,null,null,null,null,null,null,null,null,null,null,null,null,10]
[null,null,null,null,null,null,null,null,null,null,null,null,null,null,null,null,null,null,null,null,null,null,null,null,null,null,null,null,null,3,null,null,null,null,null,null,null,null,null,null,null,null,null,null,null,null,null,null,null,null,null,null,null,null,11]
[null,null,null,null,null,null,null,null,null,null,null,null,null,null,null,null,null,null,null,null,null,null,null,null,null,null,null,null,null,4,null,null,null,null,null,null,null,null,null,null,null,null,null,null,null,null,null,null,null,null,null,null,null,null,12]
[null,null,null,null,null,null,null,null,null,null,null,null,null,null,null,null,null,null,null,null,null,null,null,null,null,null,null,null,null,5,null,null,null,null,null,null,null,null,null,null,null,null,null,null,null,null,null,null,null,null,null,null,null,null,13]
[null,null,null,null,null,null,null,null,null,null,null,null,null,null,null,null,null,null,null,null,null,null,null,null,null,null,null,null,null,6,null,null,null,null,null,null,null,null,null,null,null,null,null,null,null,null,null,null,null,null,null,null,null,null,14]
[null,null,null,null,null,null,null,null,null,null,null,null,null,null,null,null,null,null,null,null,null,null,null,null,null,null,null,null,null,7,null,null,null,null,null,null,null,null,null,null,null,null,null,null,null,null,null,null,null,null,null,null,null,null,15]
[null,null,null,null,null,null,null,null,null,null,null,null,null,null,null,null,null,null,null,null,null,null,null,null,null,null,null,null,null,8,null,null,null,null,null,null,null,null,null,null,null,null,null,null,null,null,null,null,null,null,null,null,null,null,16]
[null,null,null,null,null,null,null,null,null,null,null,null,null,null,null,null,null,null,null,null,null,null,null,null,null,null,null,null,null,null,"⑧",{"$f":"C42","v":0}]
[null,null,null,null,null,null,null,null,null,null,null,null,null,null,null,null,null,null,null,null,null,null,null,null,null,null,null,null,null,1,null,null,null,null,null,null,null,null,null,null,null,null,null,null,null,null,null,null,null,null,null,null,null,null,9]
[null,null,null,null,null,null,null,null,null,null,null,null,null,null,null,null,null,null,null,null,null,null,null,null,null,null,null,null,null,2,null,null,null,null,null,null,null,null,null,null,null,null,null,null,null,null,null,null,null,null,null,null,null,null,10]
[null,null,null,null,null,null,null,null,null,null,null,null,null,null,null,null,null,null,null,null,null,null,null,null,null,null,null,null,null,3,null,null,null,null,null,null,null,null,null,null,null,null,null,null,null,null,null,null,null,null,null,null,null,null,11]
[null,null,null,null,null,null,null,null,null,null,null,null,null,null,null,null,null,null,null,null,null,null,null,null,null,null,null,null,null,4,null,null,null,null,null,null,null,null,null,null,null,null,null,null,null,null,null,null,null,null,null,null,null,null,12]
[null,null,null,null,null,null,null,null,null,null,null,null,null,null,null,null,null,null,null,null,null,null,null,null,null,null,null,null,null,5,null,null,null,null,null,null,null,null,null,null,null,null,null,null,null,null,null,null,null,null,null,null,null,null,13]
[null,null,null,null,null,null,null,null,null,null,null,null,null,null,null,null,null,null,null,null,null,null,null,null,null,null,null,null,null,6,null,null,null,null,null,null,null,null,null,null,null,null,null,null,null,null,null,null,null,null,null,null,null,null,14]
[null,null,null,null,null,null,null,null,null,null,null,null,null,null,null,null,null,null,null,null,null,null,null,null,null,null,null,null,null,7,null,null,null,null,null,null,null,null,null,null,null,null,null,null,null,null,null,null,null,null,null,null,null,null,15]
[null,null,null,null,null,null,null,null,null,null,null,null,null,null,null,null,null,null,null,null,null,null,null,null,null,null,null,null,null,8,null,null,null,null,null,null,null,null,null,null,null,null,null,null,null,null,null,null,null,null,null,null,null,null,16]

{"sheet":"④","index":6,"n_rows":73,"n_cols":55,"rows_kept":73,"cut":false,"hidden":false,"merged":[[72,30,72,53],[72,55,72,78],[69,30,69,53],[69,55,69,78],[70,30,70,53],[70,55,70,78],[71,30,71,53],[71,55,71,78],[66,30,66,53],[66,55,66,78],[67,30,67,53],[67,55,67,78],[68,30,68,53],[68,55,68,78],[62,30,62,53],[62,55,62,78],[63,30,63,53],[63,55,63,78],[65,30,65,53],[65,55,65,78],[59,30,59,53],[59,55,59,78],[60,30,60,53],[60,55,60,78],[61,30,61,53],[61,55,61,78],[56,30,56,53],[56,55,56,78],[57,30,57,53],[57,55,57,78],[58,30,58,53],[58,55,58,78],[52,30,52,53],[52,55,52,78],[53,30,53,53],[53,55,53,78],[54,30,54,53],[54,55,54,78],[49,30,49,53],[49,55,49,78],[50,30,50,53],[50,55,50,78],[51,30,51,53],[51,55,51,78],[45,30,45,53],[45,55,45,78],[47,30,47,53],[47,55,47,78],[48,30,48,53],[48,55,48,78],[42,30,42,53],[42,55,42,78],[43,30,43,53],[43,55,43,78],[44,30,44,53],[44,55,44,78],[40,2,40,25],[40,30,40,53],[40,55,40,78],[41,2,41,25],[41,30,41,53],[41,55,41,78],[37,2,37,25],[38,2,38,25],[38,30,38,53],[38,55,38,78],[39,2,39,25],[39,30,39,53],[39,55,39,78],[35,2,35,25],[35,30,35,53],[35,55,35,78],[36,2,36,25],[36,30,36,53],[36,55,36,78],[34,2,34,25],[34,30,34,53],[34,55,34,78],[29,30,29,53],[29,55,29,78],[30,2,32,26],[30,30,30,53],[30,55,30,78],[31,30,31,53],[31,55,31,78],[32,30,32,53],[32,55,32,78],[26,1,28,3],[26,4,28,6],[26,7,28,9],[26,10,28,12],[26,13,28,15],[26,16,28,18],[33,2,33,4],[33,30,33,53],[33,55,33,78],[25,30,25,53],[25,55,25,78],[26,19,28,21],[26,22,28,24],[26,25,28,27],[26,30,26,53],[26,55,26,78],[27,30,27,53],[27,55,27,78],[22,30,22,53],[22,55,22,78],[20,1,22,3],[20,4,22,6],[20,7,22,9],[20,10,22,12],[20,13,22,15],[20,16,22,18],[23,1,25,3],[23,4,25,6],[23,7,25,9],[23,10,25,12],[23,13,25,15],[23,16,25,18],[20,19,22,21],[20,22,22,24],[20,25,22,27],[23,19,25,21],[23,22,25,24],[23,25,25,27],[23,30,23,53],[23,55,23,78],[24,30,24,53],[24,55,24,78],[17,1,19,3],[17,4,19,6],[17,7,19,9],[17,10,19,12],[17,13,19,15],[17,16,19,18],[20,30,20,53],[20,55,20,78],[21,30,21,53],[21,55,21,78],[14,30,14,53],[14,55,14,78],[15,30,15,53],[15,55,15,78],[16,30,16,53],[16,55,16,78],[17,19,19,21],[17,22,19,24],[17,25,19,27],[17,30,17,53],[17,55,17,78],[18,30,18,53],[18,55,18,78],[14,1,16,3],[14,4,16,6],[14,7,16,9],[14,10,16,12],[14,13,16,15],[14,16,16,18],[11,19,13,21],[11,22,13,24],[11,25,13,27],[14,19,16,21],[14,22,16,24],[14,25,16,27],[11,30,11,53],[11,55,11,78],[12,30,12,53],[12,55,12,78],[13,30,13,53],[13,55,13,78],[11,1,13,3],[11,4,13,6],[11,7,13,9],[11,10,13,12],[11,13,13,15],[11,16,13,18],[8,19,10,21],[8,22,10,24],[8,25,10,27],[8,30,8,53],[8,55,8,78],[9,30,9,53],[9,55,9,78],[8,1,10,3],[8,4,10,6],[8,7,10,9],[8,10,10,12],[8,13,10,15],[8,16,10,18],[5,1,7,3],[5,4,7,6],[5,7,7,9],[5,10,7,12],[5,13,7,15],[5,16,7,18],[2,30,2,53],[2,55,2,78],[3,30,3,53],[3,55,3,78],[4,30,4,53],[4,55,4,78],[5,19,7,21],[5,22,7,24],[5,25,7,27],[5,30,5,53],[5,55,5,78],[6,30,6,53],[6,55,6,78],[7,30,7,53],[7,55,7,78],[0,30,0,32],[2,1,4,3],[2,4,4,6],[2,7,4,9],[2,10,4,12],[2,13,4,15],[2,16,4,18],[2,19,4,21],[2,22,4,24],[2,25,4,27]]}
[null,null,null,null,null,null,null,null,null,null,null,null,null,null,null,null,null,null,null,null,null,null,null,null,null,null,null,null,null,null,"実践思考"]
["⑧",null,null,null,null,null,null,null,null,null,"①",null,null,null,null,null,null,null,null,"②",null,null,null,null,null,null,null,null,null,null,"①",{"$f":"C35","v":0}]
[null,{"$f":"AE73","v":0},null,null,{"$f":"AE66","v":0},null,null,{"$f":"AE67","v":0},null,null,{"$f":"AE10","v":0},null,null,{"$f":"AE3","v":0},null,null,{"$f":"AE4","v":0},null,null,{"$f":"AE19","v":0},null,null,{"$f":"AE12","v":0},null,null,{"$f":"AE13","v":0},null,null,null,1,null,null,null,null,null,null,null,null,null,null,null,null,null,null,null,null,null,null,null,null,null,null,null,null,9]
[null,null,null,null,null,null,null,null,null,null,null,null,null,null,null,null,null,null,null,null,null,null,null,null,null,null,null,null,null,2,null,null,null,null,null,null,null,null,null,null,null,null,null,null,null,null,null,null,null,null,null,null,null,null,10]
[null,null,null,null,null,null,null,null,null,null,null,null,null,null,null,null,null,null,null,null,null,null,null,null,null,null,null,null,null,3,null,null,null,null,null,null,null,null,null,null,null,null,null,null,null,null,null,null,null,null,null,null,null,null,11]
[null,{"$f":"AE72","v":0},null,null,{"$f":"C42","v":0},null,null,{"$f":"AE68","v":0},null,null,{"$f":"AE9","v":0},null,null,{"$f":"C35","v":0},null,null,{"$f":"AE5","v":0},null,null,{"$f":"AE18","v":0},null,null,{"$f":"C36","v":0},null,null,{"$f":"AE14","v":0},null,null,null,4,null,null,null,null,null,null,null,null,null,null,null,null,null,null,null,null,null,null,null,null,null,null,null,null,12]
[null,null,null,null,null,null,null,null,null,null,null,null,null,null,null,null,null,null,null,null,null,null,null,null,null,null,null,null,null,5,null,null,null,null,null,null,null,null,null,null,null,null,null,null,null,null,null,null,null,null,null,null,null,null,13]
[null,null,null,null,null,null,null,null,null,null,null,null,null,null,null,null,null,null,null,null,null,null,null,null,null,null,null,null,null,6,null,null,null,null,null,null,null,null,null,null,null,null,null,null,null,null,null,null,null,null,null,null,null,null,14]
[null,{"$f":"AE71","v":0},null,null,{"$f":"AE70","v":0},null,null,{"$f":"AE69","v":0},null,null,{"$f":"AE8","v":0},null,null,{"$f":"AE7","v":0},null,null,{"$f":"AE6","v":0},null,null,{"$f":"AE17","v":0},null,null,{"$f":"AE16","v":0},null,null,{"$f":"AE15","v":0},null,null,null,7,null,null,null,null,null,null,null,null,null,null,null,null,null,null,null,null,null,null,null,null,null,null,null,null,15]
[null,null,null,null,null,null,null,null,null,null,null,null,null,null,null,null,null,null,null,null,null,null,null,null,null,null,null,null,null,8,null,null,null,null,null,null,null,null,null,null,null,null,null,null,null,null,null,null,null,null,null,null,null,null,16]
[null,null,null,null,null,null,null,null,null,null,null,null,null,null,null,null,null,null,null,null,null,null,null,null,null,null,null,null,null,null,"②",{"$f":"C36","v":0}]
["⑦",{"$f":"AE73","v":0},null,null,{"$f":"AE57","v":0},null,null,{"$f":"AE58","v":0},null,null,{"$f":"E6","v":0},null,null,{"$f":"N6","v":0},null,null,{"$f":"W6","v":0},null,null,{"$f":"AE28","v":0},null,null,{"$f":"AE21","v":0},null,null,{"$f":"AE22","v":0},null,null,"③",1,null,null,null,null,null,null,null,null,null,null,null,null,null,null,null,null,null,null,null,null,null,null,null,null,9]
[null,null,null,null,null,null,null,null,null,null,null,null,null,null,null,null,null,null,null,null,null,null,null,null,null,null,null,null,null,2,null,null,null,null,null,null,null,null,null,null,null,null,null,null,null,null,null,null,null,null,null,null,null,null,10]
[null,null,null,null,null,null,null,null,null,null,null,null,null,null,null,null,null,null,null,null,null,null,null,null,null,null,null,null,null,3,null,null,null,null,null,null,null,null,null,null,null,null,null,null,null,null,null,null,null,null,null,null,null,null,11]
[null,{"$f":"AE63","v":0},null,null,{"$f":"C41","v":0},null,null,{"$f":"AE59","v":0},null,null,{"$f":"E15","v":0},null,null,{"$f":"'I　FACE'!C38","v":0},null,null,{"$f":"W15","v":0},null,null,{"$f":"AE27","v":0},null,null,{"$f":"C37","v":0},null,null,{"$f":"AE23","v":0},null,null,null,4,null,null,null,null,null,null,null,null,null,null,null,null,null,null,null,null,null,null,null,null,null,null,null,null,12]
[null,null,null,null,null,null,null,null,null,null,null,null,null,null,null,null,null,null,null,null,null,null,null,null,null,null,null,null,null,5,null,null,null,null,null,null,null,null,null,null,null,null,null,null,null,null,null,null,null,null,null,null,null,null,13]
[null,null,null,null,null,null,null,null,null,null,null,null,null,null,null,null,null,null,null,null,null,null,null,null,null,null,null,null,null,6,null,null,null,null,null,null,null,null,null,null,null,null,null,null,null,null,null,null,null,null,null,null,null,null,14]
[null,{"$f":"AE62","v":0},null,null,{"$f":"AE61","v":0},null,null,{"$f":"AE60","v":0},null,null,{"$f":"E24","v":0},null,null,{"$f":"N24","v":0},null,null,{"$f":"W24","v":0},null,null,{"$f":"AE26","v":0},null,null,{"$f":"AE25","v":0},null,null,{"$f":"AE24","v":0},null,null,null,7,null,null,null,null,null,null,null,null,null,null,null,null,null,null,null,null,null,null,null,null,null,null,null,null,15]
[null,null,null,null,null,null,null,null,null,null,null,null,null,null,null,null,null,null,null,null,null,null,null,null,null,null,null,null,null,8,null,null,null,null,null,null,null,null,null,null,null,null,null,null,null,null,null,null,null,null,null,null,null,null,16]
[null,null,null,null,null,null,null,null,null,null,null,null,null,null,null,null,null,null,null,null,null,null,null,null,null,null,null,null,null,null,"③",{"$f":"C37","v":0}]
["⑥",{"$f":"AE55","v":0},null,null,{"$f":"AE48","v":0},null,null,{"$f":"AE49","v":0},null,null,{"$f":"AE46","v":0},null,null,{"$f":"AE39","v":0},null,null,{"$f":"AE40","v":0},null,null,{"$f":"AE37","v":0},null,null,{"$f":"AE30","v":0},null,null,{"$f":"AE31","v":0},null,null,"④",1,null,null,null,null,null,null,null,null,null,null,null,null,null,null,null,null,null,null,null,null,null,null,null,null,9]
[null,null,null,null,null,null,null,null,null,null,null,null,null,null,null,null,null,null,null,null,null,null,null,null,null,null,null,null,null,2,null,null,null,null,null,null,null,null,null,null,null,null,null,null,null,null,null,null,null,null,null,null,null,null,10]
[null,null,null,null,null,null,null,null,null,null,null,null,null,null,null,null,null,null,null,null,null,null,null,null,null,null,null,null,null,3,null,null,null,null,null,null,null,null,null,null,null,null,null,null,null,null,null,null,null,null,null,null,null,null,11]
[null,{"$f":"AE54","v":0},null,null,{"$f":"C40","v":0},null,null,{"$f":"AE50","v":0},null,null,{"$f":"AE45","v":0},null,null,{"$f":"C39","v":0},null,null,{"$f":"AE41","v":0},null,null,{"$f":"AE36","v":0},null,null,{"$f":"C38","v":0},null,null,{"$f":"AE32","v":0},null,null,null,4,null,null,null,null,null,null,null,null,null,null,null,null,null,null,null,null,null,null,null,null,null,null,null,null,12]
[null,null,null,null,null,null,null,null,null,null,null,null,null,null,null,null,null,null,null,null,null,null,null,null,null,null,null,null,null,5,null,null,null,null,null,null,null,null,null,null,null,null,null,null,null,null,null,null,null,null,null,null,null,null,13]
[null,null,null,null,null,null,null,null,null,null,null,null,null,null,null,null,null,null,null,null,null,null,null,null,null,null,null,null,null,6,null,null,null,null,null,null,null,null,null,null,null,null,null,null,null,null,null,null,null,null,null,null,null,null,14]
[null,{"$f":"AE53","v":0},null,null,{"$f":"AE52","v":0},null,null,{"$f":"AE51","v":0},null,null,{"$f":"AE44","v":0},null,null,{"$f":"AE43","v":0},null,null,{"$f":"AE42","v":0},null,null,{"$f":"AE35","v":0},null,null,{"$f":"AE34","v":0},null,null,{"$f":"AE33","v":0},null,null,null,7,null,null,null,null,null,null,null,null,null,null,null,null,null,null,null,null,null,null,null,null,null,null,null,null,15]
[null,null,null,null,null,null,null,null,null,null,null,null,null,null,null,null,null,null,null,null,null,null,null,null,null,null,null,null,null,8,null,null,null,null,null,null,null,null,null,null,null,null,null,null,null,null,null,null,null,null,null,null,null,null,16]
[null,null,null,null,null,null,null,null,null,null,null,null,null,null,null,null,null,null,null,null,null,null,null,null,null,null,null,null,null,null,"④",{"$f":"C38","v":0}]
[null,null,null,null,null,null,null,null,null,null,"⑤",null,null,null,null,null,null,null,null,null,null,null,null,null,null,null,null,null,null,1,null,null,null,null,null,null,null,null,null,null,null,null,null,null,null,null,null,null,null,null,null,null,null,null,9]
[null,null,{"$f":"'I　FACE'!C31","v":0},null,null,null,null,null,null,null,null,null,null,null,null,null,null,null,null,null,null,null,null,null,null,null,null,null,null,2,null,null,null,null,null,null,null,null,null,null,null,null,null,null,null,null,null,null,null,null,null,null,null,null,10]
[null,null,null,null,null,null,null,null,null,null,null,null,null,null,null,null,null,null,null,null,null,null,null,null,null,null,null,null,null,3,null,null,null,null,null,null,null,null,null,null,null,null,null,null,null,null,null,null,null,null,null,null,null,null,11]
[null,null,null,null,null,null,null,null,null,null,null,null,null,null,null,null,null,null,null,null,null,null,null,null,null,null,null,null,null,4,null,null,null,null,null,null,null,null,null,null,null,null,null,null,null,null,null,null,null,null,null,null,null,null,12]
[null,null,"基礎思考",null,null,null,null,null,null,null,null,null,null,null,null,null,null,null,null,null,null,null,null,null,null,null,null,null,null,5,null,null,null,null,null,null,null,null,null,null,null,null,null,null,null,null,null,null,null,null,null,null,null,null,13]
[null,"①",{"$f":"'I　FACE'!AE30","v":0},null,null,null,null,null,null,null,null,null,null,null,null,null,null,null,null,null,null,null,null,null,null,null,null,null,null,6,null,null,null,null,null,null,null,null,null,null,null,null,null,null,null,null,null,null,null,null,null,null,null,null,14]
[null,"②",{"$f":"'I　FACE'!AE31","v":0},null,null,null,null,null,null,null,null,null,null,null,null,null,null,null,null,null,null,null,null,null,null,null,null,null,null,7,null,null,null,null,null,null,null,null,null,null,null,null,null,null,null,null,null,null,null,null,null,null,null,null,15]
[null,"③.",{"$f":"'I　FACE'!AE32","v":0},null,null,null,null,null,null,null,null,null,null,null,null,null,null,null,null,null,null,null,null,null,null,null,null,null,null,8,null,null,null,null,null,null,null,null,null,null,null,null,null,null,null,null,null,null,null,null,null,null,null,null,16]
[null,"④",{"$f":"'I　FACE'!AE33","v":0},null,null,null,null,null,null,null,null,null,null,null,null,null,null,null,null,null,null,null,null,null,null,null,null,null,null,null,"⑤",{"$f":"C39","v":0}]
[null,"⑤",{"$f":"'I　FACE'!AE34","v":0},null,null,null,null,null,null,null,null,null,null,null,null,null,null,null,null,null,null,null,null,null,null,null,null,null,null,1,null,null,null,null,null,null,null,null,null,null,null,null,null,null,null,null,null,null,null,null,null,null,null,null,9]
[null,"⑥",{"$f":"'I　FACE'!AE35","v":0},null,null,null,null,null,null,null,null,null,null,null,null,null,null,null,null,null,null,null,null,null,null,null,null,null,null,2,null,null,null,null,null,null,null,null,null,null,null,null,null,null,null,null,null,null,null,null,null,null,null,null,10]
[null,"⑦",{"$f":"'I　FACE'!AE36","v":0},null,null,null,null,null,null,null,null,null,null,null,null,null,null,null,null,null,null,null,null,null,null,null,null,null,null,3,null,null,null,null,null,null,null,null,null,null,null,null,null,null,null,null,null,null,null,null,null,null,null,null,11]
[null,"⑧",{"$f":"'I　FACE'!AE37","v":0},null,null,null,null,null,null,null,null,null,null,null,null,null,null,null,null,null,null,null,null,null,null,null,null,null,null,4,null,null,null,null,null,null,null,null,null,null,null,null,null,null,null,null,null,null,null,null,null,null,null,null,12]
[null,null,null,null,null,null,null,null,null,null,null,null,null,null,null,null,null,null,null,null,null,null,null,null,null,null,null,null,null,5,null,null,null,null,null,null,null,null,null,null,null,null,null,null,null,null,null,null,null,null,null,null,null,null,13]
[null,null,null,null,null,null,null,null,null,null,null,null,null,null,null,null,null,null,null,null,null,null,null,null,null,null,null,null,null,6,null,null,null,null,null,null,null,null,null,null,null,null,null,null,null,null,null,null,null,null,null,null,null,null,14]
[null,null,null,null,null,null,null,null,null,null,null,null,null,null,null,null,null,null,null,null,null,null,null,null,null,null,null,null,null,7,null,null,null,null,null,null,null,null,null,null,null,null,null,null,null,null,null,null,null,null,null,null,null,null,15]
[null,null,null,null,null,null,null,null,null,null,null,null,null,null,null,null,null,null,null,null,null,null,null,null,null,null,null,null,null,8,null,null,null,null,null,null,null,null,null,null,null,null,null,null,null,null,null,null,null,null,null,null,null,null,16]
[null,null,null,null,null,null,null,null,null,null,null,null,null,null,null,null,null,null,null,null,null,null,null,null,null,null,null,null,null,null,"⑥",{"$f":"C40","v":0}]
[null,null,null,null,null,null,null,null,null,null,null,null,null,null,null,null,null,null,null,null,null,null,null,null,null,null,null,null,null,1,null,null,null,null,null,null,null,null,null,null,null,null,null,null,null,null,null,null,null,null,null,null,null,null,9]
[null,null,null,null,null,null,null,null,null,null,null,null,null,null,null,null,null,null,null,null,null,null,null,null,null,null,null,null,null,2,null,null,null,null,null,null,null,null,null,null,null,null,null,null,null,null,null,null,null,null,null,null,null,null,10]
[null,null,null,null,null,null,null,null,null,null,null,null,null,null,null,null,null,null,null,null,null,null,null,null,null,null,null,null,null,3,null,null,null,null,null,null,null,null,null,null,null,null,null,null,null,null,null,null,null,null,null,null,null,null,11]
[null,null,null,null,null,null,null,null,null,null,null,null,null,null,null,null,null,null,null,null,null,null,null,null,null,null,null,null,null,4,null,null,null,null,null,null,null,null,null,null,null,null,null,null,null,null,null,null,null,null,null,null,null,null,12]
[null,null,null,null,null,null,null,null,null,null,null,null,null,null,null,null,null,null,null,null,null,null,null,null,null,null,null,null,null,5,null,null,null,null,null,null,null,null,null,null,null,null,null,null,null,null,null,null,null,null,null,null,null,null,13]
[null,null,null,null,null,null,null,null,null,null,null,null,null,null,null,null,null,null,null,null,null,null,null,null,null,null,null,null,null,6,null,null,null,null,null,null,null,null,null,null,null,null,null,null,null,null,null,null,null,null,null,null,null,null,14]
[null,null,null,null,null,null,null,null,null,null,null,null,null,null,null,null,null,null,null,null,null,null,null,null,null,null,null,null,null,7,null,null,null,null,null,null,null,null,null,null,null,null,null,null,null,null,null,null,null,null,null,null,null,null,15]
[null,null,null,null,null,null,null,null,null,null,null,null,null,null,null,null,null,null,null,null,null,null,null,null,null,null,null,null,null,8,null,null,null,null,null,null,null,null,null,null,null,null,null,null,null,null,null,null,null,null,null,null,null,null,16]
[null,null,null,null,null,null,null,null,null,null,null,null,null,null,null,null,null,null,null,null,null,null,null,null,null,null,null,null,null,null,"⑦",{"$f":"C41","v":0}]
[null,null,null,null,null,null,null,null,null,null,null,null,null,null,null,null,null,null,null,null,null,null,null,null,null,null,null,null,null,1,null,null,null,null,null,null,null,null,null,null,null,null,null,null,null,null,null,null,null,null,null,null,null,null,9]
[null,null,null,null,null,null,null,null,null,null,null,null,null,null,null,null,null,null,null,null,null,null,null,null,null,null,null,null,null,2,null,null,null,null,null,null,null,null,null,null,null,null,null,null,null,null,null,null,null,null,null,null,null,null,10]
[null,null,null,null,null,null,null,null,null,null,null,null,null,null,null,null,null,null,null,null,null,null,null,null,null,null,null,null,null,3,null,null,null,null,null,null,null,null,null,null,null,null,null,null,null,null,null,null,null,null,null,null,null,null,11]
[null,null,null,null,null,null,null,null,null,null,null,null,null,null,null,null,null,null,null,null,null,null,null,null,null,null,null,null,null,4,null,null,null,null,null,null,null,null,null,null,null,null,null,null,null,null,null,null,null,null,null,null,null,null,12]
[null,null,null,null,null,null,null,null,null,null,null,null,null,null,null,null,null,null,null,null,null,null,null,null,null,null,null,null,null,5,null,null,null,null,null,null,null,null,null,null,null,null,null,null,null,null,null,null,null,null,null,null,null,null,13]
[null,null,null,null,null,null,null,null,null,null,null,null,null,null,null,null,null,null,null,null,null,null,null,null,null,null,null,null,null,6,null,null,null,null,null,null,null,null,null,null,null,null,null,null,null,null,null,null,null,null,null,null,null,null,14]
[null,null,null,null,null,null,null,null,null,null,null,null,null,null,null,null,null,null,null,null,null,null,null,null,null,null,null,null,null,7,null,null,null,null,null,null,null,null,null,null,null,null,null,null,null,null,null,null,null,null,null,null,null,null,15]
[null,null,null,null,null,null,null,null,null,null,null,null,null,null,null,null,null,null,null,null,null,null,null,null,null,null,null,null,null,8,null,null,null,null,null,null,null,null,null,null,null,null,null,null,null,null,null,null,null,null,null,null,null,null,16]
[null,null,null,null,null,null,null,null,null,null,null,null,null,null,null,null,null,null,null,null,null,null,null,null,null,null,null,null,null,null,"⑧",{"$f":"C42","v":0}]
[null,null,null,null,null,null,null,null,null,null,null,null,null,null,null,null,null,null,null,null,null,null,null,null,null,null,null,null,null,1,null,null,null,null,null,null,null,null,null,null,null,null,null,null,null,null,null,null,null,null,null,null,null,null,9]
[null,null,null,null,null,null,null,null,null,null,null,null,null,null,null,null,null,null,null,null,null,null,null,null,null,null,null,null,null,2,null,null,null,null,null,null,null,null,null,null,null,null,null,null,null,null,null,null,null,null,null,null,null,null,10]
[null,null,null,null,null,null,null,null,null,null,null,null,null,null,null,null,null,null,null,null,null,null,null,null,null,null,null,null,null,3,null,null,null,null,null,null,null,null,null,null,null,null,null,null,null,null,null,null,null,null,null,null,null,null,11]
[null,null,null,null,null,null,null,null,null,null,null,null,null,null,null,null,null,null,null,null,null,null,null,null,null,null,null,null,null,4,null,null,null,null,null,null,null,null,null,null,null,null,null,null,null,null,null,null,null,null,null,null,null,null,12]
[null,null,null,null,null,null,null,null,null,null,null,null,null,null,null,null,null,null,null,null,null,null,null,null,null,null,null,null,null,5,null,null,null,null,null,null,null,null,null,null,null,null,null,null,null,null,null,null,null,null,null,null,null,null,13]
[null,null,null,null,null,null,null,null,null,null,null,null,null,null,null,null,null,null,null,null,null,null,null,null,null,null,null,null,null,6,null,null,null,null,null,null,null,null,null,null,null,null,null,null,null,null,null,null,null,null,null,null,null,null,14]
[null,null,null,null,null,null,null,null,null,null,null,null,null,null,null,null,null,null,null,null,null,null,null,null,null,null,null,null,null,7,null,null,null,null,null,null,null,null,null,null,null,null,null,null,null,null,null,null,null,null,null,null,null,null,15]
[null,null,null,null,null,null,null,null,null,null,null,null,null,null,null,null,null,null,null,null,null,null,null,null,null,null,null,null,null,8,null,null,null,null,null,null,null,null,null,null,null,null,null,null,null,null,null,null,null,null,null,null,null,null,16]

{"sheet":"⑤","index":7,"n_rows":73,"n_cols":55,"rows_kept":73,"cut":false,"hidden":false,"merged":[[72,30,72,53],[72,55,72,78],[69,30,69,53],[69,55,69,78],[70,30,70,53],[70,55,70,78],[71,30,71,53],[71,55,71,78],[66,30,66,53],[66,55,66,78],[67,30,67,53],[67,55,67,78],[68,30,68,53],[68,55,68,78],[62,30,62,53],[62,55,62,78],[63,30,63,53],[63,55,63,78],[65,30,65,53],[65,55,65,78],[59,30,59,53],[59,55,59,78],[60,30,60,53],[60,55,60,78],[61,30,61,53],[61,55,61,78],[56,30,56,53],[56,55,56,78],[57,30,57,53],[57,55,57,78],[58,30,58,53],[58,55,58,78],[52,30,52,53],[52,55,52,78],[53,30,53,53],[53,55,53,78],[54,30,54,53],[54,55,54,78],[49,30,49,53],[49,55,49,78],[50,30,50,53],[50,55,50,78],[51,30,51,53],[51,55,51,78],[45,30,45,53],[45,55,45,78],[47,30,47,53],[47,55,47,78],[48,30,48,53],[48,55,48,78],[42,30,42,53],[42,55,42,78],[43,30,43,53],[43,55,43,78],[44,30,44,53],[44,55,44,78],[40,2,40,25],[40,30,40,53],[40,55,40,78],[41,2,41,25],[41,30,41,53],[41,55,41,78],[37,2,37,25],[38,2,38,25],[38,30,38,53],[38,55,38,78],[39,2,39,25],[39,30,39,53],[39,55,39,78],[35,2,35,25],[35,30,35,53],[35,55,35,78],[36,2,36,25],[36,30,36,53],[36,55,36,78],[34,2,34,25],[34,30,34,53],[34,55,34,78],[29,30,29,53],[29,55,29,78],[30,2,32,26],[30,30,30,53],[30,55,30,78],[31,30,31,53],[31,55,31,78],[32,30,32,53],[32,55,32,78],[26,1,28,3],[26,4,28,6],[26,7,28,9],[26,10,28,12],[26,13,28,15],[26,16,28,18],[33,2,33,4],[33,30,33,53],[33,55,33,78],[25,30,25,53],[25,55,25,78],[26,19,28,21],[26,22,28,24],[26,25,28,27],[26,30,26,53],[26,55,26,78],[27,30,27,53],[27,55,27,78],[22,30,22,53],[22,55,22,78],[20,1,22,3],[20,4,22,6],[20,7,22,9],[20,10,22,12],[20,13,22,15],[20,16,22,18],[23,1,25,3],[23,4,25,6],[23,7,25,9],[23,10,25,12],[23,13,25,15],[23,16,25,18],[20,19,22,21],[20,22,22,24],[20,25,22,27],[23,19,25,21],[23,22,25,24],[23,25,25,27],[23,30,23,53],[23,55,23,78],[24,30,24,53],[24,55,24,78],[17,1,19,3],[17,4,19,6],[17,7,19,9],[17,10,19,12],[17,13,19,15],[17,16,19,18],[20,30,20,53],[20,55,20,78],[21,30,21,53],[21,55,21,78],[14,30,14,53],[14,55,14,78],[15,30,15,53],[15,55,15,78],[16,30,16,53],[16,55,16,78],[17,19,19,21],[17,22,19,24],[17,25,19,27],[17,30,17,53],[17,55,17,78],[18,30,18,53],[18,55,18,78],[14,1,16,3],[14,4,16,6],[14,7,16,9],[14,10,16,12],[14,13,16,15],[14,16,16,18],[11,19,13,21],[11,22,13,24],[11,25,13,27],[14,19,16,21],[14,22,16,24],[14,25,16,27],[11,30,11,53],[11,55,11,78],[12,30,12,53],[12,55,12,78],[13,30,13,53],[13,55,13,78],[11,1,13,3],[11,4,13,6],[11,7,13,9],[11,10,13,12],[11,13,13,15],[11,16,13,18],[8,19,10,21],[8,22,10,24],[8,25,10,27],[8,30,8,53],[8,55,8,78],[9,30,9,53],[9,55,9,78],[8,1,10,3],[8,4,10,6],[8,7,10,9],[8,10,10,12],[8,13,10,15],[8,16,10,18],[5,1,7,3],[5,4,7,6],[5,7,7,9],[5,10,7,12],[5,13,7,15],[5,16,7,18],[2,30,2,53],[2,55,2,78],[3,30,3,53],[3,55,3,78],[4,30,4,53],[4,55,4,78],[5,19,7,21],[5,22,7,24],[5,25,7,27],[5,30,5,53],[5,55,5,78],[6,30,6,53],[6,55,6,78],[7,30,7,53],[7,55,7,78],[0,30,0,32],[2,1,4,3],[2,4,4,6],[2,7,4,9],[2,10,4,12],[2,13,4,15],[2,16,4,18],[2,19,4,21],[2,22,4,24],[2,25,4,27]]}
[null,null,null,null,null,null,null,null,null,null,null,null,null,null,null,null,null,null,null,null,null,null,null,null,null,null,null,null,null,null,"実践思考"]
["⑧",null,null,null,null,null,null,null,null,null,"①",null,null,null,null,null,null,null,null,"②",null,null,null,null,null,null,null,null,null,null,"①",{"$f":"C35","v":0}]
[null,{"$f":"AE73","v":0},null,null,{"$f":"AE66","v":0},null,null,{"$f":"AE67","v":0},null,null,{"$f":"AE10","v":0},null,null,{"$f":"AE3","v":0},null,null,{"$f":"AE4","v":0},null,null,{"$f":"AE19","v":0},null,null,{"$f":"AE12","v":0},null,null,{"$f":"AE13","v":0},null,null,null,1,null,null,null,null,null,null,null,null,null,null,null,null,null,null,null,null,null,null,null,null,null,null,null,null,9]
[null,null,null,null,null,null,null,null,null,null,null,null,null,null,null,null,null,null,null,null,null,null,null,null,null,null,null,null,null,2,null,null,null,null,null,null,null,null,null,null,null,null,null,null,null,null,null,null,null,null,null,null,null,null,10]
[null,null,null,null,null,null,null,null,null,null,null,null,null,null,null,null,null,null,null,null,null,null,null,null,null,null,null,null,null,3,null,null,null,null,null,null,null,null,null,null,null,null,null,null,null,null,null,null,null,null,null,null,null,null,11]
[null,{"$f":"AE72","v":0},null,null,{"$f":"C42","v":0},null,null,{"$f":"AE68","v":0},null,null,{"$f":"AE9","v":0},null,null,{"$f":"C35","v":0},null,null,{"$f":"AE5","v":0},null,null,{"$f":"AE18","v":0},null,null,{"$f":"C36","v":0},null,null,{"$f":"AE14","v":0},null,null,null,4,null,null,null,null,null,null,null,null,null,null,null,null,null,null,null,null,null,null,null,null,null,null,null,null,12]
[null,null,null,null,null,null,null,null,null,null,null,null,null,null,null,null,null,null,null,null,null,null,null,null,null,null,null,null,null,5,null,null,null,null,null,null,null,null,null,null,null,null,null,null,null,null,null,null,null,null,null,null,null,null,13]
[null,null,null,null,null,null,null,null,null,null,null,null,null,null,null,null,null,null,null,null,null,null,null,null,null,null,null,null,null,6,null,null,null,null,null,null,null,null,null,null,null,null,null,null,null,null,null,null,null,null,null,null,null,null,14]
[null,{"$f":"AE71","v":0},null,null,{"$f":"AE70","v":0},null,null,{"$f":"AE69","v":0},null,null,{"$f":"AE8","v":0},null,null,{"$f":"AE7","v":0},null,null,{"$f":"AE6","v":0},null,null,{"$f":"AE17","v":0},null,null,{"$f":"AE16","v":0},null,null,{"$f":"AE15","v":0},null,null,null,7,null,null,null,null,null,null,null,null,null,null,null,null,null,null,null,null,null,null,null,null,null,null,null,null,15]
[null,null,null,null,null,null,null,null,null,null,null,null,null,null,null,null,null,null,null,null,null,null,null,null,null,null,null,null,null,8,null,null,null,null,null,null,null,null,null,null,null,null,null,null,null,null,null,null,null,null,null,null,null,null,16]
[null,null,null,null,null,null,null,null,null,null,null,null,null,null,null,null,null,null,null,null,null,null,null,null,null,null,null,null,null,null,"②",{"$f":"C36","v":0}]
["⑦",{"$f":"AE73","v":0},null,null,{"$f":"AE57","v":0},null,null,{"$f":"AE58","v":0},null,null,{"$f":"E6","v":0},null,null,{"$f":"N6","v":0},null,null,{"$f":"W6","v":0},null,null,{"$f":"AE28","v":0},null,null,{"$f":"AE21","v":0},null,null,{"$f":"AE22","v":0},null,null,"③",1,null,null,null,null,null,null,null,null,null,null,null,null,null,null,null,null,null,null,null,null,null,null,null,null,9]
[null,null,null,null,null,null,null,null,null,null,null,null,null,null,null,null,null,null,null,null,null,null,null,null,null,null,null,null,null,2,null,null,null,null,null,null,null,null,null,null,null,null,null,null,null,null,null,null,null,null,null,null,null,null,10]
[null,null,null,null,null,null,null,null,null,null,null,null,null,null,null,null,null,null,null,null,null,null,null,null,null,null,null,null,null,3,null,null,null,null,null,null,null,null,null,null,null,null,null,null,null,null,null,null,null,null,null,null,null,null,11]
[null,{"$f":"AE63","v":0},null,null,{"$f":"C41","v":0},null,null,{"$f":"AE59","v":0},null,null,{"$f":"E15","v":0},null,null,{"$f":"'I　FACE'!C39","v":0},null,null,{"$f":"W15","v":0},null,null,{"$f":"AE27","v":0},null,null,{"$f":"C37","v":0},null,null,{"$f":"AE23","v":0},null,null,null,4,null,null,null,null,null,null,null,null,null,null,null,null,null,null,null,null,null,null,null,null,null,null,null,null,12]
[null,null,null,null,null,null,null,null,null,null,null,null,null,null,null,null,null,null,null,null,null,null,null,null,null,null,null,null,null,5,null,null,null,null,null,null,null,null,null,null,null,null,null,null,null,null,null,null,null,null,null,null,null,null,13]
[null,null,null,null,null,null,null,null,null,null,null,null,null,null,null,null,null,null,null,null,null,null,null,null,null,null,null,null,null,6,null,null,null,null,null,null,null,null,null,null,null,null,null,null,null,null,null,null,null,null,null,null,null,null,14]
[null,{"$f":"AE62","v":0},null,null,{"$f":"AE61","v":0},null,null,{"$f":"AE60","v":0},null,null,{"$f":"E24","v":0},null,null,{"$f":"N24","v":0},null,null,{"$f":"W24","v":0},null,null,{"$f":"AE26","v":0},null,null,{"$f":"AE25","v":0},null,null,{"$f":"AE24","v":0},null,null,null,7,null,null,null,null,null,null,null,null,null,null,null,null,null,null,null,null,null,null,null,null,null,null,null,null,15]
[null,null,null,null,null,null,null,null,null,null,null,null,null,null,null,null,null,null,null,null,null,null,null,null,null,null,null,null,null,8,null,null,null,null,null,null,null,null,null,null,null,null,null,null,null,null,null,null,null,null,null,null,null,null,16]
[null,null,null,null,null,null,null,null,null,null,null,null,null,null,null,null,null,null,null,null,null,null,null,null,null,null,null,null,null,null,"③",{"$f":"C37","v":0}]
["⑥",{"$f":"AE55","v":0},null,null,{"$f":"AE48","v":0},null,null,{"$f":"AE49","v":0},null,null,{"$f":"AE46","v":0},null,null,{"$f":"AE39","v":0},null,null,{"$f":"AE40","v":0},null,null,{"$f":"AE37","v":0},null,null,{"$f":"AE30","v":0},null,null,{"$f":"AE31","v":0},null,null,"④",1,null,null,null,null,null,null,null,null,null,null,null,null,null,null,null,null,null,null,null,null,null,null,null,null,9]
[null,null,null,null,null,null,null,null,null,null,null,null,null,null,null,null,null,null,null,null,null,null,null,null,null,null,null,null,null,2,null,null,null,null,null,null,null,null,null,null,null,null,null,null,null,null,null,null,null,null,null,null,null,null,10]
[null,null,null,null,null,null,null,null,null,null,null,null,null,null,null,null,null,null,null,null,null,null,null,null,null,null,null,null,null,3,null,null,null,null,null,null,null,null,null,null,null,null,null,null,null,null,null,null,null,null,null,null,null,null,11]
[null,{"$f":"AE54","v":0},null,null,{"$f":"C40","v":0},null,null,{"$f":"AE50","v":0},null,null,{"$f":"AE45","v":0},null,null,{"$f":"C39","v":0},null,null,{"$f":"AE41","v":0},null,null,{"$f":"AE36","v":0},null,null,{"$f":"C38","v":0},null,null,{"$f":"AE32","v":0},null,null,null,4,null,null,null,null,null,null,null,null,null,null,null,null,null,null,null,null,null,null,null,null,null,null,null,null,12]
[null,null,null,null,null,null,null,null,null,null,null,null,null,null,null,null,null,null,null,null,null,null,null,null,null,null,null,null,null,5,null,null,null,null,null,null,null,null,null,null,null,null,null,null,null,null,null,null,null,null,null,null,null,null,13]
[null,null,null,null,null,null,null,null,null,null,null,null,null,null,null,null,null,null,null,null,null,null,null,null,null,null,null,null,null,6,null,null,null,null,null,null,null,null,null,null,null,null,null,null,null,null,null,null,null,null,null,null,null,null,14]
[null,{"$f":"AE53","v":0},null,null,{"$f":"AE52","v":0},null,null,{"$f":"AE51","v":0},null,null,{"$f":"AE44","v":0},null,null,{"$f":"AE43","v":0},null,null,{"$f":"AE42","v":0},null,null,{"$f":"AE35","v":0},null,null,{"$f":"AE34","v":0},null,null,{"$f":"AE33","v":0},null,null,null,7,null,null,null,null,null,null,null,null,null,null,null,null,null,null,null,null,null,null,null,null,null,null,null,null,15]
[null,null,null,null,null,null,null,null,null,null,null,null,null,null,null,null,null,null,null,null,null,null,null,null,null,null,null,null,null,8,null,null,null,null,null,null,null,null,null,null,null,null,null,null,null,null,null,null,null,null,null,null,null,null,16]
[null,null,null,null,null,null,null,null,null,null,null,null,null,null,null,null,null,null,null,null,null,null,null,null,null,null,null,null,null,null,"④",{"$f":"C38","v":0}]
[null,null,null,null,null,null,null,null,null,null,"⑤",null,null,null,null,null,null,null,null,null,null,null,null,null,null,null,null,null,null,1,null,null,null,null,null,null,null,null,null,null,null,null,null,null,null,null,null,null,null,null,null,null,null,null,9]
[null,null,{"$f":"'I　FACE'!C31","v":0},null,null,null,null,null,null,null,null,null,null,null,null,null,null,null,null,null,null,null,null,null,null,null,null,null,null,2,null,null,null,null,null,null,null,null,null,null,null,null,null,null,null,null,null,null,null,null,null,null,null,null,10]
[null,null,null,null,null,null,null,null,null,null,null,null,null,null,null,null,null,null,null,null,null,null,null,null,null,null,null,null,null,3,null,null,null,null,null,null,null,null,null,null,null,null,null,null,null,null,null,null,null,null,null,null,null,null,11]
[null,null,null,null,null,null,null,null,null,null,null,null,null,null,null,null,null,null,null,null,null,null,null,null,null,null,null,null,null,4,null,null,null,null,null,null,null,null,null,null,null,null,null,null,null,null,null,null,null,null,null,null,null,null,12]
[null,null,"基礎思考",null,null,null,null,null,null,null,null,null,null,null,null,null,null,null,null,null,null,null,null,null,null,null,null,null,null,5,null,null,null,null,null,null,null,null,null,null,null,null,null,null,null,null,null,null,null,null,null,null,null,null,13]
[null,"①",{"$f":"'I　FACE'!AE39","v":0},null,null,null,null,null,null,null,null,null,null,null,null,null,null,null,null,null,null,null,null,null,null,null,null,null,null,6,null,null,null,null,null,null,null,null,null,null,null,null,null,null,null,null,null,null,null,null,null,null,null,null,14]
[null,"②",{"$f":"'I　FACE'!AE40","v":0},null,null,null,null,null,null,null,null,null,null,null,null,null,null,null,null,null,null,null,null,null,null,null,null,null,null,7,null,null,null,null,null,null,null,null,null,null,null,null,null,null,null,null,null,null,null,null,null,null,null,null,15]
[null,"③.",{"$f":"'I　FACE'!AE41","v":0},null,null,null,null,null,null,null,null,null,null,null,null,null,null,null,null,null,null,null,null,null,null,null,null,null,null,8,null,null,null,null,null,null,null,null,null,null,null,null,null,null,null,null,null,null,null,null,null,null,null,null,16]
[null,"④",{"$f":"'I　FACE'!AE42","v":0},null,null,null,null,null,null,null,null,null,null,null,null,null,null,null,null,null,null,null,null,null,null,null,null,null,null,null,"⑤",{"$f":"C39","v":0}]
[null,"⑤",{"$f":"'I　FACE'!AE43","v":0},null,null,null,null,null,null,null,null,null,null,null,null,null,null,null,null,null,null,null,null,null,null,null,null,null,null,1,null,null,null,null,null,null,null,null,null,null,null,null,null,null,null,null,null,null,null,null,null,null,null,null,9]
[null,"⑥",{"$f":"'I　FACE'!AE44","v":0},null,null,null,null,null,null,null,null,null,null,null,null,null,null,null,null,null,null,null,null,null,null,null,null,null,null,2,null,null,null,null,null,null,null,null,null,null,null,null,null,null,null,null,null,null,null,null,null,null,null,null,10]
[null,"⑦",{"$f":"'I　FACE'!AE45","v":0},null,null,null,null,null,null,null,null,null,null,null,null,null,null,null,null,null,null,null,null,null,null,null,null,null,null,3,null,null,null,null,null,null,null,null,null,null,null,null,null,null,null,null,null,null,null,null,null,null,null,null,11]
[null,"⑧",{"$f":"'I　FACE'!AE46","v":0},null,null,null,null,null,null,null,null,null,null,null,null,null,null,null,null,null,null,null,null,null,null,null,null,null,null,4,null,null,null,null,null,null,null,null,null,null,null,null,null,null,null,null,null,null,null,null,null,null,null,null,12]
[null,null,null,null,null,null,null,null,null,null,null,null,null,null,null,null,null,null,null,null,null,null,null,null,null,null,null,null,null,5,null,null,null,null,null,null,null,null,null,null,null,null,null,null,null,null,null,null,null,null,null,null,null,null,13]
[null,null,null,null,null,null,null,null,null,null,null,null,null,null,null,null,null,null,null,null,null,null,null,null,null,null,null,null,null,6,null,null,null,null,null,null,null,null,null,null,null,null,null,null,null,null,null,null,null,null,null,null,null,null,14]
[null,null,null,null,null,null,null,null,null,null,null,null,null,null,null,null,null,null,null,null,null,null,null,null,null,null,null,null,null,7,null,null,null,null,null,null,null,null,null,null,null,null,null,null,null,null,null,null,null,null,null,null,null,null,15]
[null,null,null,null,null,null,null,null,null,null,null,null,null,null,null,null,null,null,null,null,null,null,null,null,null,null,null,null,null,8,null,null,null,null,null,null,null,null,null,null,null,null,null,null,null,null,null,null,null,null,null,null,null,null,16]
[null,null,null,null,null,null,null,null,null,null,null,null,null,null,null,null,null,null,null,null,null,null,null,null,null,null,null,null,null,null,"⑥",{"$f":"C40","v":0}]
[null,null,null,null,null,null,null,null,null,null,null,null,null,null,null,null,null,null,null,null,null,null,null,null,null,null,null,null,null,1,null,null,null,null,null,null,null,null,null,null,null,null,null,null,null,null,null,null,null,null,null,null,null,null,9]
[null,null,null,null,null,null,null,null,null,null,null,null,null,null,null,null,null,null,null,null,null,null,null,null,null,null,null,null,null,2,null,null,null,null,null,null,null,null,null,null,null,null,null,null,null,null,null,null,null,null,null,null,null,null,10]
[null,null,null,null,null,null,null,null,null,null,null,null,null,null,null,null,null,null,null,null,null,null,null,null,null,null,null,null,null,3,null,null,null,null,null,null,null,null,null,null,null,null,null,null,null,null,null,null,null,null,null,null,null,null,11]
[null,null,null,null,null,null,null,null,null,null,null,null,null,null,null,null,null,null,null,null,null,null,null,null,null,null,null,null,null,4,null,null,null,null,null,null,null,null,null,null,null,null,null,null,null,null,null,null,null,null,null,null,null,null,12]
[null,null,null,null,null,null,null,null,null,null,null,null,null,null,null,null,null,null,null,null,null,null,null,null,null,null,null,null,null,5,null,null,null,null,null,null,null,null,null,null,null,null,null,null,null,null,null,null,null,null,null,null,null,null,13]
[null,null,null,null,null,null,null,null,null,null,null,null,null,null,null,null,null,null,null,null,null,null,null,null,null,null,null,null,null,6,null,null,null,null,null,null,null,null,null,null,null,null,null,null,null,null,null,null,null,null,null,null,null,null,14]
[null,null,null,null,null,null,null,null,null,null,null,null,null,null,null,null,null,null,null,null,null,null,null,null,null,null,null,null,null,7,null,null,null,null,null,null,null,null,null,null,null,null,null,null,null,null,null,null,null,null,null,null,null,null,15]
[null,null,null,null,null,null,null,null,null,null,null,null,null,null,null,null,null,null,null,null,null,null,null,null,null,null,null,null,null,8,null,null,null,null,null,null,null,null,null,null,null,null,null,null,null,null,null,null,null,null,null,null,null,null,16]
[null,null,null,null,null,null,null,null,null,null,null,null,null,null,null,null,null,null,null,null,null,null,null,null,null,null,null,null,null,null,"⑦",{"$f":"C41","v":0}]
[null,null,null,null,null,null,null,null,null,null,null,null,null,null,null,null,null,null,null,null,null,null,null,null,null,null,null,null,null,1,null,null,null,null,null,null,null,null,null,null,null,null,null,null,null,null,null,null,null,null,null,null,null,null,9]
[null,null,null,null,null,null,null,null,null,null,null,null,null,null,null,null,null,null,null,null,null,null,null,null,null,null,null,null,null,2,null,null,null,null,null,null,null,null,null,null,null,null,null,null,null,null,null,null,null,null,null,null,null,null,10]
[null,null,null,null,null,null,null,null,null,null,null,null,null,null,null,null,null,null,null,null,null,null,null,null,null,null,null,null,null,3,null,null,null,null,null,null,null,null,null,null,null,null,null,null,null,null,null,null,null,null,null,null,null,null,11]
[null,null,null,null,null,null,null,null,null,null,null,null,null,null,null,null,null,null,null,null,null,null,null,null,null,null,null,null,null,4,null,null,null,null,null,null,null,null,null,null,null,null,null,null,null,null,null,null,null,null,null,null,null,null,12]
[null,null,null,null,null,null,null,null,null,null,null,null,null,null,null,null,null,null,null,null,null,null,null,null,null,null,null,null,null,5,null,null,null,null,null,null,null,null,null,null,null,null,null,null,null,null,null,null,null,null,null,null,null,null,13]
[null,null,null,null,null,null,null,null,null,null,null,null,null,null,null,null,null,null,null,null,null,null,null,null,null,null,null,null,null,6,null,null,null,null,null,null,null,null,null,null,null,null,null,null,null,null,null,null,null,null,null,null,null,null,14]
[null,null,null,null,null,null,null,null,null,null,null,null,null,null,null,null,null,null,null,null,null,null,null,null,null,null,null,null,null,7,null,null,null,null,null,null,null,null,null,null,null,null,null,null,null,null,null,null,null,null,null,null,null,null,15]
[null,null,null,null,null,null,null,null,null,null,null,null,null,null,null,null,null,null,null,null,null,null,null,null,null,null,null,null,null,8,null,null,null,null,null,null,null,null,null,null,null,null,null,null,null,null,null,null,null,null,null,null,null,null,16]
[null,null,null,null,null,null,null,null,null,null,null,null,null,null,null,null,null,null,null,null,null,null,null,null,null,null,null,null,null,null,"⑧",{"$f":"C42","v":0}]
[null,null,null,null,null,null,null,null,null,null,null,null,null,null,null,null,null,null,null,null,null,null,null,null,null,null,null,null,null,1,null,null,null,null,null,null,null,null,null,null,null,null,null,null,null,null,null,null,null,null,null,null,null,null,9]
[null,null,null,null,null,null,null,null,null,null,null,null,null,null,null,null,null,null,null,null,null,null,null,null,null,null,null,null,null,2,null,null,null,null,null,null,null,null,null,null,null,null,null,null,null,null,null,null,null,null,null,null,null,null,10]
[null,null,null,null,null,null,null,null,null,null,null,null,null,null,null,null,null,null,null,null,null,null,null,null,null,null,null,null,null,3,null,null,null,null,null,null,null,null,null,null,null,null,null,null,null,null,null,null,null,null,null,null,null,null,11]
[null,null,null,null,null,null,null,null,null,null,null,null,null,null,null,null,null,null,null,null,null,null,null,null,null,null,null,null,null,4,null,null,null,null,null,null,null,null,null,null,null,null,null,null,null,null,null,null,null,null,null,null,null,null,12]
[null,null,null,null,null,null,null,null,null,null,null,null,null,null,null,null,null,null,null,null,null,null,null,null,null,null,null,null,null,5,null,null,null,null,null,null,null,null,null,null,null,null,null,null,null,null,null,null,null,null,null,null,null,null,13]
[null,null,null,null,null,null,null,null,null,null,null,null,null,null,null,null,null,null,null,null,null,null,null,null,null,null,null,null,null,6,null,null,null,null,null,null,null,null,null,null,null,null,null,null,null,null,null,null,null,null,null,null,null,null,14]
[null,null,null,null,null,null,null,null,null,null,null,null,null,null,null,null,null,null,null,null,null,null,null,null,null,null,null,null,null,7,null,null,null,null,null,null,null,null,null,null,null,null,null,null,null,null,null,null,null,null,null,null,null,null,15]
[null,null,null,null,null,null,null,null,null,null,null,null,null,null,null,null,null,null,null,null,null,null,null,null,null,null,null,null,null,8,null,null,null,null,null,null,null,null,null,null,null,null,null,null,null,null,null,null,null,null,null,null,null,null,16]

{"sheet":"⑥","index":8,"n_rows":73,"n_cols":55,"rows_kept":73,"cut":false,"hidden":false,"merged":[[72,30,72,53],[72,55,72,78],[69,30,69,53],[69,55,69,78],[70,30,70,53],[70,55,70,78],[71,30,71,53],[71,55,71,78],[66,30,66,53],[66,55,66,78],[67,30,67,53],[67,55,67,78],[68,30,68,53],[68,55,68,78],[62,30,62,53],[62,55,62,78],[63,30,63,53],[63,55,63,78],[65,30,65,53],[65,55,65,78],[59,30,59,53],[59,55,59,78],[60,30,60,53],[60,55,60,78],[61,30,61,53],[61,55,61,78],[56,30,56,53],[56,55,56,78],[57,30,57,53],[57,55,57,78],[58,30,58,53],[58,55,58,78],[52,30,52,53],[52,55,52,78],[53,30,53,53],[53,55,53,78],[54,30,54,53],[54,55,54,78],[49,30,49,53],[49,55,49,78],[50,30,50,53],[50,55,50,78],[51,30,51,53],[51,55,51,78],[45,30,45,53],[45,55,45,78],[47,30,47,53],[47,55,47,78],[48,30,48,53],[48,55,48,78],[42,30,42,53],[42,55,42,78],[43,30,43,53],[43,55,43,78],[44,30,44,53],[44,55,44,78],[40,2,40,25],[40,30,40,53],[40,55,40,78],[41,2,41,25],[41,30,41,53],[41,55,41,78],[37,2,37,25],[38,2,38,25],[38,30,38,53],[38,55,38,78],[39,2,39,25],[39,30,39,53],[39,55,39,78],[35,2,35,25],[35,30,35,53],[35,55,35,78],[36,2,36,25],[36,30,36,53],[36,55,36,78],[34,2,34,25],[34,30,34,53],[34,55,34,78],[29,30,29,53],[29,55,29,78],[30,2,32,26],[30,30,30,53],[30,55,30,78],[31,30,31,53],[31,55,31,78],[32,30,32,53],[32,55,32,78],[26,1,28,3],[26,4,28,6],[26,7,28,9],[26,10,28,12],[26,13,28,15],[26,16,28,18],[33,2,33,4],[33,30,33,53],[33,55,33,78],[25,30,25,53],[25,55,25,78],[26,19,28,21],[26,22,28,24],[26,25,28,27],[26,30,26,53],[26,55,26,78],[27,30,27,53],[27,55,27,78],[22,30,22,53],[22,55,22,78],[20,1,22,3],[20,4,22,6],[20,7,22,9],[20,10,22,12],[20,13,22,15],[20,16,22,18],[23,1,25,3],[23,4,25,6],[23,7,25,9],[23,10,25,12],[23,13,25,15],[23,16,25,18],[20,19,22,21],[20,22,22,24],[20,25,22,27],[23,19,25,21],[23,22,25,24],[23,25,25,27],[23,30,23,53],[23,55,23,78],[24,30,24,53],[24,55,24,78],[17,1,19,3],[17,4,19,6],[17,7,19,9],[17,10,19,12],[17,13,19,15],[17,16,19,18],[20,30,20,53],[20,55,20,78],[21,30,21,53],[21,55,21,78],[14,30,14,53],[14,55,14,78],[15,30,15,53],[15,55,15,78],[16,30,16,53],[16,55,16,78],[17,19,19,21],[17,22,19,24],[17,25,19,27],[17,30,17,53],[17,55,17,78],[18,30,18,53],[18,55,18,78],[14,1,16,3],[14,4,16,6],[14,7,16,9],[14,10,16,12],[14,13,16,15],[14,16,16,18],[11,19,13,21],[11,22,13,24],[11,25,13,27],[14,19,16,21],[14,22,16,24],[14,25,16,27],[11,30,11,53],[11,55,11,78],[12,30,12,53],[12,55,12,78],[13,30,13,53],[13,55,13,78],[11,1,13,3],[11,4,13,6],[11,7,13,9],[11,10,13,12],[11,13,13,15],[11,16,13,18],[8,19,10,21],[8,22,10,24],[8,25,10,27],[8,30,8,53],[8,55,8,78],[9,30,9,53],[9,55,9,78],[8,1,10,3],[8,4,10,6],[8,7,10,9],[8,10,10,12],[8,13,10,15],[8,16,10,18],[5,1,7,3],[5,4,7,6],[5,7,7,9],[5,10,7,12],[5,13,7,15],[5,16,7,18],[2,30,2,53],[2,55,2,78],[3,30,3,53],[3,55,3,78],[4,30,4,53],[4,55,4,78],[5,19,7,21],[5,22,7,24],[5,25,7,27],[5,30,5,53],[5,55,5,78],[6,30,6,53],[6,55,6,78],[7,30,7,53],[7,55,7,78],[0,30,0,32],[2,1,4,3],[2,4,4,6],[2,7,4,9],[2,10,4,12],[2,13,4,15],[2,16,4,18],[2,19,4,21],[2,22,4,24],[2,25,4,27]]}
[null,null,null,null,null,null,null,null,null,null,null,null,null,null,null,null,null,null,null,null,null,null,null,null,null,null,null,null,null,null,"実践思考"]
["⑧",null,null,null,null,null,null,null,null,null,"①",null,null,null,null,null,null,null,null,"②",null,null,null,null,null,null,null,null,null,null,"①",{"$f":"C35","v":0}]
[null,{"$f":"AE73","v":0},null,null,{"$f":"AE66","v":0},null,null,{"$f":"AE67","v":0},null,null,{"$f":"AE10","v":0},null,null,{"$f":"AE3","v":0},null,null,{"$f":"AE4","v":0},null,null,{"$f":"AE19","v":0},null,null,{"$f":"AE12","v":0},null,null,{"$f":"AE13","v":0},null,null,null,1,null,null,null,null,null,null,null,null,null,null,null,null,null,null,null,null,null,null,null,null,null,null,null,null,9]
[null,null,null,null,null,null,null,null,null,null,null,null,null,null,null,null,null,null,null,null,null,null,null,null,null,null,null,null,null,2,null,null,null,null,null,null,null,null,null,null,null,null,null,null,null,null,null,null,null,null,null,null,null,null,10]
[null,null,null,null,null,null,null,null,null,null,null,null,null,null,null,null,null,null,null,null,null,null,null,null,null,null,null,null,null,3,null,null,null,null,null,null,null,null,null,null,null,null,null,null,null,null,null,null,null,null,null,null,null,null,11]
[null,{"$f":"AE72","v":0},null,null,{"$f":"C42","v":0},null,null,{"$f":"AE68","v":0},null,null,{"$f":"AE9","v":0},null,null,{"$f":"C35","v":0},null,null,{"$f":"AE5","v":0},null,null,{"$f":"AE18","v":0},null,null,{"$f":"C36","v":0},null,null,{"$f":"AE14","v":0},null,null,null,4,null,null,null,null,null,null,null,null,null,null,null,null,null,null,null,null,null,null,null,null,null,null,null,null,12]
[null,null,null,null,null,null,null,null,null,null,null,null,null,null,null,null,null,null,null,null,null,null,null,null,null,null,null,null,null,5,null,null,null,null,null,null,null,null,null,null,null,null,null,null,null,null,null,null,null,null,null,null,null,null,13]
[null,null,null,null,null,null,null,null,null,null,null,null,null,null,null,null,null,null,null,null,null,null,null,null,null,null,null,null,null,6,null,null,null,null,null,null,null,null,null,null,null,null,null,null,null,null,null,null,null,null,null,null,null,null,14]
[null,{"$f":"AE71","v":0},null,null,{"$f":"AE70","v":0},null,null,{"$f":"AE69","v":0},null,null,{"$f":"AE8","v":0},null,null,{"$f":"AE7","v":0},null,null,{"$f":"AE6","v":0},null,null,{"$f":"AE17","v":0},null,null,{"$f":"AE16","v":0},null,null,{"$f":"AE15","v":0},null,null,null,7,null,null,null,null,null,null,null,null,null,null,null,null,null,null,null,null,null,null,null,null,null,null,null,null,15]
[null,null,null,null,null,null,null,null,null,null,null,null,null,null,null,null,null,null,null,null,null,null,null,null,null,null,null,null,null,8,null,null,null,null,null,null,null,null,null,null,null,null,null,null,null,null,null,null,null,null,null,null,null,null,16]
[null,null,null,null,null,null,null,null,null,null,null,null,null,null,null,null,null,null,null,null,null,null,null,null,null,null,null,null,null,null,"②",{"$f":"C36","v":0}]
["⑦",{"$f":"AE73","v":0},null,null,{"$f":"AE57","v":0},null,null,{"$f":"AE58","v":0},null,null,{"$f":"E6","v":0},null,null,{"$f":"N6","v":0},null,null,{"$f":"W6","v":0},null,null,{"$f":"AE28","v":0},null,null,{"$f":"AE21","v":0},null,null,{"$f":"AE22","v":0},null,null,"③",1,null,null,null,null,null,null,null,null,null,null,null,null,null,null,null,null,null,null,null,null,null,null,null,null,9]
[null,null,null,null,null,null,null,null,null,null,null,null,null,null,null,null,null,null,null,null,null,null,null,null,null,null,null,null,null,2,null,null,null,null,null,null,null,null,null,null,null,null,null,null,null,null,null,null,null,null,null,null,null,null,10]
[null,null,null,null,null,null,null,null,null,null,null,null,null,null,null,null,null,null,null,null,null,null,null,null,null,null,null,null,null,3,null,null,null,null,null,null,null,null,null,null,null,null,null,null,null,null,null,null,null,null,null,null,null,null,11]
[null,{"$f":"AE63","v":0},null,null,{"$f":"C41","v":0},null,null,{"$f":"AE59","v":0},null,null,{"$f":"E15","v":0},null,null,{"$f":"'I　FACE'!C40","v":0},null,null,{"$f":"W15","v":0},null,null,{"$f":"AE27","v":0},null,null,{"$f":"C37","v":0},null,null,{"$f":"AE23","v":0},null,null,null,4,null,null,null,null,null,null,null,null,null,null,null,null,null,null,null,null,null,null,null,null,null,null,null,null,12]
[null,null,null,null,null,null,null,null,null,null,null,null,null,null,null,null,null,null,null,null,null,null,null,null,null,null,null,null,null,5,null,null,null,null,null,null,null,null,null,null,null,null,null,null,null,null,null,null,null,null,null,null,null,null,13]
[null,null,null,null,null,null,null,null,null,null,null,null,null,null,null,null,null,null,null,null,null,null,null,null,null,null,null,null,null,6,null,null,null,null,null,null,null,null,null,null,null,null,null,null,null,null,null,null,null,null,null,null,null,null,14]
[null,{"$f":"AE62","v":0},null,null,{"$f":"AE61","v":0},null,null,{"$f":"AE60","v":0},null,null,{"$f":"E24","v":0},null,null,{"$f":"N24","v":0},null,null,{"$f":"W24","v":0},null,null,{"$f":"AE26","v":0},null,null,{"$f":"AE25","v":0},null,null,{"$f":"AE24","v":0},null,null,null,7,null,null,null,null,null,null,null,null,null,null,null,null,null,null,null,null,null,null,null,null,null,null,null,null,15]
[null,null,null,null,null,null,null,null,null,null,null,null,null,null,null,null,null,null,null,null,null,null,null,null,null,null,null,null,null,8,null,null,null,null,null,null,null,null,null,null,null,null,null,null,null,null,null,null,null,null,null,null,null,null,16]
[null,null,null,null,null,null,null,null,null,null,null,null,null,null,null,null,null,null,null,null,null,null,null,null,null,null,null,null,null,null,"③",{"$f":"C37","v":0}]
["⑥",{"$f":"AE55","v":0},null,null,{"$f":"AE48","v":0},null,null,{"$f":"AE49","v":0},null,null,{"$f":"AE46","v":0},null,null,{"$f":"AE39","v":0},null,null,{"$f":"AE40","v":0},null,null,{"$f":"AE37","v":0},null,null,{"$f":"AE30","v":0},null,null,{"$f":"AE31","v":0},null,null,"④",1,null,null,null,null,null,null,null,null,null,null,null,null,null,null,null,null,null,null,null,null,null,null,null,null,9]
[null,null,null,null,null,null,null,null,null,null,null,null,null,null,null,null,null,null,null,null,null,null,null,null,null,null,null,null,null,2,null,null,null,null,null,null,null,null,null,null,null,null,null,null,null,null,null,null,null,null,null,null,null,null,10]
[null,null,null,null,null,null,null,null,null,null,null,null,null,null,null,null,null,null,null,null,null,null,null,null,null,null,null,null,null,3,null,null,null,null,null,null,null,null,null,null,null,null,null,null,null,null,null,null,null,null,null,null,null,null,11]
[null,{"$f":"AE54","v":0},null,null,{"$f":"C40","v":0},null,null,{"$f":"AE50","v":0},null,null,{"$f":"AE45","v":0},null,null,{"$f":"C39","v":0},null,null,{"$f":"AE41","v":0},null,null,{"$f":"AE36","v":0},null,null,{"$f":"C38","v":0},null,null,{"$f":"AE32","v":0},null,null,null,4,null,null,null,null,null,null,null,null,null,null,null,null,null,null,null,null,null,null,null,null,null,null,null,null,12]
[null,null,null,null,null,null,null,null,null,null,null,null,null,null,null,null,null,null,null,null,null,null,null,null,null,null,null,null,null,5,null,null,null,null,null,null,null,null,null,null,null,null,null,null,null,null,null,null,null,null,null,null,null,null,13]
[null,null,null,null,null,null,null,null,null,null,null,null,null,null,null,null,null,null,null,null,null,null,null,null,null,null,null,null,null,6,null,null,null,null,null,null,null,null,null,null,null,null,null,null,null,null,null,null,null,null,null,null,null,null,14]
[null,{"$f":"AE53","v":0},null,null,{"$f":"AE52","v":0},null,null,{"$f":"AE51","v":0},null,null,{"$f":"AE44","v":0},null,null,{"$f":"AE43","v":0},null,null,{"$f":"AE42","v":0},null,null,{"$f":"AE35","v":0},null,null,{"$f":"AE34","v":0},null,null,{"$f":"AE33","v":0},null,null,null,7,null,null,null,null,null,null,null,null,null,null,null,null,null,null,null,null,null,null,null,null,null,null,null,null,15]
[null,null,null,null,null,null,null,null,null,null,null,null,null,null,null,null,null,null,null,null,null,null,null,null,null,null,null,null,null,8,null,null,null,null,null,null,null,null,null,null,null,null,null,null,null,null,null,null,null,null,null,null,null,null,16]
[null,null,null,null,null,null,null,null,null,null,null,null,null,null,null,null,null,null,null,null,null,null,null,null,null,null,null,null,null,null,"④",{"$f":"C38","v":0}]
[null,null,null,null,null,null,null,null,null,null,"⑤",null,null,null,null,null,null,null,null,null,null,null,null,null,null,null,null,null,null,1,null,null,null,null,null,null,null,null,null,null,null,null,null,null,null,null,null,null,null,null,null,null,null,null,9]
[null,null,{"$f":"'I　FACE'!C31","v":0},null,null,null,null,null,null,null,null,null,null,null,null,null,null,null,null,null,null,null,null,null,null,null,null,null,null,2,null,null,null,null,null,null,null,null,null,null,null,null,null,null,null,null,null,null,null,null,null,null,null,null,10]
[null,null,null,null,null,null,null,null,null,null,null,null,null,null,null,null,null,null,null,null,null,null,null,null,null,null,null,null,null,3,null,null,null,null,null,null,null,null,null,null,null,null,null,null,null,null,null,null,null,null,null,null,null,null,11]
[null,null,null,null,null,null,null,null,null,null,null,null,null,null,null,null,null,null,null,null,null,null,null,null,null,null,null,null,null,4,null,null,null,null,null,null,null,null,null,null,null,null,null,null,null,null,null,null,null,null,null,null,null,null,12]
[null,null,"基礎思考",null,null,null,null,null,null,null,null,null,null,null,null,null,null,null,null,null,null,null,null,null,null,null,null,null,null,5,null,null,null,null,null,null,null,null,null,null,null,null,null,null,null,null,null,null,null,null,null,null,null,null,13]
[null,"①",{"$f":"'I　FACE'!AE48","v":0},null,null,null,null,null,null,null,null,null,null,null,null,null,null,null,null,null,null,null,null,null,null,null,null,null,null,6,null,null,null,null,null,null,null,null,null,null,null,null,null,null,null,null,null,null,null,null,null,null,null,null,14]
[null,"②",{"$f":"'I　FACE'!AE49","v":0},null,null,null,null,null,null,null,null,null,null,null,null,null,null,null,null,null,null,null,null,null,null,null,null,null,null,7,null,null,null,null,null,null,null,null,null,null,null,null,null,null,null,null,null,null,null,null,null,null,null,null,15]
[null,"③.",{"$f":"'I　FACE'!AE50","v":0},null,null,null,null,null,null,null,null,null,null,null,null,null,null,null,null,null,null,null,null,null,null,null,null,null,null,8,null,null,null,null,null,null,null,null,null,null,null,null,null,null,null,null,null,null,null,null,null,null,null,null,16]
[null,"④",{"$f":"'I　FACE'!AE51","v":0},null,null,null,null,null,null,null,null,null,null,null,null,null,null,null,null,null,null,null,null,null,null,null,null,null,null,null,"⑤",{"$f":"C39","v":0}]
[null,"⑤",{"$f":"'I　FACE'!AE52","v":0},null,null,null,null,null,null,null,null,null,null,null,null,null,null,null,null,null,null,null,null,null,null,null,null,null,null,1,null,null,null,null,null,null,null,null,null,null,null,null,null,null,null,null,null,null,null,null,null,null,null,null,9]
[null,"⑥",{"$f":"'I　FACE'!AE53","v":0},null,null,null,null,null,null,null,null,null,null,null,null,null,null,null,null,null,null,null,null,null,null,null,null,null,null,2,null,null,null,null,null,null,null,null,null,null,null,null,null,null,null,null,null,null,null,null,null,null,null,null,10]
[null,"⑦",{"$f":"'I　FACE'!AE54","v":0},null,null,null,null,null,null,null,null,null,null,null,null,null,null,null,null,null,null,null,null,null,null,null,null,null,null,3,null,null,null,null,null,null,null,null,null,null,null,null,null,null,null,null,null,null,null,null,null,null,null,null,11]
[null,"⑧",{"$f":"'I　FACE'!AE55","v":0},null,null,null,null,null,null,null,null,null,null,null,null,null,null,null,null,null,null,null,null,null,null,null,null,null,null,4,null,null,null,null,null,null,null,null,null,null,null,null,null,null,null,null,null,null,null,null,null,null,null,null,12]
[null,null,null,null,null,null,null,null,null,null,null,null,null,null,null,null,null,null,null,null,null,null,null,null,null,null,null,null,null,5,null,null,null,null,null,null,null,null,null,null,null,null,null,null,null,null,null,null,null,null,null,null,null,null,13]
[null,null,null,null,null,null,null,null,null,null,null,null,null,null,null,null,null,null,null,null,null,null,null,null,null,null,null,null,null,6,null,null,null,null,null,null,null,null,null,null,null,null,null,null,null,null,null,null,null,null,null,null,null,null,14]
[null,null,null,null,null,null,null,null,null,null,null,null,null,null,null,null,null,null,null,null,null,null,null,null,null,null,null,null,null,7,null,null,null,null,null,null,null,null,null,null,null,null,null,null,null,null,null,null,null,null,null,null,null,null,15]
[null,null,null,null,null,null,null,null,null,null,null,null,null,null,null,null,null,null,null,null,null,null,null,null,null,null,null,null,null,8,null,null,null,null,null,null,null,null,null,null,null,null,null,null,null,null,null,null,null,null,null,null,null,null,16]
[null,null,null,null,null,null,null,null,null,null,null,null,null,null,null,null,null,null,null,null,null,null,null,null,null,null,null,null,null,null,"⑥",{"$f":"C40","v":0}]
[null,null,null,null,null,null,null,null,null,null,null,null,null,null,null,null,null,null,null,null,null,null,null,null,null,null,null,null,null,1,null,null,null,null,null,null,null,null,null,null,null,null,null,null,null,null,null,null,null,null,null,null,null,null,9]
[null,null,null,null,null,null,null,null,null,null,null,null,null,null,null,null,null,null,null,null,null,null,null,null,null,null,null,null,null,2,null,null,null,null,null,null,null,null,null,null,null,null,null,null,null,null,null,null,null,null,null,null,null,null,10]
[null,null,null,null,null,null,null,null,null,null,null,null,null,null,null,null,null,null,null,null,null,null,null,null,null,null,null,null,null,3,null,null,null,null,null,null,null,null,null,null,null,null,null,null,null,null,null,null,null,null,null,null,null,null,11]
[null,null,null,null,null,null,null,null,null,null,null,null,null,null,null,null,null,null,null,null,null,null,null,null,null,null,null,null,null,4,null,null,null,null,null,null,null,null,null,null,null,null,null,null,null,null,null,null,null,null,null,null,null,null,12]
[null,null,null,null,null,null,null,null,null,null,null,null,null,null,null,null,null,null,null,null,null,null,null,null,null,null,null,null,null,5,null,null,null,null,null,null,null,null,null,null,null,null,null,null,null,null,null,null,null,null,null,null,null,null,13]
[null,null,null,null,null,null,null,null,null,null,null,null,null,null,null,null,null,null,null,null,null,null,null,null,null,null,null,null,null,6,null,null,null,null,null,null,null,null,null,null,null,null,null,null,null,null,null,null,null,null,null,null,null,null,14]
[null,null,null,null,null,null,null,null,null,null,null,null,null,null,null,null,null,null,null,null,null,null,null,null,null,null,null,null,null,7,null,null,null,null,null,null,null,null,null,null,null,null,null,null,null,null,null,null,null,null,null,null,null,null,15]
[null,null,null,null,null,null,null,null,null,null,null,null,null,null,null,null,null,null,null,null,null,null,null,null,null,null,null,null,null,8,null,null,null,null,null,null,null,null,null,null,null,null,null,null,null,null,null,null,null,null,null,null,null,null,16]
[null,null,null,null,null,null,null,null,null,null,null,null,null,null,null,null,null,null,null,null,null,null,null,null,null,null,null,null,null,null,"⑦",{"$f":"C41","v":0}]
[null,null,null,null,null,null,null,null,null,null,null,null,null,null,null,null,null,null,null,null,null,null,null,null,null,null,null,null,null,1,null,null,null,null,null,null,null,null,null,null,null,null,null,null,null,null,null,null,null,null,null,null,null,null,9]
[null,null,null,null,null,null,null,null,null,null,null,null,null,null,null,null,null,null,null,null,null,null,null,null,null,null,null,null,null,2,null,null,null,null,null,null,null,null,null,null,null,null,null,null,null,null,null,null,null,null,null,null,null,null,10]
[null,null,null,null,null,null,null,null,null,null,null,null,null,null,null,null,null,null,null,null,null,null,null,null,null,null,null,null,null,3,null,null,null,null,null,null,null,null,null,null,null,null,null,null,null,null,null,null,null,null,null,null,null,null,11]
[null,null,null,null,null,null,null,null,null,null,null,null,null,null,null,null,null,null,null,null,null,null,null,null,null,null,null,null,null,4,null,null,null,null,null,null,null,null,null,null,null,null,null,null,null,null,null,null,null,null,null,null,null,null,12]
[null,null,null,null,null,null,null,null,null,null,null,null,null,null,null,null,null,null,null,null,null,null,null,null,null,null,null,null,null,5,null,null,null,null,null,null,null,null,null,null,null,null,null,null,null,null,null,null,null,null,null,null,null,null,13]
[null,null,null,null,null,null,null,null,null,null,null,null,null,null,null,null,null,null,null,null,null,null,null,null,null,null,null,null,null,6,null,null,null,null,null,null,null,null,null,null,null,null,null,null,null,null,null,null,null,null,null,null,null,null,14]
[null,null,null,null,null,null,null,null,null,null,null,null,null,null,null,null,null,null,null,null,null,null,null,null,null,null,null,null,null,7,null,null,null,null,null,null,null,null,null,null,null,null,null,null,null,null,null,null,null,null,null,null,null,null,15]
[null,null,null,null,null,null,null,null,null,null,null,null,null,null,null,null,null,null,null,null,null,null,null,null,null,null,null,null,null,8,null,null,null,null,null,null,null,null,null,null,null,null,null,null,null,null,null,null,null,null,null,null,null,null,16]
[null,null,null,null,null,null,null,null,null,null,null,null,null,null,null,null,null,null,null,null,null,null,null,null,null,null,null,null,null,null,"⑧",{"$f":"C42","v":0}]
[null,null,null,null,null,null,null,null,null,null,null,null,null,null,null,null,null,null,null,null,null,null,null,null,null,null,null,null,null,1,null,null,null,null,null,null,null,null,null,null,null,null,null,null,null,null,null,null,null,null,null,null,null,null,9]
[null,null,null,null,null,null,null,null,null,null,null,null,null,null,null,null,null,null,null,null,null,null,null,null,null,null,null,null,null,2,null,null,null,null,null,null,null,null,null,null,null,null,null,null,null,null,null,null,null,null,null,null,null,null,10]
[null,null,null,null,null,null,null,null,null,null,null,null,null,null,null,null,null,null,null,null,null,null,null,null,null,null,null,null,null,3,null,null,null,null,null,null,null,null,null,null,null,null,null,null,null,null,null,null,null,null,null,null,null,null,11]
[null,null,null,null,null,null,null,null,null,null,null,null,null,null,null,null,null,null,null,null,null,null,null,null,null,null,null,null,null,4,null,null,null,null,null,null,null,null,null,null,null,null,null,null,null,null,null,null,null,null,null,null,null,null,12]
[null,null,null,null,null,null,null,null,null,null,null,null,null,null,null,null,null,null,null,null,null,null,null,null,null,null,null,null,null,5,null,null,null,null,null,null,null,null,null,null,null,null,null,null,null,null,null,null,null,null,null,null,null,null,13]
[null,null,null,null,null,null,null,null,null,null,null,null,null,null,null,null,null,null,null,null,null,null,null,null,null,null,null,null,null,6,null,null,null,null,null,null,null,null,null,null,null,null,null,null,null,null,null,null,null,null,null,null,null,null,14]
[null,null,null,null,null,null,null,null,null,null,null,null,null,null,null,null,null,null,null,null,null,null,null,null,null,null,null,null,null,7,null,null,null,null,null,null,null,null,null,null,null,null,null,null,null,null,null,null,null,null,null,null,null,null,15]
[null,null,null,null,null,null,null,null,null,null,null,null,null,null,null,null,null,null,null,null,null,null,null,null,null,null,null,null,null,8,null,null,null,null,null,null,null,null,null,null,null,null,null,null,null,null,null,null,null,null,null,null,null,null,16]

{"sheet":"⑦","index":9,"n_rows":73,"n_cols":55,"rows_kept":73,"cut":false,"hidden":false,"merged":[[72,30,72,53],[72,55,72,78],[69,30,69,53],[69,55,69,78],[70,30,70,53],[70,55,70,78],[71,30,71,53],[71,55,71,78],[66,30,66,53],[66,55,66,78],[67,30,67,53],[67,55,67,78],[68,30,68,53],[68,55,68,78],[62,30,62,53],[62,55,62,78],[63,30,63,53],[63,55,63,78],[65,30,65,53],[65,55,65,78],[59,30,59,53],[59,55,59,78],[60,30,60,53],[60,55,60,78],[61,30,61,53],[61,55,61,78],[56,30,56,53],[56,55,56,78],[57,30,57,53],[57,55,57,78],[58,30,58,53],[58,55,58,78],[52,30,52,53],[52,55,52,78],[53,30,53,53],[53,55,53,78],[54,30,54,53],[54,55,54,78],[49,30,49,53],[49,55,49,78],[50,30,50,53],[50,55,50,78],[51,30,51,53],[51,55,51,78],[45,30,45,53],[45,55,45,78],[47,30,47,53],[47,55,47,78],[48,30,48,53],[48,55,48,78],[42,30,42,53],[42,55,42,78],[43,30,43,53],[43,55,43,78],[44,30,44,53],[44,55,44,78],[40,2,40,25],[40,30,40,53],[40,55,40,78],[41,2,41,25],[41,30,41,53],[41,55,41,78],[37,2,37,25],[38,2,38,25],[38,30,38,53],[38,55,38,78],[39,2,39,25],[39,30,39,53],[39,55,39,78],[35,2,35,25],[35,30,35,53],[35,55,35,78],[36,2,36,25],[36,30,36,53],[36,55,36,78],[34,2,34,25],[34,30,34,53],[34,55,34,78],[29,30,29,53],[29,55,29,78],[30,2,32,26],[30,30,30,53],[30,55,30,78],[31,30,31,53],[31,55,31,78],[32,30,32,53],[32,55,32,78],[26,1,28,3],[26,4,28,6],[26,7,28,9],[26,10,28,12],[26,13,28,15],[26,16,28,18],[33,2,33,4],[33,30,33,53],[33,55,33,78],[25,30,25,53],[25,55,25,78],[26,19,28,21],[26,22,28,24],[26,25,28,27],[26,30,26,53],[26,55,26,78],[27,30,27,53],[27,55,27,78],[22,30,22,53],[22,55,22,78],[20,1,22,3],[20,4,22,6],[20,7,22,9],[20,10,22,12],[20,13,22,15],[20,16,22,18],[23,1,25,3],[23,4,25,6],[23,7,25,9],[23,10,25,12],[23,13,25,15],[23,16,25,18],[20,19,22,21],[20,22,22,24],[20,25,22,27],[23,19,25,21],[23,22,25,24],[23,25,25,27],[23,30,23,53],[23,55,23,78],[24,30,24,53],[24,55,24,78],[17,1,19,3],[17,4,19,6],[17,7,19,9],[17,10,19,12],[17,13,19,15],[17,16,19,18],[20,30,20,53],[20,55,20,78],[21,30,21,53],[21,55,21,78],[14,30,14,53],[14,55,14,78],[15,30,15,53],[15,55,15,78],[16,30,16,53],[16,55,16,78],[17,19,19,21],[17,22,19,24],[17,25,19,27],[17,30,17,53],[17,55,17,78],[18,30,18,53],[18,55,18,78],[14,1,16,3],[14,4,16,6],[14,7,16,9],[14,10,16,12],[14,13,16,15],[14,16,16,18],[11,19,13,21],[11,22,13,24],[11,25,13,27],[14,19,16,21],[14,22,16,24],[14,25,16,27],[11,30,11,53],[11,55,11,78],[12,30,12,53],[12,55,12,78],[13,30,13,53],[13,55,13,78],[11,1,13,3],[11,4,13,6],[11,7,13,9],[11,10,13,12],[11,13,13,15],[11,16,13,18],[8,19,10,21],[8,22,10,24],[8,25,10,27],[8,30,8,53],[8,55,8,78],[9,30,9,53],[9,55,9,78],[8,1,10,3],[8,4,10,6],[8,7,10,9],[8,10,10,12],[8,13,10,15],[8,16,10,18],[5,1,7,3],[5,4,7,6],[5,7,7,9],[5,10,7,12],[5,13,7,15],[5,16,7,18],[2,30,2,53],[2,55,2,78],[3,30,3,53],[3,55,3,78],[4,30,4,53],[4,55,4,78],[5,19,7,21],[5,22,7,24],[5,25,7,27],[5,30,5,53],[5,55,5,78],[6,30,6,53],[6,55,6,78],[7,30,7,53],[7,55,7,78],[0,30,0,32],[2,1,4,3],[2,4,4,6],[2,7,4,9],[2,10,4,12],[2,13,4,15],[2,16,4,18],[2,19,4,21],[2,22,4,24],[2,25,4,27]]}
[null,null,null,null,null,null,null,null,null,null,null,null,null,null,null,null,null,null,null,null,null,null,null,null,null,null,null,null,null,null,"実践思考"]
["⑧",null,null,null,null,null,null,null,null,null,"①",null,null,null,null,null,null,null,null,"②",null,null,null,null,null,null,null,null,null,null,"①",{"$f":"C35","v":0}]
[null,{"$f":"AE73","v":0},null,null,{"$f":"AE66","v":0},null,null,{"$f":"AE67","v":0},null,null,{"$f":"AE10","v":0},null,null,{"$f":"AE3","v":0},null,null,{"$f":"AE4","v":0},null,null,{"$f":"AE19","v":0},null,null,{"$f":"AE12","v":0},null,null,{"$f":"AE13","v":0},null,null,null,1,null,null,null,null,null,null,null,null,null,null,null,null,null,null,null,null,null,null,null,null,null,null,null,null,9]
[null,null,null,null,null,null,null,null,null,null,null,null,null,null,null,null,null,null,null,null,null,null,null,null,null,null,null,null,null,2,null,null,null,null,null,null,null,null,null,null,null,null,null,null,null,null,null,null,null,null,null,null,null,null,10]
[null,null,null,null,null,null,null,null,null,null,null,null,null,null,null,null,null,null,null,null,null,null,null,null,null,null,null,null,null,3,null,null,null,null,null,null,null,null,null,null,null,null,null,null,null,null,null,null,null,null,null,null,null,null,11]
[null,{"$f":"AE72","v":0},null,null,{"$f":"C42","v":0},null,null,{"$f":"AE68","v":0},null,null,{"$f":"AE9","v":0},null,null,{"$f":"C35","v":0},null,null,{"$f":"AE5","v":0},null,null,{"$f":"AE18","v":0},null,null,{"$f":"C36","v":0},null,null,{"$f":"AE14","v":0},null,null,null,4,null,null,null,null,null,null,null,null,null,null,null,null,null,null,null,null,null,null,null,null,null,null,null,null,12]
[null,null,null,null,null,null,null,null,null,null,null,null,null,null,null,null,null,null,null,null,null,null,null,null,null,null,null,null,null,5,null,null,null,null,null,null,null,null,null,null,null,null,null,null,null,null,null,null,null,null,null,null,null,null,13]
[null,null,null,null,null,null,null,null,null,null,null,null,null,null,null,null,null,null,null,null,null,null,null,null,null,null,null,null,null,6,null,null,null,null,null,null,null,null,null,null,null,null,null,null,null,null,null,null,null,null,null,null,null,null,14]
[null,{"$f":"AE71","v":0},null,null,{"$f":"AE70","v":0},null,null,{"$f":"AE69","v":0},null,null,{"$f":"AE8","v":0},null,null,{"$f":"AE7","v":0},null,null,{"$f":"AE6","v":0},null,null,{"$f":"AE17","v":0},null,null,{"$f":"AE16","v":0},null,null,{"$f":"AE15","v":0},null,null,null,7,null,null,null,null,null,null,null,null,null,null,null,null,null,null,null,null,null,null,null,null,null,null,null,null,15]
[null,null,null,null,null,null,null,null,null,null,null,null,null,null,null,null,null,null,null,null,null,null,null,null,null,null,null,null,null,8,null,null,null,null,null,null,null,null,null,null,null,null,null,null,null,null,null,null,null,null,null,null,null,null,16]
[null,null,null,null,null,null,null,null,null,null,null,null,null,null,null,null,null,null,null,null,null,null,null,null,null,null,null,null,null,null,"②",{"$f":"C36","v":0}]
["⑦",{"$f":"AE73","v":0},null,null,{"$f":"AE57","v":0},null,null,{"$f":"AE58","v":0},null,null,{"$f":"E6","v":0},null,null,{"$f":"N6","v":0},null,null,{"$f":"W6","v":0},null,null,{"$f":"AE28","v":0},null,null,{"$f":"AE21","v":0},null,null,{"$f":"AE22","v":0},null,null,"③",1,null,null,null,null,null,null,null,null,null,null,null,null,null,null,null,null,null,null,null,null,null,null,null,null,9]
[null,null,null,null,null,null,null,null,null,null,null,null,null,null,null,null,null,null,null,null,null,null,null,null,null,null,null,null,null,2,null,null,null,null,null,null,null,null,null,null,null,null,null,null,null,null,null,null,null,null,null,null,null,null,10]
[null,null,null,null,null,null,null,null,null,null,null,null,null,null,null,null,null,null,null,null,null,null,null,null,null,null,null,null,null,3,null,null,null,null,null,null,null,null,null,null,null,null,null,null,null,null,null,null,null,null,null,null,null,null,11]
[null,{"$f":"AE63","v":0},null,null,{"$f":"C41","v":0},null,null,{"$f":"AE59","v":0},null,null,{"$f":"E15","v":0},null,null,{"$f":"'I　FACE'!C41","v":0},null,null,{"$f":"W15","v":0},null,null,{"$f":"AE27","v":0},null,null,{"$f":"C37","v":0},null,null,{"$f":"AE23","v":0},null,null,null,4,null,null,null,null,null,null,null,null,null,null,null,null,null,null,null,null,null,null,null,null,null,null,null,null,12]
[null,null,null,null,null,null,null,null,null,null,null,null,null,null,null,null,null,null,null,null,null,null,null,null,null,null,null,null,null,5,null,null,null,null,null,null,null,null,null,null,null,null,null,null,null,null,null,null,null,null,null,null,null,null,13]
[null,null,null,null,null,null,null,null,null,null,null,null,null,null,null,null,null,null,null,null,null,null,null,null,null,null,null,null,null,6,null,null,null,null,null,null,null,null,null,null,null,null,null,null,null,null,null,null,null,null,null,null,null,null,14]
[null,{"$f":"AE62","v":0},null,null,{"$f":"AE61","v":0},null,null,{"$f":"AE60","v":0},null,null,{"$f":"E24","v":0},null,null,{"$f":"N24","v":0},null,null,{"$f":"W24","v":0},null,null,{"$f":"AE26","v":0},null,null,{"$f":"AE25","v":0},null,null,{"$f":"AE24","v":0},null,null,null,7,null,null,null,null,null,null,null,null,null,null,null,null,null,null,null,null,null,null,null,null,null,null,null,null,15]
[null,null,null,null,null,null,null,null,null,null,null,null,null,null,null,null,null,null,null,null,null,null,null,null,null,null,null,null,null,8,null,null,null,null,null,null,null,null,null,null,null,null,null,null,null,null,null,null,null,null,null,null,null,null,16]
[null,null,null,null,null,null,null,null,null,null,null,null,null,null,null,null,null,null,null,null,null,null,null,null,null,null,null,null,null,null,"③",{"$f":"C37","v":0}]
["⑥",{"$f":"AE55","v":0},null,null,{"$f":"AE48","v":0},null,null,{"$f":"AE49","v":0},null,null,{"$f":"AE46","v":0},null,null,{"$f":"AE39","v":0},null,null,{"$f":"AE40","v":0},null,null,{"$f":"AE37","v":0},null,null,{"$f":"AE30","v":0},null,null,{"$f":"AE31","v":0},null,null,"④",1,null,null,null,null,null,null,null,null,null,null,null,null,null,null,null,null,null,null,null,null,null,null,null,null,9]
[null,null,null,null,null,null,null,null,null,null,null,null,null,null,null,null,null,null,null,null,null,null,null,null,null,null,null,null,null,2,null,null,null,null,null,null,null,null,null,null,null,null,null,null,null,null,null,null,null,null,null,null,null,null,10]
[null,null,null,null,null,null,null,null,null,null,null,null,null,null,null,null,null,null,null,null,null,null,null,null,null,null,null,null,null,3,null,null,null,null,null,null,null,null,null,null,null,null,null,null,null,null,null,null,null,null,null,null,null,null,11]
[null,{"$f":"AE54","v":0},null,null,{"$f":"C40","v":0},null,null,{"$f":"AE50","v":0},null,null,{"$f":"AE45","v":0},null,null,{"$f":"C39","v":0},null,null,{"$f":"AE41","v":0},null,null,{"$f":"AE36","v":0},null,null,{"$f":"C38","v":0},null,null,{"$f":"AE32","v":0},null,null,null,4,null,null,null,null,null,null,null,null,null,null,null,null,null,null,null,null,null,null,null,null,null,null,null,null,12]
[null,null,null,null,null,null,null,null,null,null,null,null,null,null,null,null,null,null,null,null,null,null,null,null,null,null,null,null,null,5,null,null,null,null,null,null,null,null,null,null,null,null,null,null,null,null,null,null,null,null,null,null,null,null,13]
[null,null,null,null,null,null,null,null,null,null,null,null,null,null,null,null,null,null,null,null,null,null,null,null,null,null,null,null,null,6,null,null,null,null,null,null,null,null,null,null,null,null,null,null,null,null,null,null,null,null,null,null,null,null,14]
[null,{"$f":"AE53","v":0},null,null,{"$f":"AE52","v":0},null,null,{"$f":"AE51","v":0},null,null,{"$f":"AE44","v":0},null,null,{"$f":"AE43","v":0},null,null,{"$f":"AE42","v":0},null,null,{"$f":"AE35","v":0},null,null,{"$f":"AE34","v":0},null,null,{"$f":"AE33","v":0},null,null,null,7,null,null,null,null,null,null,null,null,null,null,null,null,null,null,null,null,null,null,null,null,null,null,null,null,15]
[null,null,null,null,null,null,null,null,null,null,null,null,null,null,null,null,null,null,null,null,null,null,null,null,null,null,null,null,null,8,null,null,null,null,null,null,null,null,null,null,null,null,null,null,null,null,null,null,null,null,null,null,null,null,16]
[null,null,null,null,null,null,null,null,null,null,null,null,null,null,null,null,null,null,null,null,null,null,null,null,null,null,null,null,null,null,"④",{"$f":"C38","v":0}]
[null,null,null,null,null,null,null,null,null,null,"⑤",null,null,null,null,null,null,null,null,null,null,null,null,null,null,null,null,null,null,1,null,null,null,null,null,null,null,null,null,null,null,null,null,null,null,null,null,null,null,null,null,null,null,null,9]
[null,null,{"$f":"'I　FACE'!C31","v":0},null,null,null,null,null,null,null,null,null,null,null,null,null,null,null,null,null,null,null,null,null,null,null,null,null,null,2,null,null,null,null,null,null,null,null,null,null,null,null,null,null,null,null,null,null,null,null,null,null,null,null,10]
[null,null,null,null,null,null,null,null,null,null,null,null,null,null,null,null,null,null,null,null,null,null,null,null,null,null,null,null,null,3,null,null,null,null,null,null,null,null,null,null,null,null,null,null,null,null,null,null,null,null,null,null,null,null,11]
[null,null,null,null,null,null,null,null,null,null,null,null,null,null,null,null,null,null,null,null,null,null,null,null,null,null,null,null,null,4,null,null,null,null,null,null,null,null,null,null,null,null,null,null,null,null,null,null,null,null,null,null,null,null,12]
[null,null,"基礎思考",null,null,null,null,null,null,null,null,null,null,null,null,null,null,null,null,null,null,null,null,null,null,null,null,null,null,5,null,null,null,null,null,null,null,null,null,null,null,null,null,null,null,null,null,null,null,null,null,null,null,null,13]
[null,"①",{"$f":"'I　FACE'!AE57","v":0},null,null,null,null,null,null,null,null,null,null,null,null,null,null,null,null,null,null,null,null,null,null,null,null,null,null,6,null,null,null,null,null,null,null,null,null,null,null,null,null,null,null,null,null,null,null,null,null,null,null,null,14]
[null,"②",{"$f":"'I　FACE'!AE58","v":0},null,null,null,null,null,null,null,null,null,null,null,null,null,null,null,null,null,null,null,null,null,null,null,null,null,null,7,null,null,null,null,null,null,null,null,null,null,null,null,null,null,null,null,null,null,null,null,null,null,null,null,15]
[null,"③.",{"$f":"'I　FACE'!AE59","v":0},null,null,null,null,null,null,null,null,null,null,null,null,null,null,null,null,null,null,null,null,null,null,null,null,null,null,8,null,null,null,null,null,null,null,null,null,null,null,null,null,null,null,null,null,null,null,null,null,null,null,null,16]
[null,"④",{"$f":"'I　FACE'!AE60","v":0},null,null,null,null,null,null,null,null,null,null,null,null,null,null,null,null,null,null,null,null,null,null,null,null,null,null,null,"⑤",{"$f":"C39","v":0}]
[null,"⑤",{"$f":"'I　FACE'!AE61","v":0},null,null,null,null,null,null,null,null,null,null,null,null,null,null,null,null,null,null,null,null,null,null,null,null,null,null,1,null,null,null,null,null,null,null,null,null,null,null,null,null,null,null,null,null,null,null,null,null,null,null,null,9]
[null,"⑥",{"$f":"'I　FACE'!AE62","v":0},null,null,null,null,null,null,null,null,null,null,null,null,null,null,null,null,null,null,null,null,null,null,null,null,null,null,2,null,null,null,null,null,null,null,null,null,null,null,null,null,null,null,null,null,null,null,null,null,null,null,null,10]
[null,"⑦",{"$f":"'I　FACE'!AE63","v":0},null,null,null,null,null,null,null,null,null,null,null,null,null,null,null,null,null,null,null,null,null,null,null,null,null,null,3,null,null,null,null,null,null,null,null,null,null,null,null,null,null,null,null,null,null,null,null,null,null,null,null,11]
[null,"⑧",{"$f":"'I　FACE'!AE64","v":0},null,null,null,null,null,null,null,null,null,null,null,null,null,null,null,null,null,null,null,null,null,null,null,null,null,null,4,null,null,null,null,null,null,null,null,null,null,null,null,null,null,null,null,null,null,null,null,null,null,null,null,12]
[null,null,null,null,null,null,null,null,null,null,null,null,null,null,null,null,null,null,null,null,null,null,null,null,null,null,null,null,null,5,null,null,null,null,null,null,null,null,null,null,null,null,null,null,null,null,null,null,null,null,null,null,null,null,13]
[null,null,null,null,null,null,null,null,null,null,null,null,null,null,null,null,null,null,null,null,null,null,null,null,null,null,null,null,null,6,null,null,null,null,null,null,null,null,null,null,null,null,null,null,null,null,null,null,null,null,null,null,null,null,14]
[null,null,null,null,null,null,null,null,null,null,null,null,null,null,null,null,null,null,null,null,null,null,null,null,null,null,null,null,null,7,null,null,null,null,null,null,null,null,null,null,null,null,null,null,null,null,null,null,null,null,null,null,null,null,15]
[null,null,null,null,null,null,null,null,null,null,null,null,null,null,null,null,null,null,null,null,null,null,null,null,null,null,null,null,null,8,null,null,null,null,null,null,null,null,null,null,null,null,null,null,null,null,null,null,null,null,null,null,null,null,16]
[null,null,null,null,null,null,null,null,null,null,null,null,null,null,null,null,null,null,null,null,null,null,null,null,null,null,null,null,null,null,"⑥",{"$f":"C40","v":0}]
[null,null,null,null,null,null,null,null,null,null,null,null,null,null,null,null,null,null,null,null,null,null,null,null,null,null,null,null,null,1,null,null,null,null,null,null,null,null,null,null,null,null,null,null,null,null,null,null,null,null,null,null,null,null,9]
[null,null,null,null,null,null,null,null,null,null,null,null,null,null,null,null,null,null,null,null,null,null,null,null,null,null,null,null,null,2,null,null,null,null,null,null,null,null,null,null,null,null,null,null,null,null,null,null,null,null,null,null,null,null,10]
[null,null,null,null,null,null,null,null,null,null,null,null,null,null,null,null,null,null,null,null,null,null,null,null,null,null,null,null,null,3,null,null,null,null,null,null,null,null,null,null,null,null,null,null,null,null,null,null,null,null,null,null,null,null,11]
[null,null,null,null,null,null,null,null,null,null,null,null,null,null,null,null,null,null,null,null,null,null,null,null,null,null,null,null,null,4,null,null,null,null,null,null,null,null,null,null,null,null,null,null,null,null,null,null,null,null,null,null,null,null,12]
[null,null,null,null,null,null,null,null,null,null,null,null,null,null,null,null,null,null,null,null,null,null,null,null,null,null,null,null,null,5,null,null,null,null,null,null,null,null,null,null,null,null,null,null,null,null,null,null,null,null,null,null,null,null,13]
[null,null,null,null,null,null,null,null,null,null,null,null,null,null,null,null,null,null,null,null,null,null,null,null,null,null,null,null,null,6,null,null,null,null,null,null,null,null,null,null,null,null,null,null,null,null,null,null,null,null,null,null,null,null,14]
[null,null,null,null,null,null,null,null,null,null,null,null,null,null,null,null,null,null,null,null,null,null,null,null,null,null,null,null,null,7,null,null,null,null,null,null,null,null,null,null,null,null,null,null,null,null,null,null,null,null,null,null,null,null,15]
[null,null,null,null,null,null,null,null,null,null,null,null,null,null,null,null,null,null,null,null,null,null,null,null,null,null,null,null,null,8,null,null,null,null,null,null,null,null,null,null,null,null,null,null,null,null,null,null,null,null,null,null,null,null,16]
[null,null,null,null,null,null,null,null,null,null,null,null,null,null,null,null,null,null,null,null,null,null,null,null,null,null,null,null,null,null,"⑦",{"$f":"C41","v":0}]
[null,null,null,null,null,null,null,null,null,null,null,null,null,null,null,null,null,null,null,null,null,null,null,null,null,null,null,null,null,1,null,null,null,null,null,null,null,null,null,null,null,null,null,null,null,null,null,null,null,null,null,null,null,null,9]
[null,null,null,null,null,null,null,null,null,null,null,null,null,null,null,null,null,null,null,null,null,null,null,null,null,null,null,null,null,2,null,null,null,null,null,null,null,null,null,null,null,null,null,null,null,null,null,null,null,null,null,null,null,null,10]
[null,null,null,null,null,null,null,null,null,null,null,null,null,null,null,null,null,null,null,null,null,null,null,null,null,null,null,null,null,3,null,null,null,null,null,null,null,null,null,null,null,null,null,null,null,null,null,null,null,null,null,null,null,null,11]
[null,null,null,null,null,null,null,null,null,null,null,null,null,null,null,null,null,null,null,null,null,null,null,null,null,null,null,null,null,4,null,null,null,null,null,null,null,null,null,null,null,null,null,null,null,null,null,null,null,null,null,null,null,null,12]
[null,null,null,null,null,null,null,null,null,null,null,null,null,null,null,null,null,null,null,null,null,null,null,null,null,null,null,null,null,5,null,null,null,null,null,null,null,null,null,null,null,null,null,null,null,null,null,null,null,null,null,null,null,null,13]
[null,null,null,null,null,null,null,null,null,null,null,null,null,null,null,null,null,null,null,null,null,null,null,null,null,null,null,null,null,6,null,null,null,null,null,null,null,null,null,null,null,null,null,null,null,null,null,null,null,null,null,null,null,null,14]
[null,null,null,null,null,null,null,null,null,null,null,null,null,null,null,null,null,null,null,null,null,null,null,null,null,null,null,null,null,7,null,null,null,null,null,null,null,null,null,null,null,null,null,null,null,null,null,null,null,null,null,null,null,null,15]
[null,null,null,null,null,null,null,null,null,null,null,null,null,null,null,null,null,null,null,null,null,null,null,null,null,null,null,null,null,8,null,null,null,null,null,null,null,null,null,null,null,null,null,null,null,null,null,null,null,null,null,null,null,null,16]
[null,null,null,null,null,null,null,null,null,null,null,null,null,null,null,null,null,null,null,null,null,null,null,null,null,null,null,null,null,null,"⑧",{"$f":"C42","v":0}]
[null,null,null,null,null,null,null,null,null,null,null,null,null,null,null,null,null,null,null,null,null,null,null,null,null,null,null,null,null,1,null,null,null,null,null,null,null,null,null,null,null,null,null,null,null,null,null,null,null,null,null,null,null,null,9]
[null,null,null,null,null,null,null,null,null,null,null,null,null,null,null,null,null,null,null,null,null,null,null,null,null,null,null,null,null,2,null,null,null,null,null,null,null,null,null,null,null,null,null,null,null,null,null,null,null,null,null,null,null,null,10]
[null,null,null,null,null,null,null,null,null,null,null,null,null,null,null,null,null,null,null,null,null,null,null,null,null,null,null,null,null,3,null,null,null,null,null,null,null,null,null,null,null,null,null,null,null,null,null,null,null,null,null,null,null,null,11]
[null,null,null,null,null,null,null,null,null,null,null,null,null,null,null,null,null,null,null,null,null,null,null,null,null,null,null,null,null,4,null,null,null,null,null,null,null,null,null,null,null,null,null,null,null,null,null,null,null,null,null,null,null,null,12]
[null,null,null,null,null,null,null,null,null,null,null,null,null,null,null,null,null,null,null,null,null,null,null,null,null,null,null,null,null,5,null,null,null,null,null,null,null,null,null,null,null,null,null,null,null,null,null,null,null,null,null,null,null,null,13]
[null,null,null,null,null,null,null,null,null,null,null,null,null,null,null,null,null,null,null,null,null,null,null,null,null,null,null,null,null,6,null,null,null,null,null,null,null,null,null,null,null,null,null,null,null,null,null,null,null,null,null,null,null,null,14]
[null,null,null,null,null,null,null,null,null,null,null,null,null,null,null,null,null,null,null,null,null,null,null,null,null,null,null,null,null,7,null,null,null,null,null,null,null,null,null,null,null,null,null,null,null,null,null,null,null,null,null,null,null,null,15]
[null,null,null,null,null,null,null,null,null,null,null,null,null,null,null,null,null,null,null,null,null,null,null,null,null,null,null,null,null,8,null,null,null,null,null,null,null,null,null,null,null,null,null,null,null,null,null,null,null,null,null,null,null,null,16]

{"sheet":"⑧","index":10,"n_rows":73,"n_cols":55,"rows_kept":73,"cut":false,"hidden":false,"merged":[[72,30,72,53],[72,55,72,78],[69,30,69,53],[69,55,69,78],[70,30,70,53],[70,55,70,78],[71,30,71,53],[71,55,71,78],[66,30,66,53],[66,55,66,78],[67,30,67,53],[67,55,67,78],[68,30,68,53],[68,55,68,78],[62,30,62,53],[62,55,62,78],[63,30,63,53],[63,55,63,78],[65,30,65,53],[65,55,65,78],[59,30,59,53],[59,55,59,78],[60,30,60,53],[60,55,60,78],[61,30,61,53],[61,55,61,78],[56,30,56,53],[56,55,56,78],[57,30,57,53],[57,55,57,78],[58,30,58,53],[58,55,58,78],[52,30,52,53],[52,55,52,78],[53,30,53,53],[53,55,53,78],[54,30,54,53],[54,55,54,78],[49,30,49,53],[49,55,49,78],[50,30,50,53],[50,55,50,78],[51,30,51,53],[51,55,51,78],[45,30,45,53],[45,55,45,78],[47,30,47,53],[47,55,47,78],[48,30,48,53],[48,55,48,78],[42,30,42,53],[42,55,42,78],[43,30,43,53],[43,55,43,78],[44,30,44,53],[44,55,44,78],[40,2,40,25],[40,30,40,53],[40,55,40,78],[41,2,41,25],[41,30,41,53],[41,55,41,78],[37,2,37,25],[38,2,38,25],[38,30,38,53],[38,55,38,78],[39,2,39,25],[39,30,39,53],[39,55,39,78],[35,2,35,25],[35,30,35,53],[35,55,35,78],[36,2,36,25],[36,30,36,53],[36,55,36,78],[34,2,34,25],[34,30,34,53],[34,55,34,78],[29,30,29,53],[29,55,29,78],[30,2,32,26],[30,30,30,53],[30,55,30,78],[31,30,31,53],[31,55,31,78],[32,30,32,53],[32,55,32,78],[26,1,28,3],[26,4,28,6],[26,7,28,9],[26,10,28,12],[26,13,28,15],[26,16,28,18],[33,2,33,4],[33,30,33,53],[33,55,33,78],[25,30,25,53],[25,55,25,78],[26,19,28,21],[26,22,28,24],[26,25,28,27],[26,30,26,53],[26,55,26,78],[27,30,27,53],[27,55,27,78],[22,30,22,53],[22,55,22,78],[20,1,22,3],[20,4,22,6],[20,7,22,9],[20,10,22,12],[20,13,22,15],[20,16,22,18],[23,1,25,3],[23,4,25,6],[23,7,25,9],[23,10,25,12],[23,13,25,15],[23,16,25,18],[20,19,22,21],[20,22,22,24],[20,25,22,27],[23,19,25,21],[23,22,25,24],[23,25,25,27],[23,30,23,53],[23,55,23,78],[24,30,24,53],[24,55,24,78],[17,1,19,3],[17,4,19,6],[17,7,19,9],[17,10,19,12],[17,13,19,15],[17,16,19,18],[20,30,20,53],[20,55,20,78],[21,30,21,53],[21,55,21,78],[14,30,14,53],[14,55,14,78],[15,30,15,53],[15,55,15,78],[16,30,16,53],[16,55,16,78],[17,19,19,21],[17,22,19,24],[17,25,19,27],[17,30,17,53],[17,55,17,78],[18,30,18,53],[18,55,18,78],[14,1,16,3],[14,4,16,6],[14,7,16,9],[14,10,16,12],[14,13,16,15],[14,16,16,18],[11,19,13,21],[11,22,13,24],[11,25,13,27],[14,19,16,21],[14,22,16,24],[14,25,16,27],[11,30,11,53],[11,55,11,78],[12,30,12,53],[12,55,12,78],[13,30,13,53],[13,55,13,78],[11,1,13,3],[11,4,13,6],[11,7,13,9],[11,10,13,12],[11,13,13,15],[11,16,13,18],[8,19,10,21],[8,22,10,24],[8,25,10,27],[8,30,8,53],[8,55,8,78],[9,30,9,53],[9,55,9,78],[8,1,10,3],[8,4,10,6],[8,7,10,9],[8,10,10,12],[8,13,10,15],[8,16,10,18],[5,1,7,3],[5,4,7,6],[5,7,7,9],[5,10,7,12],[5,13,7,15],[5,16,7,18],[2,30,2,53],[2,55,2,78],[3,30,3,53],[3,55,3,78],[4,30,4,53],[4,55,4,78],[5,19,7,21],[5,22,7,24],[5,25,7,27],[5,30,5,53],[5,55,5,78],[6,30,6,53],[6,55,6,78],[7,30,7,53],[7,55,7,78],[0,30,0,32],[2,1,4,3],[2,4,4,6],[2,7,4,9],[2,10,4,12],[2,13,4,15],[2,16,4,18],[2,19,4,21],[2,22,4,24],[2,25,4,27]]}
[null,null,null,null,null,null,null,null,null,null,null,null,null,null,null,null,null,null,null,null,null,null,null,null,null,null,null,null,null,null,"実践思考"]
["⑧",null,null,null,null,null,null,null,null,null,"①",null,null,null,null,null,null,null,null,"②",null,null,null,null,null,null,null,null,null,null,"①",{"$f":"C35","v":0}]
[null,{"$f":"AE73","v":0},null,null,{"$f":"AE66","v":0},null,null,{"$f":"AE67","v":0},null,null,{"$f":"AE10","v":0},null,null,{"$f":"AE3","v":0},null,null,{"$f":"AE4","v":0},null,null,{"$f":"AE19","v":0},null,null,{"$f":"AE12","v":0},null,null,{"$f":"AE13","v":0},null,null,null,1,null,null,null,null,null,null,null,null,null,null,null,null,null,null,null,null,null,null,null,null,null,null,null,null,9]
[null,null,null,null,null,null,null,null,null,null,null,null,null,null,null,null,null,null,null,null,null,null,null,null,null,null,null,null,null,2,null,null,null,null,null,null,null,null,null,null,null,null,null,null,null,null,null,null,null,null,null,null,null,null,10]
[null,null,null,null,null,null,null,null,null,null,null,null,null,null,null,null,null,null,null,null,null,null,null,null,null,null,null,null,null,3,null,null,null,null,null,null,null,null,null,null,null,null,null,null,null,null,null,null,null,null,null,null,null,null,11]
[null,{"$f":"AE72","v":0},null,null,{"$f":"C42","v":0},null,null,{"$f":"AE68","v":0},null,null,{"$f":"AE9","v":0},null,null,{"$f":"C35","v":0},null,null,{"$f":"AE5","v":0},null,null,{"$f":"AE18","v":0},null,null,{"$f":"C36","v":0},null,null,{"$f":"AE14","v":0},null,null,null,4,null,null,null,null,null,null,null,null,null,null,null,null,null,null,null,null,null,null,null,null,null,null,null,null,12]
[null,null,null,null,null,null,null,null,null,null,null,null,null,null,null,null,null,null,null,null,null,null,null,null,null,null,null,null,null,5,null,null,null,null,null,null,null,null,null,null,null,null,null,null,null,null,null,null,null,null,null,null,null,null,13]
[null,null,null,null,null,null,null,null,null,null,null,null,null,null,null,null,null,null,null,null,null,null,null,null,null,null,null,null,null,6,null,null,null,null,null,null,null,null,null,null,null,null,null,null,null,null,null,null,null,null,null,null,null,null,14]
[null,{"$f":"AE71","v":0},null,null,{"$f":"AE70","v":0},null,null,{"$f":"AE69","v":0},null,null,{"$f":"AE8","v":0},null,null,{"$f":"AE7","v":0},null,null,{"$f":"AE6","v":0},null,null,{"$f":"AE17","v":0},null,null,{"$f":"AE16","v":0},null,null,{"$f":"AE15","v":0},null,null,null,7,null,null,null,null,null,null,null,null,null,null,null,null,null,null,null,null,null,null,null,null,null,null,null,null,15]
[null,null,null,null,null,null,null,null,null,null,null,null,null,null,null,null,null,null,null,null,null,null,null,null,null,null,null,null,null,8,null,null,null,null,null,null,null,null,null,null,null,null,null,null,null,null,null,null,null,null,null,null,null,null,16]
[null,null,null,null,null,null,null,null,null,null,null,null,null,null,null,null,null,null,null,null,null,null,null,null,null,null,null,null,null,null,"②",{"$f":"C36","v":0}]
["⑦",{"$f":"AE73","v":0},null,null,{"$f":"AE57","v":0},null,null,{"$f":"AE58","v":0},null,null,{"$f":"E6","v":0},null,null,{"$f":"N6","v":0},null,null,{"$f":"W6","v":0},null,null,{"$f":"AE28","v":0},null,null,{"$f":"AE21","v":0},null,null,{"$f":"AE22","v":0},null,null,"③",1,null,null,null,null,null,null,null,null,null,null,null,null,null,null,null,null,null,null,null,null,null,null,null,null,9]
[null,null,null,null,null,null,null,null,null,null,null,null,null,null,null,null,null,null,null,null,null,null,null,null,null,null,null,null,null,2,null,null,null,null,null,null,null,null,null,null,null,null,null,null,null,null,null,null,null,null,null,null,null,null,10]
[null,null,null,null,null,null,null,null,null,null,null,null,null,null,null,null,null,null,null,null,null,null,null,null,null,null,null,null,null,3,null,null,null,null,null,null,null,null,null,null,null,null,null,null,null,null,null,null,null,null,null,null,null,null,11]
[null,{"$f":"AE63","v":0},null,null,{"$f":"C41","v":0},null,null,{"$f":"AE59","v":0},null,null,{"$f":"E15","v":0},null,null,{"$f":"'I　FACE'!C42","v":0},null,null,{"$f":"W15","v":0},null,null,{"$f":"AE27","v":0},null,null,{"$f":"C37","v":0},null,null,{"$f":"AE23","v":0},null,null,null,4,null,null,null,null,null,null,null,null,null,null,null,null,null,null,null,null,null,null,null,null,null,null,null,null,12]
[null,null,null,null,null,null,null,null,null,null,null,null,null,null,null,null,null,null,null,null,null,null,null,null,null,null,null,null,null,5,null,null,null,null,null,null,null,null,null,null,null,null,null,null,null,null,null,null,null,null,null,null,null,null,13]
[null,null,null,null,null,null,null,null,null,null,null,null,null,null,null,null,null,null,null,null,null,null,null,null,null,null,null,null,null,6,null,null,null,null,null,null,null,null,null,null,null,null,null,null,null,null,null,null,null,null,null,null,null,null,14]
[null,{"$f":"AE62","v":0},null,null,{"$f":"AE61","v":0},null,null,{"$f":"AE60","v":0},null,null,{"$f":"E24","v":0},null,null,{"$f":"N24","v":0},null,null,{"$f":"W24","v":0},null,null,{"$f":"AE26","v":0},null,null,{"$f":"AE25","v":0},null,null,{"$f":"AE24","v":0},null,null,null,7,null,null,null,null,null,null,null,null,null,null,null,null,null,null,null,null,null,null,null,null,null,null,null,null,15]
[null,null,null,null,null,null,null,null,null,null,null,null,null,null,null,null,null,null,null,null,null,null,null,null,null,null,null,null,null,8,null,null,null,null,null,null,null,null,null,null,null,null,null,null,null,null,null,null,null,null,null,null,null,null,16]
[null,null,null,null,null,null,null,null,null,null,null,null,null,null,null,null,null,null,null,null,null,null,null,null,null,null,null,null,null,null,"③",{"$f":"C37","v":0}]
["⑥",{"$f":"AE55","v":0},null,null,{"$f":"AE48","v":0},null,null,{"$f":"AE49","v":0},null,null,{"$f":"AE46","v":0},null,null,{"$f":"AE39","v":0},null,null,{"$f":"AE40","v":0},null,null,{"$f":"AE37","v":0},null,null,{"$f":"AE30","v":0},null,null,{"$f":"AE31","v":0},null,null,"④",1,null,null,null,null,null,null,null,null,null,null,null,null,null,null,null,null,null,null,null,null,null,null,null,null,9]
[null,null,null,null,null,null,null,null,null,null,null,null,null,null,null,null,null,null,null,null,null,null,null,null,null,null,null,null,null,2,null,null,null,null,null,null,null,null,null,null,null,null,null,null,null,null,null,null,null,null,null,null,null,null,10]
[null,null,null,null,null,null,null,null,null,null,null,null,null,null,null,null,null,null,null,null,null,null,null,null,null,null,null,null,null,3,null,null,null,null,null,null,null,null,null,null,null,null,null,null,null,null,null,null,null,null,null,null,null,null,11]
[null,{"$f":"AE54","v":0},null,null,{"$f":"C40","v":0},null,null,{"$f":"AE50","v":0},null,null,{"$f":"AE45","v":0},null,null,{"$f":"C39","v":0},null,null,{"$f":"AE41","v":0},null,null,{"$f":"AE36","v":0},null,null,{"$f":"C38","v":0},null,null,{"$f":"AE32","v":0},null,null,null,4,null,null,null,null,null,null,null,null,null,null,null,null,null,null,null,null,null,null,null,null,null,null,null,null,12]
[null,null,null,null,null,null,null,null,null,null,null,null,null,null,null,null,null,null,null,null,null,null,null,null,null,null,null,null,null,5,null,null,null,null,null,null,null,null,null,null,null,null,null,null,null,null,null,null,null,null,null,null,null,null,13]
[null,null,null,null,null,null,null,null,null,null,null,null,null,null,null,null,null,null,null,null,null,null,null,null,null,null,null,null,null,6,null,null,null,null,null,null,null,null,null,null,null,null,null,null,null,null,null,null,null,null,null,null,null,null,14]
[null,{"$f":"AE53","v":0},null,null,{"$f":"AE52","v":0},null,null,{"$f":"AE51","v":0},null,null,{"$f":"AE44","v":0},null,null,{"$f":"AE43","v":0},null,null,{"$f":"AE42","v":0},null,null,{"$f":"AE35","v":0},null,null,{"$f":"AE34","v":0},null,null,{"$f":"AE33","v":0},null,null,null,7,null,null,null,null,null,null,null,null,null,null,null,null,null,null,null,null,null,null,null,null,null,null,null,null,15]
[null,null,null,null,null,null,null,null,null,null,null,null,null,null,null,null,null,null,null,null,null,null,null,null,null,null,null,null,null,8,null,null,null,null,null,null,null,null,null,null,null,null,null,null,null,null,null,null,null,null,null,null,null,null,16]
[null,null,null,null,null,null,null,null,null,null,null,null,null,null,null,null,null,null,null,null,null,null,null,null,null,null,null,null,null,null,"④",{"$f":"C38","v":0}]
[null,null,null,null,null,null,null,null,null,null,"⑤",null,null,null,null,null,null,null,null,null,null,null,null,null,null,null,null,null,null,1,null,null,null,null,null,null,null,null,null,null,null,null,null,null,null,null,null,null,null,null,null,null,null,null,9]
[null,null,{"$f":"'I　FACE'!C31","v":0},null,null,null,null,null,null,null,null,null,null,null,null,null,null,null,null,null,null,null,null,null,null,null,null,null,null,2,null,null,null,null,null,null,null,null,null,null,null,null,null,null,null,null,null,null,null,null,null,null,null,null,10]
[null,null,null,null,null,null,null,null,null,null,null,null,null,null,null,null,null,null,null,null,null,null,null,null,null,null,null,null,null,3,null,null,null,null,null,null,null,null,null,null,null,null,null,null,null,null,null,null,null,null,null,null,null,null,11]
[null,null,null,null,null,null,null,null,null,null,null,null,null,null,null,null,null,null,null,null,null,null,null,null,null,null,null,null,null,4,null,null,null,null,null,null,null,null,null,null,null,null,null,null,null,null,null,null,null,null,null,null,null,null,12]
[null,null,"基礎思考",null,null,null,null,null,null,null,null,null,null,null,null,null,null,null,null,null,null,null,null,null,null,null,null,null,null,5,null,null,null,null,null,null,null,null,null,null,null,null,null,null,null,null,null,null,null,null,null,null,null,null,13]
[null,"①",{"$f":"'I　FACE'!AE66","v":0},null,null,null,null,null,null,null,null,null,null,null,null,null,null,null,null,null,null,null,null,null,null,null,null,null,null,6,null,null,null,null,null,null,null,null,null,null,null,null,null,null,null,null,null,null,null,null,null,null,null,null,14]
[null,"②",{"$f":"'I　FACE'!AE67","v":0},null,null,null,null,null,null,null,null,null,null,null,null,null,null,null,null,null,null,null,null,null,null,null,null,null,null,7,null,null,null,null,null,null,null,null,null,null,null,null,null,null,null,null,null,null,null,null,null,null,null,null,15]
[null,"③.",{"$f":"'I　FACE'!AE68","v":0},null,null,null,null,null,null,null,null,null,null,null,null,null,null,null,null,null,null,null,null,null,null,null,null,null,null,8,null,null,null,null,null,null,null,null,null,null,null,null,null,null,null,null,null,null,null,null,null,null,null,null,16]
[null,"④",{"$f":"'I　FACE'!AE69","v":0},null,null,null,null,null,null,null,null,null,null,null,null,null,null,null,null,null,null,null,null,null,null,null,null,null,null,null,"⑤",{"$f":"C39","v":0}]
[null,"⑤",{"$f":"'I　FACE'!AE70","v":0},null,null,null,null,null,null,null,null,null,null,null,null,null,null,null,null,null,null,null,null,null,null,null,null,null,null,1,null,null,null,null,null,null,null,null,null,null,null,null,null,null,null,null,null,null,null,null,null,null,null,null,9]
[null,"⑥",{"$f":"'I　FACE'!AE71","v":0},null,null,null,null,null,null,null,null,null,null,null,null,null,null,null,null,null,null,null,null,null,null,null,null,null,null,2,null,null,null,null,null,null,null,null,null,null,null,null,null,null,null,null,null,null,null,null,null,null,null,null,10]
[null,"⑦",{"$f":"'I　FACE'!AE72","v":0},null,null,null,null,null,null,null,null,null,null,null,null,null,null,null,null,null,null,null,null,null,null,null,null,null,null,3,null,null,null,null,null,null,null,null,null,null,null,null,null,null,null,null,null,null,null,null,null,null,null,null,11]
[null,"⑧",{"$f":"'I　FACE'!AE73","v":0},null,null,null,null,null,null,null,null,null,null,null,null,null,null,null,null,null,null,null,null,null,null,null,null,null,null,4,null,null,null,null,null,null,null,null,null,null,null,null,null,null,null,null,null,null,null,null,null,null,null,null,12]
[null,null,null,null,null,null,null,null,null,null,null,null,null,null,null,null,null,null,null,null,null,null,null,null,null,null,null,null,null,5,null,null,null,null,null,null,null,null,null,null,null,null,null,null,null,null,null,null,null,null,null,null,null,null,13]
[null,null,null,null,null,null,null,null,null,null,null,null,null,null,null,null,null,null,null,null,null,null,null,null,null,null,null,null,null,6,null,null,null,null,null,null,null,null,null,null,null,null,null,null,null,null,null,null,null,null,null,null,null,null,14]
[null,null,null,null,null,null,null,null,null,null,null,null,null,null,null,null,null,null,null,null,null,null,null,null,null,null,null,null,null,7,null,null,null,null,null,null,null,null,null,null,null,null,null,null,null,null,null,null,null,null,null,null,null,null,15]
[null,null,null,null,null,null,null,null,null,null,null,null,null,null,null,null,null,null,null,null,null,null,null,null,null,null,null,null,null,8,null,null,null,null,null,null,null,null,null,null,null,null,null,null,null,null,null,null,null,null,null,null,null,null,16]
[null,null,null,null,null,null,null,null,null,null,null,null,null,null,null,null,null,null,null,null,null,null,null,null,null,null,null,null,null,null,"⑥",{"$f":"C40","v":0}]
[null,null,null,null,null,null,null,null,null,null,null,null,null,null,null,null,null,null,null,null,null,null,null,null,null,null,null,null,null,1,null,null,null,null,null,null,null,null,null,null,null,null,null,null,null,null,null,null,null,null,null,null,null,null,9]
[null,null,null,null,null,null,null,null,null,null,null,null,null,null,null,null,null,null,null,null,null,null,null,null,null,null,null,null,null,2,null,null,null,null,null,null,null,null,null,null,null,null,null,null,null,null,null,null,null,null,null,null,null,null,10]
[null,null,null,null,null,null,null,null,null,null,null,null,null,null,null,null,null,null,null,null,null,null,null,null,null,null,null,null,null,3,null,null,null,null,null,null,null,null,null,null,null,null,null,null,null,null,null,null,null,null,null,null,null,null,11]
[null,null,null,null,null,null,null,null,null,null,null,null,null,null,null,null,null,null,null,null,null,null,null,null,null,null,null,null,null,4,null,null,null,null,null,null,null,null,null,null,null,null,null,null,null,null,null,null,null,null,null,null,null,null,12]
[null,null,null,null,null,null,null,null,null,null,null,null,null,null,null,null,null,null,null,null,null,null,null,null,null,null,null,null,null,5,null,null,null,null,null,null,null,null,null,null,null,null,null,null,null,null,null,null,null,null,null,null,null,null,13]
[null,null,null,null,null,null,null,null,null,null,null,null,null,null,null,null,null,null,null,null,null,null,null,null,null,null,null,null,null,6,null,null,null,null,null,null,null,null,null,null,null,null,null,null,null,null,null,null,null,null,null,null,null,null,14]
[null,null,null,null,null,null,null,null,null,null,null,null,null,null,null,null,null,null,null,null,null,null,null,null,null,null,null,null,null,7,null,null,null,null,null,null,null,null,null,null,null,null,null,null,null,null,null,null,null,null,null,null,null,null,15]
[null,null,null,null,null,null,null,null,null,null,null,null,null,null,null,null,null,null,null,null,null,null,null,null,null,null,null,null,null,8,null,null,null,null,null,null,null,null,null,null,null,null,null,null,null,null,null,null,null,null,null,null,null,null,16]
[null,null,null,null,null,null,null,null,null,null,null,null,null,null,null,null,null,null,null,null,null,null,null,null,null,null,null,null,null,null,"⑦",{"$f":"C41","v":0}]
[null,null,null,null,null,null,null,null,null,null,null,null,null,null,null,null,null,null,null,null,null,null,null,null,null,null,null,null,null,1,null,null,null,null,null,null,null,null,null,null,null,null,null,null,null,null,null,null,null,null,null,null,null,null,9]
[null,null,null,null,null,null,null,null,null,null,null,null,null,null,null,null,null,null,null,null,null,null,null,null,null,null,null,null,null,2,null,null,null,null,null,null,null,null,null,null,null,null,null,null,null,null,null,null,null,null,null,null,null,null,10]
[null,null,null,null,null,null,null,null,null,null,null,null,null,null,null,null,null,null,null,null,null,null,null,null,null,null,null,null,null,3,null,null,null,null,null,null,null,null,null,null,null,null,null,null,null,null,null,null,null,null,null,null,null,null,11]
[null,null,null,null,null,null,null,null,null,null,null,null,null,null,null,null,null,null,null,null,null,null,null,null,null,null,null,null,null,4,null,null,null,null,null,null,null,null,null,null,null,null,null,null,null,null,null,null,null,null,null,null,null,null,12]
[null,null,null,null,null,null,null,null,null,null,null,null,null,null,null,null,null,null,null,null,null,null,null,null,null,null,null,null,null,5,null,null,null,null,null,null,null,null,null,null,null,null,null,null,null,null,null,null,null,null,null,null,null,null,13]
[null,null,null,null,null,null,null,null,null,null,null,null,null,null,null,null,null,null,null,null,null,null,null,null,null,null,null,null,null,6,null,null,null,null,null,null,null,null,null,null,null,null,null,null,null,null,null,null,null,null,null,null,null,null,14]
[null,null,null,null,null,null,null,null,null,null,null,null,null,null,null,null,null,null,null,null,null,null,null,null,null,null,null,null,null,7,null,null,null,null,null,null,null,null,null,null,null,null,null,null,null,null,null,null,null,null,null,null,null,null,15]
[null,null,null,null,null,null,null,null,null,null,null,null,null,null,null,null,null,null,null,null,null,null,null,null,null,null,null,null,null,8,null,null,null,null,null,null,null,null,null,null,null,null,null,null,null,null,null,null,null,null,null,null,null,null,16]
[null,null,null,null,null,null,null,null,null,null,null,null,null,null,null,null,null,null,null,null,null,null,null,null,null,null,null,null,null,null,"⑧",{"$f":"C42","v":0}]
[null,null,null,null,null,null,null,null,null,null,null,null,null,null,null,null,null,null,null,null,null,null,null,null,null,null,null,null,null,1,null,null,null,null,null,null,null,null,null,null,null,null,null,null,null,null,null,null,null,null,null,null,null,null,9]
[null,null,null,null,null,null,null,null,null,null,null,null,null,null,null,null,null,null,null,null,null,null,null,null,null,null,null,null,null,2,null,null,null,null,null,null,null,null,null,null,null,null,null,null,null,null,null,null,null,null,null,null,null,null,10]
[null,null,null,null,null,null,null,null,null,null,null,null,null,null,null,null,null,null,null,null,null,null,null,null,null,null,null,null,null,3,null,null,null,null,null,null,null,null,null,null,null,null,null,null,null,null,null,null,null,null,null,null,null,null,11]
[null,null,null,null,null,null,null,null,null,null,null,null,null,null,null,null,null,null,null,null,null,null,null,null,null,null,null,null,null,4,null,null,null,null,null,null,null,null,null,null,null,null,null,null,null,null,null,null,null,null,null,null,null,null,12]
[null,null,null,null,null,null,null,null,null,null,null,null,null,null,null,null,null,null,null,null,null,null,null,null,null,null,null,null,null,5,null,null,null,null,null,null,null,null,null,null,null,null,null,null,null,null,null,null,null,null,null,null,null,null,13]
[null,null,null,null,null,null,null,null,null,null,null,null,null,null,null,null,null,null,null,null,null,null,null,null,null,null,null,null,null,6,null,null,null,null,null,null,null,null,null,null,null,null,null,null,null,null,null,null,null,null,null,null,null,null,14]
[null,null,null,null,null,null,null,null,null,null,null,null,null,null,null,null,null,null,null,null,null,null,null,null,null,null,null,null,null,7,null,null,null,null,null,null,null,null,null,null,null,null,null,null,null,null,null,null,null,null,null,null,null,null,15]
[null,null,null,null,null,null,null,null,null,null,null,null,null,null,null,null,null,null,null,null,null,null,null,null,null,null,null,null,null,8,null,null,null,null,null,null,null,null,null,null,null,null,null,null,null,null,null,null,null,null,null,null,null,null,16]